Workbook

Sheet At a glance
B2: PUBLIC FINANCE
B4: Tamara Dimant
B6: At a glance
C7: 2023/24a
B8: National revenue as a proportion of GDP | C8: 0.243
B9: National expenditure as a proportion of GDP | C9: 0.318
B10: Budget deficit as a proportion of GDP | C10: 0.045
B11: Key allocations as a proportion of budget
B12: State debt cost | C12: 0.157
B13: Other general public services | C13: 0.052
B14: Defence | C14: 0.023
B15: Public order and safety | C15: 0.076
B16: Economic affairs | C16: 0.101
B17: Environmental protection | C17: 0.007
B18: Housing and community amenities | C18: 0.091
B19: Health | C19: 0.116
B20: Recreation and culture | C20: 0.007
B21: Education | C21: 0.204
B22: Social protection | C22: 0.166
B23: Personnel expenditure as a proportion of total budget spending | C23: 0.318
B24: Total debt of government as a proportion of GDP | C24: 0.744
B25: Personal income tax as a proportion of GDP | C25: 0.091
B26: Company tax as a proportion of GDP | C26: 0.044
B27: Value added tax (VAT) as a proportion of GDP | C27: 0.063
B28: Maximum marginal personal income tax rate | C28: 0.45
B29: Maximum marginal company tax rate | C29: 0.27
B30: Value added tax (VAT) rate | C30: 0.15
B31: Personal income tax as a proportion of national tax revenue | C31: 0.375
B32: Company tax as a proportion of national tax revenue | C32: 0.174
B33: Indirect tax as a proportion of national tax revenue | C33: 0.411
B34: Assessed individual taxpayers as a proportion of economically active population | C34: 0.248
B35: Proportion of individual taxpayers in income group R350 001 and higher | C35: 0.343 | E35: Text changed
B36: Contribution to tax assessed by income group R350 001 and higher | C36: 0.889
B37: Proportion of individual taxpayers in income group R350 000 and below | C37: 0.656
B38: Contribution to tax assessed by income group R350 000 and below | C38: 0.112
B39: a Budget 2024 estimates.

Sheet REVENUE AND TAXATION

Sheet Government finance % GDP
A2: REVENUE AND TAXATION
A4: National revenues
A6: Government finance a proportion of GDP, 1997/98-2026/27
A8: Yeara | B8: Personal income taxb | C8: Company taxb | D8: National revenuec | E8: National expenditure | F8: Deficit/ surplus
A9: 1997/98 | B9: 0.08588952634 | C9: 0.0268672529 | D9: 0.206 | E9: 0.238 | F9: -0.032
A10: 1998/99 | B10: 0.09015197494 | C10: 0.02612072545 | D10: 0.212 | E10: 0.237 | F10: -0.024
A11: 1999/2000 | B11: 0.09015591835 | C11: 0.02201480348 | D11: 0.208 | E11: 0.227 | F11: -0.019
A12: 2000/01 | B12: 0.07951064151 | C12: 0.02711573259 | D12: 0.198 | E12: 0.215 | F12: -0.017
A13: 2001/02 | B13: 0.07504236567 | C13: 0.03516315058 | D13: 0.206 | E13: 0.218 | F13: -0.012
A14: 2002/03 | B14: 0.0673384178 | C14: 0.0397913492 | D14: 0.199 | E14: 0.208 | F14: -0.009
A15: 2003/04 | B15: 0.0645972637 | C15: 0.03992820036 | D15: 0.196 | E15: 0.216 | F15: -0.02
A16: 2004/05 | B16: 0.06561985768 | C16: 0.04185094233 | D16: 0.205 | E16: 0.218 | F16: -0.013
A17: 2005/06 | B17: 0.06662980088 | C17: 0.04569110946 | D17: 0.218 | E17: 0.221 | F17: -0.003
A18: 2006/07 | B18: 0.06582770106 | C18: 0.05572268596 | D18: 0.226 | E18: 0.22 | F18: 0.006
A19: 2007/08 | B19: 0.07005233223 | C19: 0.05815884248 | D19: 0.233 | E19: 0.225 | F19: 0.008
A20: 2008/09 | B20: 0.07341391498 | C20: 0.06227583961 | D20: 0.23 | E20: 0.237 | F20: -0.007
A21: 2009/10 | B21: 0.07215720306 | C21: 0.04744356095 | D21: 0.206 | E21: 0.251 | F21: -0.045
A22: 2010/11 | B22: 0.07265469549 | C22: 0.04255119526 | D22: 0.215 | E22: 0.251 | F22: -0.036
A23: 2011/12 | B23: 0.07383889017 | C23: 0.04471230682 | D23: 0.219 | E23: 0.262 | F23: -0.044
A24: 2012/13 | B24: 0.07590762763 | C24: 0.04382901918 | D24: 0.217 | E24: 0.266 | F24: -0.049
A25: 2013/14 | B25: 0.07855566808 | C25: 0.04497920787 | D25: 0.223 | E25: 0.266 | F25: -0.042
A26: 2014/15 | B26: 0.08402099315 | C26: 0.04402208851 | D26: 0.228 | E26: 0.269 | F26: -0.042
A27: 2015/16 | B27: 0.08626581241 | C27: 0.04248840621 | D27: 0.238 | E27: 0.277 | F27: -0.039
A28: 2016/17 | B28: 0.08787571473 | C28: 0.04231489491 | D28: 0.235 | E28: 0.27 | F28: -0.035
A29: 2017/18 | B29: 0.08973490094 | C29: 0.04232417435 | D29: 0.233 | E29: 0.273 | F29: -0.041
A30: 2018/19 | B30: 0.09081840426 | C30: 0.03913503981 | D30: 0.235 | E30: 0.277 | F30: -0.042
A31: 2019/20 | B31: 0.09278425457 | C31: 0.03719621064 | D31: 0.235 | E31: 0.296 | F31: -0.061
A32: 2020/21 | B32: 0.08749471522 | C32: 0.03631279557 | D32: 0.22 | E32: 0.318 | F32: -0.098
A33: 2021/22 | B33: 0.088 | C33: 0.051 | D33: 0.247 | E33: 0.298 | F33: -0.051
A34: 2022/23 | B34: 0.09 | C34: 0.052 | D34: 0.251 | E34: 0.297 | F34: -0.046
A35: 2023/24 | B35: 0.091 | C35: 0.044 | D35: 0.2429948695 | E35: 0.318 | F35: -0.045
A36: 2024/25cd | B36: 0.097 | C36: 0.042 | D36: 0.2388857139 | E36: 0.318 | F36: -0.05
A37: 2025/26cd | B37: 0.098 | C37: 0.04 | D37: 0.2411409463 | E37: 0.313 | F37: -0.043
A38: 2026/27cd | B38: 0.1 | C38: 0.041 | D38: 0.2425634655 | E38: 0.308 | F38: -0.036
A39: Source: South African Reserve Bank (SARB), time series data, accessed 10 December 2024; National Treasury, Medium Term Budget Policy Statement (MTBPS) 2024, 30 October 2024, Table 1.2, Table C.7
A40: a Fiscal years. The 12 months on which government budgets are based, beginning 1 April and ending 31 March of the subsequent calendar year. 1996/97-2022/23: SARB data, 2023/24-2026/27: Budget 2024 data.
A41: b Company and personal income tax proportions are calculated by the CRA.
A42: c Includes indirect and other taxes.
A43: d Budget estimates.

Sheet LG Income tax as % of GDP
B2: Personal income tax | C2: Company tax
A3: 1996/97 | B3: 0.08256593367 | C3: 0.0261269622
B4: 0.08588952634 | C4: 0.0268672529
B5: 0.09015197494 | C5: 0.02612072545
B6: 0.09015591835 | C6: 0.02201480348
A7: 2000/01 | B7: 0.07951064151 | C7: 0.02711573259
B8: 0.07504236567 | C8: 0.03516315058
B9: 0.0673384178 | C9: 0.0397913492
B10: 0.0645972637 | C10: 0.03992820036
B11: 0.06561985768 | C11: 0.04185094233
B12: 0.06662980088 | C12: 0.04569110946
B13: 0.06582770106 | C13: 0.05572268596
B14: 0.07005233223 | C14: 0.05815884248
B15: 0.07341391498 | C15: 0.06227583961
B16: 0.07215720306 | C16: 0.04744356095
A17: 2010/11 | B17: 0.07265469549 | C17: 0.04255119526
B18: 0.07383889017 | C18: 0.04471230682
B19: 0.07590762763 | C19: 0.04382901918
B20: 0.07855566808 | C20: 0.04497920787
B21: 0.08402099315 | C21: 0.04402208851
B22: 0.08626581241 | C22: 0.04248840621
B23: 0.08787571473 | C23: 0.04231489491
A24: 2017/18 | B24: 0.08973490094 | C24: 0.04232417435
B25: 0.09081840426 | C25: 0.03913503981
B26: 0.09278425457 | C26: 0.03719621064
B27: 0.08749471522 | C27: 0.03631279557
B28: 0.088 | C28: 0.051
B29: 0.09 | C29: 0.052
B30: 0.091 | C30: 0.044
B31: 0.097 | C31: 0.042
B32: 0.098 | C32: 0.04
A33: 2026/27 | B33: 0.1 | C33: 0.041

Sheet Composition of tax revenue
A2: Composition of national tax revenuea,1984/85-2024/25
A4: Type of tax | B4: 1984/85b | C4: 1994/95b | D4: 2022/23 | E4: 2023/24c | F4: 2024/25c
A5: Direct taxesd | B5: 0.581 | C5: 0.538 | D5: 0.6 | E5: 0.591 | F5: 0.597
A6: Persons and individuals | B6: 0.325 | C6: 0.395 | D6: 0.356 | E6: 0.375 | F6: 0.397
A7: Companies | B7: 0.238 | C7: 0.119 | D7: 0.204 | E7: 0.174 | F7: 0.162
A8: Secondary tax on companies/dividend taxe | B8: — | C8: 0.011 | D8: 0.023 | E8: 0.024 | F8: 0.02
A9: Donations tax | B9: 0 | C9: 0.001 | D9: 0 | E9: 0 | F9: 0
A10: Estate duty/inheritance tax | B10: 0.004 | C10: 0.001 | D10: 0.002 | E10: 0.002 | F10: 0.002
A11: Skills development levy | B11: — | C11: — | D11: 0.012 | E11: 0.013 | F11: 0.013
A12: Other | B12: 0.013 | C12: 0.01 | D12: 0.003 | E12: 0.003 | F12: 0.003
A13: Indirect taxesd | B13: 0.419 | C13: 0.461 | D13: 0.401 | E13: 0.411 | F13: 0.404
A14: Value added tax/general sales taxf | B14: 0.246 | C14: 0.257 | D14: 0.25 | E14: 0.257 | F14: 0.256
A15: Excise duties | B15: 0.081 | C15: 0.051 | D15: 0.036 | E15: 0.035 | F15: 0.035
A16: Fuel levy | B16: 0.01 | C16: 0.073 | D16: 0.048 | E16: 0.054 | F16: 0.051
A17: Electricity levy | B17: — | C17: — | D17: 0.004 | E17: 0.004 | F17: 0.004
A18: Health promotion levy | B18: — | C18: — | D18: 0.001 | E18: 0.001 | F18: 0.001
A19: Customs duties and import surcharges | B19: 0.055 | C19: 0.048 | D19: 0.044 | E19: 0.042 | F19: 0.041
A20: Securities transfer tax | B20: 0.001 | C20: 0.004 | D20: 0.003 | E20: 0.003 | F20: 0.003
A21: Air departure tax | B21: — | C21: — | D21: 0 | E21: 0.001 | F21: 0
A22: Transfer duties | B22: 0.012 | C22: 0.012 | D22: 0.01 | E22: 0.009 | F22: 0.009
A23: Stamp duties and fees | B23: 0.01 | C23: 0.008 | D23: 0 | E23: 0 | F23: 0
A24: Other | B24: 0.002 | C24: 0.008 | D24: 0.005 | E24: 0.005 | F24: 0.004
A25: Totald | B25: 1 | C25: 1 | D25: 1 | E25: 1 | F25: 1
A26: Source: National Treasury, Budget Review 2024, 22 February 2024, Table 2, p249; Socio-Economic Survey of South Africa 2024, p165
A27: a CRA calculations.
A28: b Actual collection.
A29: c Budget estimates.
A30: d Figures should add up vertically but may not, owing to rounding.
A31: e Dividend withholding tax replaced the secondary tax on companies from 1 April 2012.
A32: f Value added tax (VAT) replaced the general sales tax in 1991.

Sheet Tax as%GDP, tax buoyancy ratio
B2: Tax revenue as a proportion of GDP and the tax buoyancy ratio, 1999/2000-2022/23
B4: Year | C4: Tax revenue Rbn | D4: Nominal GDP Rbn | E4: Tax revenue as a % of GDP | F4: Tax buoyancy ratioa
B5: 1999/2000 | C5: 201.3 | D5: 952.6 | E5: 0.211 | F5: 0.85
B6: 2000/01 | C6: 220.1 | D6: 1087.6 | E6: 0.202 | F6: 0.66
B7: 2001/02 | C7: 252.3 | D7: 1204.5 | E7: 0.209 | F7: 1.3
B8: 2002/03 | C8: 281.9 | D8: 1400.9 | E8: 0.201 | F8: 0.72
B9: 2003/04 | C9: 302.4 | D9: 1524.8 | E9: 0.198 | F9: 0.82
B10: 2004/05 | C10: 355 | D10: 1691.3 | E10: 0.21 | F10: 1.59
B11: 2005/06 | C11: 417.2 | D11: 1885.7 | E11: 0.221 | F11: 1.52
B12: 2006/07 | C12: 495.5 | D12: 2135.6 | E12: 0.232 | F12: 1.42
B13: 2007/08 | C13: 572.8 | D13: 2409.3 | E13: 0.238 | F13: 1.22
B14: 2008/09 | C14: 625.1 | D14: 2658.2 | E14: 0.235 | F14: 0.88
B15: 2009/10 | C15: 598.7 | D15: 2843 | E15: 0.211 | F15: -0.61
B16: 2010/11 | C16: 674.2 | D16: 3123.3 | E16: 0.216 | F16: 1.28
B17: 2011/12 | C17: 742.7 | D17: 3391.2 | E17: 0.219 | F17: 1.18
B18: 2012/13 | C18: 813.8 | D18: 3633.6 | E18: 0.224 | F18: 1.34
B19: 2013/14 | C19: 900 | D19: 3945.4 | E19: 0.228 | F19: 1.23
B20: 2014/15 | C20: 986.3 | D20: 4200.7 | E20: 0.235 | F20: 1.48
B21: 2015/16 | C21: 1070 | D21: 4498.9 | E21: 0.238 | F21: 1.2
B22: 2016/17 | C22: 1144.1 | D22: 4831.2 | E22: 0.237 | F22: 0.94
B23: 2017/18 | C23: 1216.5 | D23: 5138.4 | E23: =C23/D23 -> 0.2367468473 | F23: 1
B24: 2018/19 | C24: 1287.7 | D24: 5425.4 | E24: 0.237 | F24: 1
B25: 2019/20 | C25: 1355.8 | D25: 5712.6 | E25: 0.237 | F25: 1
B26: 2020/21 | C26: 1249.7 | D26: 5615.9 | E26: 0.223 | F26: 4.6
B27: 2021/22 | C27: 1563.8 | D27: 6312 | E27: 0.248 | F27: 2
B28: 2022/23 | C28: 1686.7 | D28: 6721.8 | E28: 0.251 | F28: 1.2
B29: Source: South African Revenue Service (SARS), Tax Statistics 2023, 3 January 2024, pp9-10
B30: a The tax buoyancy measures the sensitivity of tax revenue to changes in economic growth. It is calculated by dividing total revenue growth by nominal GDP growth. Where there is equivalence, tax buoyancy is at 1. When the growth in tax revenue is higher than economic growth, the tax buoyancy is higher than 1, and when it is lower, it is less than 1.

Sheet LG Tax buoyancy ratio
A1: LG
A2: Tax revenue buoyancy, 1994/95—2022/23
B3: Revenue buoyancy | C3: Average buoyancy
A4: 1994/95 | B4: 1.3 | C4: 1.2
A5: 1995/96 | B5: 0.84 | C5: 1.2
A6: 1996/97 | B6: 1.28 | C6: 1.2
A7: 1997/98 | B7: 1.18 | C7: 1.2
A8: 1998/99 | B8: 1.41 | C8: 1.2
A9: 1999/2000 | B9: 0.85 | C9: 1.2
A10: 2000/01 | B10: 0.66 | C10: 1.2
A11: 2001/02 | B11: 1.3 | C11: 1.2
A12: 2002/03 | B12: 0.72 | C12: 1.2
A13: 2003/04 | B13: 0.82 | C13: 1.2
A14: 2004/05 | B14: 1.59 | C14: 1.2
A15: 2005/06 | B15: 1.52 | C15: 1.2
A16: 2006/07 | B16: 1.42 | C16: 1.2
A17: 2007/08 | B17: 1.22 | C17: 1.2
A18: 2008/09 | B18: 0.88 | C18: 1.2
A19: 2009/10 | B19: -0.61 | C19: 1.2
A20: 2010/11 | B20: 1.28 | C20: 1.2
A21: 2011/12 | B21: 1.18 | C21: 1.2
A22: 2012/13 | B22: 1.34 | C22: 1.2
A23: 2013/14 | B23: 1.23 | C23: 1.2
A24: 2014/15 | B24: 1.48 | C24: 1.2
A25: 2015/16 | B25: 1.2 | C25: 1.2
A26: 2016/17 | B26: 0.94 | C26: 1.2
A27: 2017/18 | B27: 1 | C27: 1.2
A28: 2018/19 | B28: 1 | C28: 1.2
A29: 2019/20 | B29: 1 | C29: 1.2
A30: 2020/21 | B30: 4.6 | C30: 1.2
A31: 2021/22 | B31: 2 | C31: 1.2
A32: 2022/23 | B32: 1.2 | C32: 1.2

Sheet Domestic taxes on goods&ser
A2: Domestic taxes on goods and services, 2013/14-2022/23
B4: VAT | C4: Fuel levy | D4: Specific excise duties | E4: Ad valorema excise duties | F4: Environmental taxes | G4: Otherb | H4: Total
A5: Year | B5: —Rbn—
A6: 2013/14 | B6: 237.7 | C6: 43.7 | D6: 29 | E6: 2.4 | F6: 11.7 | G6: 0.1 | H6: 324.5
A7: 2014/15 | B7: 261.3 | C7: 48.5 | D7: 32.3 | E7: 3 | F7: 11.3 | G7: 0.2 | H7: 356.6
A8: 2015/16 | B8: 281.1 | C8: 55.6 | D8: 35.1 | E8: 3 | F8: 10.9 | G8: 0.2 | H8: 386
A9: 2016/17 | B9: 289.2 | C9: 62.8 | D9: 35.8 | E9: 3.4 | F9: 11 | G9: 0.4 | H9: 402.5
A10: 2017/18 | B10: 298 | C10: 70.9 | D10: 37.4 | E10: 3.8 | F10: 11.9 | G10: 0.2 | H10: 422.2
A11: 2018/19 | B11: 324.8 | C11: 75.4 | D11: 40.8 | E11: 4.2 | F11: 11.9 | G11: 3.4 | H11: 460.5
A12: 2019/20 | B12: 346.8 | C12: 80.2 | D12: 46.8 | E12: 4.1 | F12: 11.7 | G12: 2.7 | H12: 492.3
A13: 2020/21 | B13: 331.2 | C13: 75.5 | D13: 32.3 | E13: 3.4 | F13: 11.2 | G13: 2.3 | H13: 455.9
A14: 2021/22 | B14: 390.9 | C14: 88.9 | D14: 49.7 | E14: 4.7 | F14: 13.1 | G14: 2.4 | H14: 549.8
A15: 2022/23 | B15: 422.4 | C15: 80.5 | D15: 55.2 | E15: 5.5 | F15: 14.1 | G15: 2.3 | H15: 580
A16: —Proportion of total tax revenuec—
A17: 2013/14 | B17: 0.264 | C17: 0.049 | D17: 0.032 | E17: 0.003 | F17: 0.013 | G17: 0 | H17: 0.361
A18: 2014/15 | B18: 0.265 | C18: 0.049 | D18: 0.033 | E18: 0.003 | F18: 0.011 | G18: 0 | H18: 0.362
A19: 2015/16 | B19: 0.263 | C19: 0.052 | D19: 0.033 | E19: 0.003 | F19: 0.01 | G19: 0 | H19: 0.361
A20: 2016/17 | B20: 0.253 | C20: 0.055 | D20: 0.031 | E20: 0.003 | F20: 0.01 | G20: 0 | H20: 0.352
A21: 2017/18 | B21: 0.245 | C21: 0.058 | D21: 0.031 | E21: 0.003 | F21: 0.01 | G21: 0 | H21: 0.347
A22: 2018/19 | B22: 0.252 | C22: 0.059 | D22: 0.032 | E22: 0.003 | F22: 0.009 | G22: 0.003 | H22: 0.358
A23: 2019/20 | B23: 0.256 | C23: 0.059 | D23: 0.035 | E23: 0.003 | F23: 0.009 | G23: 0.002 | H23: 0.363
A24: 2020/21 | B24: 0.265 | C24: 0.06 | D24: 0.026 | E24: 0.003 | F24: 0.009 | G24: 0.002 | H24: 0.365
A25: 2021/22 | B25: 0.25 | C25: 0.057 | D25: 0.032 | E25: 0.003 | F25: 0.008 | G25: 0.002 | H25: 0.352
A26: 2022/23 | B26: 0.25 | C26: 0.048 | D26: 0.033 | E26: 0.003 | F26: 0.008 | G26: 0.001 | H26: 0.344
A27: —Year-on-year change—
A28: 2014/15 | B28: 0.099 | C28: 0.109 | D28: 0.113 | E28: 0.253 | F28: -0.03 | G28: 0.344 | H28: 0.099
A29: 2015/16 | B29: 0.076 | C29: 0.147 | D29: 0.085 | E29: 0.017 | F29: -0.033 | G29: 0.142 | H29: 0.082
A30: 2016/17 | B30: 0.029 | C30: 0.129 | D30: 0.02 | E30: 0.127 | F30: 0.004 | G30: 0.699 | H30: 0.043
A31: 2017/18 | B31: 0.031 | C31: 0.13 | D31: 0.044 | E31: 0.113 | F31: 0.08 | G31: -0.392 | H31: 0.049
A32: 2018/19 | B32: 0.09 | C32: 0.062 | D32: 0.093 | E32: 0.109 | F32: 0.001 | G32: 14.013 | H32: 0.091
A33: 2019/20 | B33: 0.068 | C33: 0.064 | D33: 0.147 | E33: -0.016 | F33: -0.017 | G33: -0.229 | H33: 0.069
A34: 2020/21 | B34: -0.045 | C34: -0.058 | D34: -0.311 | E34: -0.179 | F34: -0.046 | G34: -0.131 | H34: -0.074
A35: 2021/22 | B35: 0.18 | C35: 0.177 | D35: 0.54 | E35: 0.396 | F35: 0.173 | G35: 0.063 | H35: 0.206
A36: 2022/23 | B36: 0.081 | C36: -0.095 | D36: 0.11 | E36: 0.168 | F36: 0.075 | G36: -0.063 | H36: 0.055
A37: Source: SARS, Tax Statistics 2023, 3 January 2024, p27; Socio-Economic Survey of South Africa 2024, p167
A38: a Ad valorem products include, among others, motor vehicles, electronic equipment, cosmetics, perfumes and other products generally regarded as “luxury items”.
A39: b Includes universal service fund, turnover tax for micro businesses, tyre levy and international pollution compensation fund.
A40: c CRA calculations.

Sheet Taxes on international trade
A2: Taxes on international trade and transactions, 2015/16-2022/23
B4: Customs duties | C4: Miscellaneous customs and excise receipts | D4: Diamond export levy | E4: Health promotion levy on imports | F4: Export tax | G4: Total
A5: Year | B5: —Rbn—
A6: 2015/16 | B6: 46.25 | C6: 0.57 | D6: 0.13 | E6: — | F6: — | G6: 46.94
A7: 2016/17 | B7: 45.58 | C7: 0.41 | D7: 0.12 | E7: — | F7: — | G7: 46.1
A8: 2017/18 | B8: 49.15 | C8: 0.7 | D8: 0.09 | E8: — | F8: — | G8: 49.94
A9: 2018/19 | B9: 54.97 | C9: 0.62 | D9: 0.08 | E9: 0.05 | F9: — | G9: 55.72
A10: 2019/20 | B10: 55.43 | C10: 0.73 | D10: 0.1 | E10: 0.07 | F10: — | G10: 56.32
A11: 2020/21 | B11: 47.29 | C11: 0.05 | D11: 0.05 | E11: 0.07 | F11: — | G11: 47.46
A12: 2021/22 | B12: 57.99 | C12: 1.07 | D12: 0.17 | E12: 0.08 | F12: 0.41 | G12: 59.72
A13: 2022/23 | B13: 73.95 | C13: 1.02 | D13: 0.15 | E13: 0.11 | F13: 0.84 | G13: 76.07
A14: —Year-on-year change—
A15: 2016/17 | B15: -0.015 | C15: -0.282 | D15: -0.074 | E15: — | F15: — | G15: -0.018
A16: 2017/18 | B16: 0.078 | C16: 0.726 | D16: -0.261 | E16: — | F16: — | G16: 0.083
A17: 2018/19 | B17: 0.118 | C17: -0.11 | D17: -0.102 | E17: — | F17: — | G17: 0.116
A18: 2019/20 | B18: 0.008 | C18: 0.175 | D18: 0.214 | E18: — | F18: — | G18: 0.011
A19: 2020/21 | B19: -0.147 | C19: -0.936 | D19: -0.461 | E19: — | F19: — | G19: -0.157
A20: 2021/22 | B20: 0.226 | C20: 21.983 | D20: 2.333 | E20: — | F20: — | G20: 0.258
A21: 2022/23 | B21: 0.275 | C21: -0.05 | D21: -0.11 | E21: — | F21: — | G21: 0.274
A22: Source: SARS, Tax Statistics 2023, 3 January 2024, p30; Socio-Economic Survey of South Africa 2024, p168

Sheet Health promotion levy
A2: Health promotion levy, 2018/19-2022/23
A4: Year | B4: Health promotion levy | C4: Health promotion levy on imports | D4: Total | E4: Change
B5: —Rbn—
A6: 2018/19 | B6: 3.2 | C6: 0.05 | D6: 3.25 | E6: —
A7: 2019/20 | B7: 2.45 | C7: 0.07 | D7: 2.51 | E7: -0.226
A8: 2020/21 | B8: 2.05 | C8: 0.07 | D8: 2.11 | E8: -0.159
A9: 2021/22 | B9: 2.18 | C9: 0.08 | D9: 2.26 | E9: 0.069
A10: 2022/23 | B10: 2.2 | C10: 0.11 | D10: 2.31 | E10: 0.02
A11: Source: SARS, Tax Statistics 2023, 3 January 2024, p17
A13: a Levy imposed on locally manufactured sugary beverages and is payable by manufacturers.

Sheet Environmental taxes
A2: Environmental taxes, 2014/15-2022/23
B4: Air passenger tax | C4: Tyre levy | D4: Plastic bag levy | E4: Electricity levy | F4: Incandescent light bulb levy | G4: CO2 tax on motor vehicle emissions | H4: Carbon taxa | I4: Total
A5: Year | C5: —Rbn—
A6: 2014/15 | B6: 0.91 | C6: — | D6: 0.17 | E6: 8.65 | F6: 0.09 | G6: 1.48 | H6: — | I6: 11.3
A7: 2015/16 | B7: 0.94 | C7: — | D7: 0.18 | E7: 8.47 | F7: 0.05 | G7: 1.28 | H7: — | I7: 10.92
A8: 2016/17 | B8: 1 | C8: 0.08 | D8: 0.23 | E8: 8.46 | F8: 0.07 | G8: 1.21 | H8: — | I8: 11.05
A9: 2017/18 | B9: 1.09 | C9: 0.72 | D9: 0.24 | E9: 8.5 | F9: 0.06 | G9: 1.34 | H9: — | I9: 11.94
A10: 2018/19 | B10: 1.08 | C10: 0.73 | D10: 0.3 | E10: 8.4 | F10: 0.04 | G10: 1.39 | H10: — | I10: 11.95
A11: 2019/20 | B11: 1.07 | C11: 0.71 | D11: 0.32 | E11: 8.29 | F11: 0.03 | G11: 1.33 | H11: — | I11: 11.75
A12: 2020/21 | B12: 0.14 | C12: 0.6 | D12: 0.58 | E12: 7.74 | F12: 0.02 | G12: 1.47 | H12: 0.65 | I12: 11.2
A13: 2021/22 | B13: 0.29 | C13: 0.7 | D13: 0.66 | E13: 7.89 | F13: 0.02 | G13: 2.17 | H13: 1.4 | I13: 13.14
A14: 2022/23 | B14: 0.79 | C14: 0.75 | D14: 0.68 | E14: 7.37 | F14: 0.02 | G14: 2.93 | H14: 1.59 | I14: 14.13
A15: Source: SARS, Tax Statistics 2023, 3 January 2024, p16; Socio-Economic Survey of South Africa 2024, p168
A17: a The carbon tax was introduced with effect from 1 June 2019.

Sheet Tax revenue by revenue sourc
A2: Tax revenue by main revenue source, 1994/95-2022/23
B4: 1994/95 | C4: 2004/05 | D4: 2014/15 | E4: 2021/22 | F4: 2022/23 | G4: Change 2021/22-2022/23
A5: Revenue source | B5: —Rbn—
A6: Personal income tax (PIT) | B6: 45 | C6: 111 | D6: 353.9 | E6: 555.5 | F6: 602 | G6: =(F6-E6)/E6 -> 0.08370837084
A7: Corporate income tax (CIT) | B7: 12 | C7: 70.8 | D7: 186.6 | E7: 323.5 | F7: 347.7 | G7: =(F7-E7)/E7 -> 0.07480680062
A8: Secondary tax on companies (STC)/dividend tax (DT)a | B8: 1.3 | C8: 7.5 | D8: 21.2 | E8: 33.4 | F8: 38.1 | G8: 0.1407185629
A9: Value added tax (VAT) | B9: 29.3 | C9: 98.2 | D9: 261.3 | E9: 390.9 | F9: 422.4 | G9: 0.08058326938
A10: Fuel levy | B10: 8.4 | C10: 19.2 | D10: 48.5 | E10: 88.9 | F10: 80.5 | G10: -0.09448818898
A11: Customs and excise duties | B11: 11 | C11: 26 | D11: 73 | E11: 107.7 | F11: 129.1 | G11: 0.1987000929
A12: Otherb | B12: 6.9 | C12: 22.4 | D12: 41.7 | E12: 63.9 | F12: 66.9 | G12: 0.04694835681
A13: Total | B13: 113.8 | C13: 355 | D13: 986.3 | E13: 1563.8 | F13: 1686.7 | G13: 0.07859061261
B14: —Proportional breakdown—
A15: Personal income tax (PIT) | B15: 0.395 | C15: 0.313 | D15: 0.359 | E15: 0.355 | F15: 0.357 | G15: —
A16: Corporate income tax (CIT) | B16: 0.105 | C16: 0.199 | D16: 0.189 | E16: 0.207 | F16: 0.206 | G16: —
A17: Secondary tax on companies (STC)/dividend tax (DT)a | B17: 0.011 | C17: 0.021 | D17: 0.022 | E17: 0.021 | F17: 0.023 | G17: —
A18: Value added tax (VAT) | B18: 0.257 | C18: 0.277 | D18: 0.265 | E18: 0.25 | F18: 0.25 | G18: —
A19: Fuel levy | B19: 0.073 | C19: 0.054 | D19: 0.049 | E19: 0.057 | F19: 0.048 | G19: —
A20: Customs and excise duties | B20: 0.097 | C20: 0.073 | D20: 0.074 | E20: 0.069 | F20: 0.077 | G20: —
A21: Otherb | B21: 0.06 | C21: 0.063 | D21: 0.042 | E21: 0.041 | F21: 0.04 | G21: —
A22: Total | B22: 1 | C22: 1 | D22: 1 | E22: 1 | F22: 1 | G22: –
A23: Source: SARS, Tax Statistics 2023, 3 January 2024, p22; Socio-Economic Survey of South Africa 2024, p169
A24: a The dividend tax replaced the secondary tax on companies from 1 April 2012.
A25: b Includes transfer duties and securities transfer tax. The electricity levy is included from July 2009.

Sheet Tax revenue as % of GDP
A2: Tax revenue by main source as a proportion of GDP, 1994/95-2022/23
A4: Revenue source | B4: 1994/95 | C4: 2004/05 | D4: 2014/15 | E4: 2020/21 | F4: 2021/22 | G4: 2022/23
A5: Personal income tax (PIT) | B5: 0.09 | C5: 0.077 | D5: 0.092 | E5: 0.087 | F5: 0.088 | G5: 0.09
A6: Corporate income tax (CIT) | B6: 0.024 | C6: 0.049 | D6: 0.048 | E6: 0.036 | F6: 0.051 | G6: 0.052
A7: Secondary tax on companies (STC)/dividend tax (DT)a | B7: 0.003 | C7: 0.005 | D7: 0.005 | E7: 0.004 | F7: 0.005 | G7: 0.006
A8: Value added tax (VAT) | B8: 0.059 | C8: 0.068 | D8: 0.068 | E8: 0.059 | F8: 0.062 | G8: 0.063
A9: Fuel levy | B9: 0.017 | C9: 0.013 | D9: 0.013 | E9: 0.013 | F9: 0.014 | G9: 0.012
A10: Customsb | B10: 0.011 | C10: 0.009 | D10: 0.019 | E10: 0.014 | F10: 0.017 | G10: 0.019
A11: Otherc | B11: 0.025 | C11: 0.024 | D11: 0.011 | E11: 0.008 | F11: 0.01 | G11: 0.01
A12: Total | B12: 0.229 | C12: 0.245 | D12: 0.255 | E12: 0.223 | F12: 0.248 | G12: 0.251
A13: Source: SARS, Tax Statistics 2023, 3 January 2024, p22; Socio-Economic Survey of South Africa 2024, p169
A14: a The dividend tax replaced the secondary tax on companies from 1 April 2012.
A15: b Includes customs duties and specific excise duties.
A16: c Includes transfer duties and securities transfer tax. The electricity levy is included from July 2009.

Sheet Intern. Tax revenue % of GDP.
A2: International comparisons
A4: Tax revenue collected by central government as a proportion of GDP, selected countries, 2005-22
B6: —Tax revenue as a proportion of GDPa—
A7: Country | B7: 2005 | C7: 2010 | D7: 2015 | E7: 2020 | F7: 2022
A8: Australia | B8: 0.248 | C8: 0.205 | D8: 0.219 | E8: 0.226 | F8: 0.236
A9: Botswana | B9: 0.269 | C9: 0.239 | D9: 0.263 | E9: 0.223 | F9: 0.196
A10: Brazil | B10: 0.165 | C10: 0.142 | D10: 0.136 | E10: 0.127 | F10: 0.147
A11: Chile | B11: 0.181 | C11: 0.175 | D11: 0.175 | E11: 0.162 | F11: 0.213
A12: China | B12: 0.086 | C12: 0.102 | D12: 0.094 | E12: 0.081 | F12: 0.077
A13: Denmark | B13: 0.331 | C13: 0.327 | D13: 0.339 | E13: 0.345 | F13: 0.306
A14: Egypt | B14: 0.141 | C14: 0.141 | D14: — | E14: — | F14: —
A15: France | B15: 0.17 | C15: 0.151 | D15: 0.155 | E15: 0.147 | F15: 0.144
A16: Germany | B16: 0.107 | C16: 0.112 | D16: 0.115 | E16: 0.106 | F16: 0.112
A17: Ghana | B17: 0.213 | C17: 0.134 | D17: 0.117 | E17: 0.113 | F17: 0.123
A18: Greece | B18: 0.2 | C18: 0.201 | D18: 0.251 | E18: 0.253 | F18: 0.277
A19: Hong Kong | B19: — | C19: — | D19: — | E19: — | F19: —
A20: India | B20: 0.101 | C20: 0.104 | D20: 0.106 | E20: — | F20: —
A21: Indonesia | B21: 0.123 | C21: 0.105 | D21: 0.108 | E21: 0.083 | F21: 0.104
A22: Ireland | B22: 0.255 | C22: 0.218 | D22: 0.187 | E22: 0.165 | F22: 0.173
A23: Israel | B23: 0.246 | C23: 0.221 | D23: 0.231 | E23: 0.219 | F23: 0.25
A24: Italy | B24: 0.22 | C24: 0.237 | D24: 0.247 | E24: 0.248 | F24: 0.249
A25: Japan | B25: 0.1 | C25: 0.087 | D25: 0.113 | E25: 0.123 | F25: 0.141
A26: Kazakhstan | B26: 0.171 | C26: 0.157 | D26: 0.098 | E26: 0.083 | F26: 0.094
A27: Lithuania | B27: 0.198 | C27: 0.16 | D27: 0.167 | E27: 0.2 | F27: 0.211
A28: Mexico | B28: — | C28: 0.097 | D28: 0.123 | E28: 0.139 | F28: 0.134
A29: Mozambique | B29: — | C29: 0.143 | D29: 0.2 | E29: 0.215 | F29: 0.232
A30: Netherlands | B30: 0.212 | C30: 0.21 | D30: 0.212 | E30: 0.244 | F30: 0.241
A31: Nigeria | B31: — | C31: — | D31: — | E31: — | F31: —
A32: Pakistan | B32: — | C32: — | D32: — | E32: — | F32: —
A33: Philippines | B33: 0.119 | C33: 0.116 | D33: 0.13 | E33: 0.14 | F33: 0.146
A34: Poland | B34: 0.165 | C34: 0.166 | D34: 0.157 | E34: 0.175 | F34: 0.172
A35: Russia | B35: 0.166 | C35: 0.13 | D35: 0.106 | E35: 0.108 | F35: 0.11
A36: Saudi Arabia | B36: — | C36: 0.025 | D36: 0.033 | E36: 0.082 | F36: 0.078
A37: South Africa | B37: 0.227 | C37: 0.22 | D37: 0.243 | E37: 0.225 | F37: 0.254
A38: Spain | B38: 0.155 | C38: 0.124 | D38: 0.142 | E38: 0.136 | F38: 0.158
A39: Switzerland | B39: 0.091 | C39: 0.094 | D39: 0.096 | E39: 0.093 | F39: 0.091
A40: Thailand | B40: 0.161 | C40: 0.149 | D40: 0.161 | E40: 0.145 | F40: 0.144
A41: Turkey | B41: — | C41: 0.189 | D41: 0.182 | E41: 0.177 | F41: 0.161
A42: Uganda | B42: — | C42: — | D42: 0.108 | E42: 0.114 | F42: 0.125
A43: United Kingdom | B43: 0.255 | C43: 0.253 | D43: 0.25 | E43: 0.248 | F43: 0.273
A44: United States | B44: 0.107 | C44: 0.086 | D44: 0.112 | E44: 0.102 | F44: 0.122
A45: Source: The World Bank, World Development Indicators, accessed 10 December 2024
A46: a Tax revenue as a share of GDP provides a quick overview of the fiscal obligations and incentives facing the private sector across countries. The table shows only central government data, which may significantly understate the total tax burden, particularly in countries where provincial and municipal governments are large or have considerable tax authority. Low ratios of tax revenue to GDP may reflect weak administration and large-scale tax avoidance or evasion. Low ratios may also reflect a sizeable parallel economy with unrecorded and undisclosed incomes. Tax revenue ratios tend to rise with income, with higher income countries relying on taxes to finance a much broader range of social services and social security than lower income countries are able to. [Source: World Bank, World Development Indicators 2017, April 2017, p88].

Sheet Registered taxpayers
A2: Registered taxpayersa, 2009-23
A4: Number as at | B4: Individualsbc | C4: Companies | D4: Trusts | E4: Employers PAYE | F4: VAT vendors
A5: 31 March 2009 | B5: 5540646 | C5: 1834009 | D5: 392260 | E5: 393974 | F5: 737885
A6: 31 March 2010 | B6: 5920612 | C6: 1878856 | D6: 331954 | E6: 395575 | F6: 685523
A7: 31 March 2011 | B7: 10346175 | C7: 2078182 | D7: 326649 | E7: 386428 | F7: 664267
A8: 31 March 2012 | B8: 13703717 | C8: 2034719 | D8: 301365 | E8: 384883 | F8: 652349
A9: 31 March 2013 | B9: 15418920 | C9: 2195883 | D9: 312066 | E9: 391254 | F9: 650540
A10: 31 March 2014 | B10: 16779711 | C10: 2685405 | D10: 322188 | E10: 407066 | F10: 662194
A11: 31 March 2015 | B11: 18185538 | C11: 2935385 | D11: 331584 | E11: 429691 | F11: 679274
A12: 31 March 2016 | B12: 19075270 | C12: 3278708 | D12: 340000 | E12: 458048 | F12: 706874
A13: 31 March 2017 | B13: 19980110 | C13: 3732416 | D13: 345048 | E13: 489445 | F13: 742388
A14: 31 March 2018 | B14: 21104375 | C14: 3202007 | D14: 351564 | E14: 520918 | F14: 773783
A15: 31 March 2019 | B15: 22170513 | C15: 2020759 | D15: 357859 | E15: 552611 | F15: 802957
A16: 31 March 2020 | B16: 22919701 | C16: 2548975 | D16: 363860 | E16: 582289 | F16: 831821
A17: 31 March 2021 | B17: 23850668 | C17: 3112509 | D17: 367540 | E17: 618478 | F17: 880553
A18: 31 March 2022 | B18: 24832105 | C18: 3532646 | D18: 373084 | E18: 632599 | F18: 941406
A19: 31 March 2023 | B19: 25944562 | C19: 3926252 | D19: 379280 | E19: 643370 | F19: 953665
A20: 2013-23 | B20: =(B19-B9)/B9 -> 0.6826445691 | C20: =(C19-C9)/C9 -> 0.7880060094 | D20: 0.2153839252 | E20: 0.6443793546 | F20: 0.4659590494
A21: 2022-23 | B21: =(B19-B18)/B18 -> 0.04479914208 | C21: =(C19-C18)/C18 -> 0.1114195988 | D21: 0.01660752002 | E21: 0.01702658398 | F21: 0.01302201176
A22: Source: SARS, Tax Statistics 2023, 3 January 2024, p5; Socio-Economic Survey of South Africa 2024, p171
A23: a Excludes cases where status is in suspense estate and address unknown. The tax year for individuals starts on 1 March and ends at the end of February the following year. The tax year for companies is normally the financial year of the company for financial reporting purposes.
A24: b The official documents sometimes refer to persons' sometimes to individuals.
A25: c The number of individuals registered for income tax in 2010/11 has increased due to the new employer filing process, which requires all employees to be registered even if they are not liable to submit tax returns.

Sheet Maximum marginal tax rates
A2: Maximum marginal tax rates, 2009/10-2023/24
A3: Period | B3: PIT a | C3: CIT b | D3: STC /DT c | E3: VAT d | F3: Transfer duty
A4: 01 Apr 2009–31 Mar 2010 | B4: 0.4 | C4: 0.28 | D4: 0.1 | E4: 0.14 | F4: 0.08
A5: 01 Apr 2010–31 Mar 2011 | B5: 0.4 | C5: 0.28 | D5: 0.1 | E5: 0.14 | F5: 0.08
A6: 01 Apr 2011–31 Mar 2012 | B6: 0.4 | C6: 0.28 | D6: 0.1 | E6: 0.14 | F6: 0.08
A7: 01 Apr 2012–31 Mar 2013 | B7: 0.4 | C7: 0.28 | D7: 0.15 | E7: 0.14 | F7: 0.08
A8: 01 Apr 2013–31 Mar 2014 | B8: 0.4 | C8: 0.28 | D8: 0.15 | E8: 0.14 | F8: 0.08
A9: 01 Apr 2014–28 Feb 2015 | B9: 0.4 | C9: 0.28 | D9: 0.15 | E9: 0.14 | F9: 0.08
A10: 01 Mar 2015–31 Mar 2015 | B10: 0.41 | C10: 0.28 | D10: 0.15 | E10: 0.14 | F10: 0.11
A11: 01 Apr 2015–28 Feb 2016 | B11: 0.41 | C11: 0.28 | D11: 0.15 | E11: 0.14 | F11: 0.11
A12: 01 Mar 2016–21 Feb 2017 | B12: 0.41 | C12: 0.28 | D12: 0.15 | E12: 0.14 | F12: 0.13
A13: 22 Feb 2017–28 Feb 2017 | B13: 0.41 | C13: 0.28 | D13: 0.2 | E13: 0.14 | F13: 0.13
A14: 01 Mar 2017–31 Mar 2017 | B14: 0.45 | C14: 0.28 | D14: 0.2 | E14: 0.14 | F14: 0.13
A15: 01 Apr 2017–31 Mar 2018 | B15: 0.45 | C15: 0.28 | D15: 0.2 | E15: 0.14 | F15: 0.13
A16: 01 Apr 2018–31 Mar 2019 | B16: 0.45 | C16: 0.28 | D16: 0.2 | E16: 0.15 | F16: 0.13
A17: 01 Apr 2019–31 Mar 2020 | B17: 0.45 | C17: 0.28 | D17: 0.2 | E17: 0.15 | F17: 0.13
A18: 01 Apr 2020–31 Mar 2021 | B18: 0.45 | C18: 0.28 | D18: 0.2 | E18: 0.15 | F18: 0.13
A19: 01 Apr 2021–31 Mar 2022 | B19: 0.45 | C19: 0.28 | D19: 0.2 | E19: 0.15 | F19: 0.13
A20: 01 Apr 2022–30 Mar 2023 | B20: 0.45 | C20: 0.28 | D20: 0.2 | E20: 0.15 | F20: 0.13
A21: 31 Mar 2023–31 Mar 2023 | B21: 0.45 | C21: 0.27 | D21: 0.2 | E21: 0.15 | F21: 0.13
A22: 01 Apr 2023–31 Mar 2024 | B22: 0.45 | C22: 0.27 | D22: 0.2 | E22: 0.15 | F22: 0.13
A23: Source: SARS, Tax Statistics 2024, December 2024, p15; Socio-Economic Survey of South Africa 2024, p171
A24: a Personal income tax.
A25: b Corporate income tax.
A26: c The dividend tax replaced the secondary tax on companies from 1 April 2012. The dividend tax is a tax imposed on shareholders at a rate of 15% on receipt of dividends, whereas the secondary tax on companies was a tax imposed on companies (at a rate of 10%) on the declaration of dividends.
A27: d Value added tax.

Sheet INDIVIDUAL TAXPAYERS

Sheet Individual tax brackets
A3: Individual tax brackets, 2023/24 and 2024/25
A5: —2023/24—
A6: Taxable income | B6: —Rate of tax—
A7: R0-R237 100 | B7: 18% of each R1
A8: R237 101-R370 500 | B8: R42 678 + 26% | C8: of the amount above R237 100
A9: R370 501-R512 800 | B9: R77 362 + 31% | C9: of the amount above R370 500
A10: R512 801-R673 000 | B10: R121 475 + 36% | C10: of the amount above R512 800
A11: R673 001-R857 900 | B11: R179 147 + 39% | C11: of the amount above R673 000
A12: R857 901-R1 817 000 | B12: R251 258 + 41% | C12: of the amount above R857 900
A13: R1 817 001 and above | B13: R644 489 + 45% | C13: of the amount above R1 817 000
A14: —Rebates— | C14: —Tax threshold—
A15: Primary | B15: R17 235 | C15: Below age 65 | D15: R95 750
A16: Secondary | B16: 9444 | C16: Age 65 and over | D16: R148 217
A17: Tertiary | B17: R3 145 | C17: Age 75 and over | D17: R165 689
A20: —2024/25—
A21: Taxable income | B21: —Rate of tax—
A22: R0-R237 100 | B22: 18% of each R1
A23: R237 101-R370 500 | B23: R42 678 + 26% | C23: of the amount above R237 100
A24: R370 501-R512 800 | B24: R77 362 + 31% | C24: of the amount above R370 500
A25: R512 801-R673 000 | B25: R121 475 + 36% | C25: of the amount above R512 800
A26: R673 001-R857 900 | B26: R179 147 + 39% | C26: of the amount above R673 000
A27: R857 901-R1 817 000 | B27: R251 258 + 41% | C27: of the amount above R857 900
A28: R1 817 001 and above | B28: R644 489 + 45% | C28: of the amount above R1 817 000
A29: —Rebates— | C29: —Tax threshold—
A30: Primary | B30: R17 235 | C30: Below age 65 | D30: R95 750
A31: Secondary | B31: 9444 | C31: Age 65 and over | D31: R148 217
A32: Tertiary | B32: R3 145 | C32: Age 75 and over | D32: R165 689
A33: Source: National Treasury, Budget Review 2024, 21 February 2024

Sheet Individual taxpayers 2019-22
A2: Individual taxpayers, 2019-22
A4: Date | B4: Registereda | C4: Growth in register | D4: Tax year | E4: Expected to submit returnsb | F4: Assessed | G4: Proportion assessed
A5: 31 March 2019 | B5: 22170513 | C5: 0.051 | D5: 2019 | E5: 7122243 | F5: 5492222 | G5: =F5/E5 -> 0.7711365647
A6: 31 March 2020 | B6: 22919701 | C6: 0.034 | D6: 2020 | E6: 7098024 | F6: 5989814 | G6: =F6/E6 -> 0.8438706322
A7: 31 March 2021 | B7: 23850668 | C7: 0.041 | D7: 2021 | E7: 6786190 | F7: 6012746 | G7: 0.886
A8: 31 March 2022 | B8: 24832105 | C8: 0.041 | D8: 2022 | E8: 7068925 | F8: 5989787 | G8: 0.847
A9: Source: SARS, Tax Statistics 2023, 3 January 2024, p41
A10: a Number of individuals registered as at 31 March of each year (active cases excluding cases where status is in suspense, estate or address unknown ). Compulsory for all employees of employers to be registered for income tax from 2011.
A11: b Expected taxpayers are those who are expected to submit a return for a specific tax year. Cases can be on register and active for other years, but may not be active for a specific tax year.

Sheet Individ tax income&tax assessed
A2: Individual taxable income and tax assessed, 2019-22
A4: Tax year | B4: Number of taxpayers assessed | C4: Taxable income Rm | D4: Average taxable income R | E4: Tax assessed Rm | F4: Average tax assessed R | G4: Tax assessed as a proportion of taxable income
A5: 2019 | B5: 5492222 | C5: 1856901 | D5: 338096 | E5: 407715 | F5: 74235 | G5: 0.22
A6: 2020 | B6: 5989814 | C6: 1985425 | D6: 331467 | E6: 441710 | F6: 73744 | G6: 0.222
A7: 2021 | B7: 6012746 | C7: 1934241 | D7: 321690 | E7: 412030 | F7: 68526 | G7: 0.213
A8: 2022 | B8: 5989787 | C8: 2057814 | D8: 343554 | E8: 447584 | F8: 74725 | G8: 0.218
A9: Source: SARS, Tax Statistics 2023, 3 January 2024, p44

Sheet As.taxpayers by income numbers
A2: Assessed individual taxpayers by selected taxable income group, 2019-22
B4: 2019 | C4: 2020 | D4: 2021 | E4: 2022
A5: Taxable income group | B5: —Number of taxpayers—
A6: <= 0a | B6: 217592 | C6: 257905 | D6: 270267 | E6: 213728
A7: R1–R70 000 | B7: 531860 | C7: 765290 | D7: 923897 | E7: 964917
A8: R70 001–R350 000 | B8: 2978431 | C8: 3032818 | D8: 2934867 | E8: 2751282
A9: R350 001–R500 000 | B9: 783084 | C9: 859681 | D9: 840802 | E9: 894995
A10: R500 000 + | B10: 981255 | C10: 1074120 | D10: 1042913 | E10: 1164865
A11: Total | B11: 5492222 | C11: 5989814 | D11: 6012746 | E11: 5989787
B12: —Taxable income Rbn—
A13: <= 0a | B13: -23.2 | C13: -35.1 | D13: -23.9 | E13: -33.4
A14: R1–R70 000 | B14: 19.3 | C14: 23.8 | D14: 29 | E14: 27.4
A15: R70 001–R350 000 | B15: 585.7 | C15: 602.1 | D15: 581.8 | E15: 555.6
A16: R350 001–R500 000 | B16: 326.1 | C16: 358.3 | D16: 350.3 | E16: 373.4
A17: R500 000 + | B17: 949.1 | C17: 1036.3 | D17: 997 | E17: 1134.8
A18: Total | B18: 1856.9 | C18: 1985.4 | D18: 1934.2 | E18: 2057.8
B19: —Tax assessed Rbn—
A20: <= 0a | B20: 0 | C20: 0 | D20: 0 | E20: 0
A21: R1–R70 000 | B21: 0 | C21: 0 | D21: 0 | E21: 0
A22: R70 001–R350 000 | B22: 58 | C22: 60.3 | D22: 54.3 | E22: 50.2
A23: R350 001–R500 000 | B23: 59.6 | C23: 65.4 | D23: 61.1 | E23: 62.9
A24: R500 000 + | B24: 290.1 | C24: 316 | D24: 296.5 | E24: 334.5
A25: Total | B25: 407.7 | C25: 441.7 | D25: 412 | E25: 447.6
A26: Source: SARS, Tax Statistics 2023, 3 January 2024, p69
A27: a This bracket refers to taxpayers with assessed losses. In the majority of instances this would be the result of losses granted to individuals running businesses as sole proprietors. However, an assessed loss could also arise if a taxpayer had, for example, a taxable income of R200 000 but incurred R300 000 of medical expenses, resulting in an assessed loss.

Sheet As.taxpayers by income %
A2: Assessed individual taxpayers by selected taxable income group, 2019-22
B4: 2019 | C4: 2020 | D4: 2021 | E4: 2022
A5: Taxable income group | B5: —Proportion of taxpayers—
A6: <= 0a | B6: 0.04 | C6: 0.043 | D6: 0.045 | E6: 0.036
A7: R1–R70 000 | B7: 0.097 | C7: 0.128 | D7: 0.154 | E7: 0.161
A8: R70 001–R350 000 | B8: 0.542 | C8: 0.506 | D8: 0.488 | E8: 0.459
A9: R350 001–R500 000 | B9: 0.143 | C9: 0.144 | D9: 0.14 | E9: 0.149
A10: R500 000 + | B10: 0.179 | C10: 0.179 | D10: 0.173 | E10: 0.194
A11: Total | B11: 1 | C11: 1 | D11: 1 | E11: 1
B12: —Taxable income—
A13: <= 0a | B13: -0.013 | C13: -0.018 | D13: -0.012 | E13: -0.016
A14: R1–R70 000 | B14: 0.01 | C14: 0.012 | D14: 0.015 | E14: 0.013
A15: R70 001–R350 000 | B15: 0.315 | C15: 0.303 | D15: 0.301 | E15: 0.27
A16: R350 001–R500 000 | B16: 0.176 | C16: 0.18 | D16: 0.181 | E16: 0.181
A17: R500 000 + | B17: 0.511 | C17: 0.522 | D17: 0.515 | E17: 0.551
A18: Total | B18: 1 | C18: 1 | D18: 1 | E18: 1
B19: —Tax assessed—
A20: <= 0a | B20: 0 | C20: 0 | D20: 0 | E20: 0
A21: R1–R70 000 | B21: 0 | C21: 0 | D21: 0 | E21: 0
A22: R70 001–R350 000 | B22: 0.142 | C22: 0.136 | D22: 0.132 | E22: 0.112
A23: R350 001–R500 000 | B23: 0.146 | C23: 0.148 | D23: 0.148 | E23: 0.142
A24: R500 000 + | B24: 0.712 | C24: 0.715 | D24: 0.72 | E24: 0.747
A25: Total | B25: 1 | C25: 1 | D25: 1 | E25: 1
A26: Source: SARS, Tax Statistics 2023, 29 December 2023, p70
A27: a This bracket refers to taxpayers with assessed losses. In the majority of instances this would be the result of losses granted to individuals running businesses as sole proprietors. However, an assessed loss could also arise if a taxpayer had, for example, a taxable income of R200 000 but incurred R300 000 of medical expenses, resulting in an assessed loss.

Sheet BC Taxpayers&tax by income
A1: BC
A3: Individual taxpayers and tax paid by taxable income groups, 2022
B6: Number of taxpayers | C6: Taxable income | D6: Tax assessed
A7: R1–R70 000 | B7: 0.161 | C7: 0.013 | D7: 0
A8: R70 001–R350 000 | B8: 0.459 | C8: 0.27 | D8: 0.112
A9: R350 001–R500 000 | B9: 0.149 | C9: 0.181 | D9: 0.142
A10: R500 000 + | B10: 0.194 | C10: 0.551 | D10: 0.747

Sheet Indiv taxpayers&income by age
B2: Individual taxable income and tax assessed by age group, 2022
B4: Age group | C4: Number of taxpayers | D4: Taxable income | E4: Tax assessed
D5: —Rbn—
B6: <18 | C6: 39372 | D6: 5.5 | E6: 0.8
B7: 18–24 | C7: 409817 | D7: 27.5 | E7: 2.4
B8: 25–34 | C8: 1423408 | D8: 351.6 | E8: 60.8
B9: 35–44 | C9: 1533415 | D9: 587.4 | E9: 130.8
B10: 45–54 | C10: 1220857 | D10: 574.6 | E10: 140.1
B11: 55–64 | C11: 831169 | D11: 363.1 | E11: 87.6
B12: 65–74 | C12: 362427 | D12: 106.3 | E12: 18.9
B13: 75 and older | C13: 169322 | D13: 41.8 | E13: 6.2
B14: Total | C14: =SUM(C6:C13) -> 5989787 | D14: 2057.8 | E14: 447.6
C15: —Proportion of total—
B16: <18 | C16: 0.007 | D16: 0.003 | E16: 0.002
B17: 18–24 | C17: 0.068 | D17: 0.013 | E17: 0.005
B18: 25–34 | C18: 0.238 | D18: 0.171 | E18: 0.136
B19: 35–44 | C19: 0.256 | D19: 0.285 | E19: 0.292
B20: 45–54 | C20: 0.204 | D20: 0.279 | E20: 0.313
B21: 55–64 | C21: 0.139 | D21: 0.176 | E21: 0.196
B22: 65–74 | C22: 0.061 | D22: 0.052 | E22: 0.042
B23: 75 and older | C23: 0.028 | D23: 0.02 | E23: 0.014
B24: Total | C24: 1 | D24: 1 | E24: 1
B25: Source: SARS, Tax Statistics 2023, 3 January 2024, p74

Sheet As.taxpayers top group numbers
A2: Assessed individual taxpayers for top income groupsa, 2019-22
B4: 2019 | C4: 2020 | D4: 2021 | E4: 2022
A5: Taxable income group | B5: — Number of taxpayers —
A6: R1 000 001–R2 000 000 | B6: 183668 | C6: 203210 | D6: 198811 | E6: 229926
A7: R2 000 001–R5 000 000 | B7: 43238 | C7: 45960 | D7: 43741 | E7: 50937
A8: R5 000 001 + | B8: 8213 | C8: 8632 | D8: 7884 | E8: 9435
A9: Total | B9: =SUM(B6:B8) -> 235119 | C9: =SUM(C6:C8) -> 257802 | D9: =SUM(D6:D8) -> 250436 | E9: =SUM(E6:E8) -> 290298
B10: —Taxable income Rbn—
A11: R1 000 001–R2 000 000 | B11: 241.8 | C11: 266.6 | D11: 261 | E11: 302
A12: R2 000 001–R5 000 000 | B12: 123.1 | C12: 130.8 | D12: 124 | E12: 144.3
A13: R5 000 001 + | B13: 79.5 | C13: 86.7 | D13: 76.1 | E13: 96.7
A14: Total | B14: =SUM(B11:B13) -> 444.4 | C14: =SUM(C11:C13) -> 484.1 | D14: =SUM(D11:D13) -> 461.1 | E14: =SUM(E11:E13) -> 543
B15: —Tax assessed Rbn—
A16: R1 000 001–R2 000 000 | B16: 79.5 | C16: 87.6 | D16: 84.4 | E16: 96.3
A17: R2 000 001–R5 000 000 | B17: 48 | C17: 50.8 | D17: 47.4 | E17: 54.9
A18: R5 000 001 + | B18: 34.1 | C18: 37.2 | D18: 32.2 | E18: 40.9
A19: Total | B19: =SUM(B16:B18) -> 161.6 | C19: =SUM(C16:C18) -> 175.6 | D19: =SUM(D16:D18) -> 164 | E19: =SUM(E16:E18) -> 192.1
A20: Source: SARS, Tax Statistics 2023, 3 January 2024, p69
A22: a Starts at annual income of R1 500 001.

Sheet Ass.indiv.tax.top group %
A2: Assessed individual taxpayers for top income groupsa, 2019-22
B4: 2019 | C4: 2020 | D4: 2021 | E4: 2022
A5: Taxable income group | B5: — Proportion of taxpayers —
A6: R1 000 001–R2 000 000 | B6: 0.033 | C6: 0.034 | D6: 0.033 | E6: 0.038
A7: R2 000 001–R5 000 000 | B7: 0.008 | C7: 0.008 | D7: 0.007 | E7: 0.009
A8: R5 000 001 + | B8: 0.001 | C8: 0.001 | D8: 0.001 | E8: 0.002
A9: Total | B9: =SUM(B6:B8) -> 0.042 | C9: =SUM(C6:C8) -> 0.043 | D9: =SUM(D6:D8) -> 0.041 | E9: =SUM(E6:E8) -> 0.049
B10: —Taxable income—
A11: R1 000 001–R2 000 000 | B11: 0.13 | C11: 0.134 | D11: 0.135 | E11: 0.147
A12: R2 000 001–R5 000 000 | B12: 0.066 | C12: 0.066 | D12: 0.064 | E12: 0.07
A13: R5 000 001 + | B13: 0.043 | C13: 0.044 | D13: 0.039 | E13: 0.047
A14: Total | B14: =SUM(B11:B13) -> 0.239 | C14: =SUM(C11:C13) -> 0.244 | D14: =SUM(D11:D13) -> 0.238 | E14: =SUM(E11:E13) -> 0.264
B15: —Tax assessed—
A16: R1 000 001–R2 000 000 | B16: 0.195 | C16: 0.198 | D16: 0.205 | E16: 0.215
A17: R2 000 001–R5 000 000 | B17: 0.118 | C17: 0.115 | D17: 0.115 | E17: 0.123
A18: R5 000 001 + | B18: 0.084 | C18: 0.084 | D18: 0.078 | E18: 0.091
A19: Total | B19: =SUM(B16:B18) -> 0.397 | C19: =SUM(C16:C18) -> 0.397 | D19: =SUM(D16:D18) -> 0.398 | E19: =SUM(E16:E18) -> 0.429
A20: Source: SARS, Tax Statistics 2023, 3 January 2024, p70
A22: a Starts at annual income of R1 500 001.

Sheet Individual taxpayers by sex
A2: Individual taxable income and tax assessed by sex, 2021 and 2022
B4: —Number of taxpayers— | D4: —Taxable income— | F4: —Tax assessed—
B5: 2021 | C5: 2022 | D5: 2021 | E5: 2022 | F5: 2021 | G5: 2022
A6: Sex | D6: —Rbn—
A7: Male | B7: 3141371 | C7: 3070111 | D7: 1108.9 | E7: 1178.6 | F7: 254.9 | G7: 276.5
A8: Female | B8: 2832068 | C8: 2884706 | D8: 800.3 | E8: 855.7 | F8: 148.7 | G8: 163.3
A9: Unknowna | B9: 39307 | C9: 34970 | D9: 25 | E9: 23.5 | F9: 8.4 | G9: 7.7
A10: Total | B10: 6012746 | C10: 5989787 | D10: 1934.2 | E10: 2057.8 | F10: 412 | G10: 447.6
A11: —Proportion of total—
A12: Male | B12: 0.522 | C12: 0.513 | D12: 0.573 | E12: 0.573 | F12: 0.619 | G12: 0.618
A13: Female | B13: 0.471 | C13: 0.482 | D13: 0.414 | E13: 0.416 | F13: 0.361 | G13: 0.365
A14: Unknowna | B14: 0.007 | C14: 0.006 | D14: 0.013 | E14: 0.011 | F14: 0.02 | G14: 0.017
A15: Total | B15: 1 | C15: 1 | D15: 1 | E15: 1 | F15: 1 | G15: 1
A16: Source: SARS, Tax Statistics 2023, 3 January 2024, p75
A18: a Unidentified gender.

Sheet Ass. indiv. taxpayers by income
A2: Assessed individual taxpayers by selected source of income, 2021 and 2022
B4: —Number of taxpayers— | D4: —Taxable income—
A5: Source of income | B5: 2021 | C5: 2022 | D5: 2021 | E5: 2022
B6: —Rbn—
A7: Income (salaries and wages, remuneration) | B7: 4897162 | C7: 4920152 | D7: 1389.2 | E7: 1446
A8: Pension income (only taxable portion) | B8: 479029 | C8: 454358 | D8: 76.1 | E8: 80.1
A9: Annual payment (bonus, leave pay etc) | B9: 3499427 | C9: 3541000 | D9: 152.9 | E9: 173.9
A10: Commission | B10: 302632 | C10: 307367 | D10: 43 | E10: 50.4
A11: Overtime | B11: 1404643 | C11: 1475276 | D11: 41.6 | E11: 49
A12: Annuity from a retirement annuity fund | B12: 341756 | C12: 377390 | D12: 23 | E12: 26.9
A13: Director's income | B13: 2085 | C13: 776 | D13: 0.4 | E13: 0.2
A14: Independent contractors | B14: 76061 | C14: 75826 | D14: 8.4 | E14: 10.2
A15: Source: SARS, Tax Statistics 2023, 3 January 2024, p84

Sheet Employed&PAYE by economic act
A2: Employed and PAYEa payments received by economic activity, 2021/22 and 2022/23
A4: Economic activity | B4: Employedb | D4: PAYE payments
B5: 2021/22 | C5: 2022/23 | D5: 2021/22 | E5: 2022/23
A6: Agriculture, forestry, and fishing | B6: — | C6: — | D6: 0.023 | E6: 0.022
A7: Mining and quarrying | B7: 0.04549518228 | C7: 0.044 | D7: 0.057 | E7: 0.058
A8: Manufacturing | B8: 0.1174133307 | C8: 0.121 | D8: 0.065 | E8: 0.066
A9: Electricity, gas, and water | B9: 0.005960067547 | C9: 0.006 | D9: 0.015 | E9: 0.015
A10: Construction | B10: 0.05304460117 | C10: 0.058 | D10: 0.021 | E10: 0.02
A11: Wholesale and retail trade, catering, and accommodation | B11: 0.2108870567 | C11: 0.216 | D11: 0.064 | E11: 0.064
A12: Transport, storage, and communications | B12: 0.0408264627 | C12: 0.045 | D12: 0.034 | E12: 0.034
A13: Financial intermediation, insurance real estate, and business services | B13: 0.2310519519 | C13: 0.233 | D13: 0.431 | E13: 0.441
A14: Community, social and personal services | B14: 0.295321347 | C14: 0.278 | D14: 0.29 | E14: 0.282
A15: Total | B15: 1 | C15: 1 | D15: 1 | E15: 1
A16: Source: Stats SA, Quarterly Employment Statistics March 2024, Statistical release P0277, 25 June 2024; SARS, Tax Statistics 2023, 3 January 2024, p85
A17: a Pay As You Earn.
A18: b Formal non-agricultural industries. Estimated employment at the end of March 2022 and 2023.

Sheet Ass. ind. taxpayers by prov
A2: Individual taxable income and tax assessed by province, 2022
A4: Provincea | B4: Number of assessed taxpayers | C4: As a proportion of provincial populationb | D4: Taxable income | E4: Tax assessed | F4: Average taxable income R
D5: —Rbn—
A6: Eastern Cape | B6: 489993 | C6: 0.06777028698 | D6: 140.8 | E6: 25.4 | F6: 287298
A7: Free State | B7: 280721 | C7: 0.09469702592 | D7: 81.4 | E7: 15.1 | F7: 289932
A8: Gauteng | B8: 2135789 | C8: 0.1414483851 | D8: 863.2 | E8: 207.5 | F8: 404153
A9: KwaZulu-Natal | B9: 947563 | C9: 0.07626932494 | D9: 278.3 | E9: 54 | F9: 293730
A10: Limpopo | B10: 307188 | C10: 0.04673680809 | D10: 93.4 | E10: 17.9 | F10: 304019
A11: Mpumalanga | B11: 360080 | C11: 0.07000920028 | D11: 111.1 | E11: 22.9 | F11: 308620
A12: North West | B12: 264680 | C12: 0.06956938632 | D12: 82.2 | E12: 16.8 | F12: 310579
A13: Northern Cape | B13: 127080 | C13: 0.09372061551 | D13: 39.2 | E13: 7.7 | F13: 308192
A14: Western Cape | B14: 1076693 | C14: 0.1448526978 | D14: 368.2 | E14: 80.4 | F14: 342019
A15: South Africa | B15: 5989787 | C15: 0.0965666311 | D15: 2057.8 | E15: 447.6 | F15: 343554
A16: —Proportion of total—
A17: Eastern Cape | B17: 0.082 | D17: 0.068 | E17: 0.057
A18: Free State | B18: 0.047 | D18: 0.04 | E18: 0.034
A19: Gauteng | B19: 0.357 | D19: 0.419 | E19: 0.464
A20: KwaZulu-Natal | B20: 0.158 | D20: 0.135 | E20: 0.121
A21: Limpopo | B21: 0.051 | D21: 0.045 | E21: 0.04
A22: Mpumalanga | B22: 0.06 | D22: 0.054 | E22: 0.051
A23: North West | B23: 0.044 | D23: 0.04 | E23: 0.037
A24: Northern Cape | B24: 0.021 | D24: 0.019 | E24: 0.017
A25: Western Cape | B25: 0.18 | D25: 0.179 | E25: 0.18
A26: South Africa | B26: 1 | D26: 1 | E26: 1
A27: Source: SARS, Tax Statistics 2023, 3 January 2024, p54; Stats SA, Census 2022
A28: a Based on where the taxpayer resides. Most assessed taxpayers are based in Gauteng and they have the highest average taxable income at R404 153. The Eastern Cape has the lowest average taxable income at R287 298.
A29: b CRA calculations.

Sheet Ass ind.taxpayers by municipal.
A2: Assessed individual taxpayers by province and selected local municipality, 2022
A4: Province/local municipalitya | B4: Number of assessed taxpayers | C4: Proportion of total provincial taxpayers | D4: Taxable income Rbn | E4: Tax assessed Rbn | F4: Average taxable income R
A5: Eastern Cape
A6: Buffalo City Metropolitan | B6: 103571 | C6: 0.211 | D6: 31.9 | E6: 6 | F6: 308416
A7: Enoch Mgijima | B7: 15870 | C7: 0.031 | D7: 3.2 | E7: 0.8 | F7: 282105
A8: King Sabata Dalindyebo | B8: 34604 | C8: 0.072 | D8: 7.1 | E8: 1.9 | F8: 306843
A9: Kouga | B9: 15229 | C9: 0.031 | D9: 4.1 | E9: 0.8 | F9: 270602
A10: Nelson Mandela Bay Metropolitan | B10: 168893 | C10: 0.345 | D10: 51.1 | E10: 9.5 | F10: 302742
A11: Other | B11: 151826 | C11: 0.31 | D11: 38.6 | E11: 6.4 | F11: —
A12: Total | B12: 489993 | C12: 1 | D12: 140.8 | E12: 25.4 | F12: 287298
A13: Free State
A14: Maluti a Phofung | B14: 24656 | C14: 0.088 | D14: 6.4 | E14: 1 | F14: 261032
A15: Mangaung Metropolitan | B15: 108932 | C15: 0.388 | D15: 34.9 | E15: 6.6 | F15: 320200
A16: Matjhabeng | B16: 41669 | C16: 0.148 | D16: 13.1 | E16: 2.4 | F16: 314358
A17: Metsimaholo | B17: 21298 | C17: 0.076 | D17: 7.1 | E17: 1.5 | F17: 333693
A18: Moqhaka | B18: 15514 | C18: 0.055 | D18: 3.9 | E18: 0.6 | F18: 251515
A19: Other | B19: 68652 | C19: 0.255 | D19: 16 | E19: 3 | F19: —
A20: Total | B20: 280721 | C20: 1 | D20: 81.4 | E20: 15.1 | F20: 289932
A21: Gauteng
A22: Johannesburg Metropolitan | B22: 775508 | C22: 0.363 | D22: 366.8 | E22: 96.4 | F22: 472982
A23: Tshwane Metropolitan | B23: 600593 | C23: 0.281 | D23: 244.8 | E23: 56.2 | F23: 407556
A24: Ekurhuleni Metropolitan | B24: 537036 | C24: 0.251 | D24: 185.5 | E24: 39.9 | F24: 345496
A25: Emfuleni | B25: 91864 | C25: 0.043 | D25: 29.6 | E25: 5.7 | F25: 321845
A26: Mogale City | B26: 53506 | C26: 0.025 | D26: 19.5 | E26: 4.3 | F26: 364183
A27: Other | B27: 77282 | C27: 0.036 | D27: 17 | E27: 5 | F27: —
A28: Total | B28: 2135789 | C28: 1 | D28: 863.2 | E28: 207.5 | F28: 404153
A29: KwaZulu-Natal
A30: eThekwini Metropolitan | B30: 516025 | C30: 0.545 | D30: 159.2 | E30: 32 | F30: 308559
A31: KwaDukuza | B31: 23878 | C31: 0.025 | D31: 8.9 | E31: 2.1 | F31: 372686
A32: Newcastle | B32: 33027 | C32: 0.035 | D32: 9.3 | E32: 1.7 | F32: 282648
A33: Msunduzi | B33: 76467 | C33: 0.081 | D33: 24.1 | E33: 4.6 | F33: 315025
A34: uMhlathuze | B34: 50648 | C34: 0.053 | D34: 16.5 | E34: 3.3 | F34: 324949
A35: Other | B35: 247518 | C35: 0.261 | D35: 60.3 | E35: 10.3 | F35: —
A36: Total | B36: 947563 | C36: 1 | D36: 278.3 | E36: 54 | F36: 293730
A37: Limpopo
A38: Greater Tubatse/Fetakgomo | B38: 21185 | C38: 0.069 | D38: 6.3 | E38: 1.2 | F38: 297333
A39: Greater Tzaneen | B39: 21077 | C39: 0.069 | D39: 6.1 | E39: 1.1 | F39: 287185
A40: Makhado | B40: 22596 | C40: 0.074 | D40: 6.7 | E40: 1.2 | F40: 298283
A41: Polokwane | B41: 69484 | C41: 0.226 | D41: 23.1 | E41: 4.6 | F41: 332810
A42: Thulamela | B42: 30749 | C42: 0.1 | D42: 9.2 | E42: 1.6 | F42: 299912
A43: Other | B43: 142097 | C43: 0.462 | D43: 42 | E43: 8.2 | F43: —
A44: Total | B44: 307188 | C44: 1 | D44: 93.4 | E44: 17.9 | F44: 304019
A45: Mpumalanga
A46: Bushbuckridge | B46: 18622 | C46: 0.052 | D46: 4.9 | E46: 0.8 | F46: 265063
A47: Emalahleni | B47: 61336 | C47: 0.17 | D47: 22.1 | E47: 4.4 | F47: 361093
A48: Govan Mbeki | B48: 56060 | C48: 0.156 | D48: 19 | E48: 4.2 | F48: 339333
A49: Mbombela/Umjindi | B49: 75662 | C49: 0.21 | D49: 22 | E49: 4.4 | F49: 291375
A50: Steve Tshwete | B50: 34971 | C50: 0.097 | D50: 12.4 | E50: 2.7 | F50: 355094
A51: Other | B51: 113429 | C51: 0.315 | D51: 30.7 | E51: 6.4 | F51: —
A52: Total | B52: 360080 | C52: 1 | D52: 111.1 | E52: 22.9 | F52: 308620
A53: North West
A54: Matlosana | B54: 43589 | C54: 0.165 | D54: 12.4 | E54: 2.4 | F54: 285095
A55: Madibeng | B55: 30972 | C55: 0.117 | D55: 10.6 | E55: 2.3 | F55: 340630
A56: Mafikeng | B56: 21558 | C56: 0.081 | D56: 7 | E56: 1.3 | F56: 326190
A57: Rustenburg | B57: 73291 | C57: 0.277 | D57: 26.5 | E57: 6 | F57: 361081
A58: Ventersdorp/Tlokwe | B58: 30698 | C58: 0.116 | D58: 9.2 | E58: 1.8 | F58: 301095
A59: Other | B59: 64572 | C59: 0.244 | D59: 16.5 | E59: 3 | F59: —
A60: Total | B60: 264680 | C60: 1 | D60: 82.2 | E60: 16.8 | F60: 310579
A61: Northern Cape
A62: Dawid Kruiper | B62: 13009 | C62: 0.102 | D62: 3.5 | E62: 0.6 | F62: 270121
A63: Gamagara | B63: 8676 | C63: 0.068 | D63: 4.4 | E63: 1.1 | F63: 502882
A64: Ga-Segonyana | B64: 14512 | C64: 0.114 | D64: 4.9 | E64: 1 | F64: 336549
A65: Nama Khoi | B65: 5964 | C65: 0.047 | D65: 1.6 | E65: 0.3 | F65: 276492
A66: Sol Plaatjie | B66: 38467 | C66: 0.303 | D66: 12.2 | E66: 2.3 | F66: 316895
A67: Other | B67: 46452 | C67: 0.366 | D67: 12.6 | E67: 2.4 | F67: —
A68: Total | B68: 127080 | C68: 1 | D68: 39.2 | E68: 7.7 | F68: 308192
A69: Western Cape
A70: Cape Town Metropolitan | B70: 764329 | C70: 0.71 | D70: 277.7 | E70: 62.4 | F70: 363325
A71: Drakenstein | B71: 42979 | C71: 0.04 | D71: 14.5 | E71: 3.2 | F71: 338072
A72: George | B72: 34505 | C72: 0.032 | D72: 9.5 | E72: 1.8 | F72: 275786
A73: Mossel Bay | B73: 22927 | C73: 0.021 | D73: 6.3 | E73: 1.1 | F73: 274087
A74: Stellenbosch | B74: 27008 | C74: 0.025 | D74: 11.8 | E74: 3 | F74: 435649
A75: Other | B75: 184945 | C75: 0.172 | D75: 48.4 | E75: 8.9 | F75: —
A76: Total | B76: 1076693 | C76: 1 | D76: 368.2 | E76: 80.4 | F76: 342019
A77: Source: SARS, Tax Statistics 2023, 3 January 2024, pp139-157
A79: a Based on where the taxpayer resides.
A80: The highest proportion of assessed taxpayers, 35.7%, were registered in Gauteng and 36.3% of Gauteng's assessed taxpayers lived in the Johannesburg Metro. They have the highest average taxable income at R472 982, followed by Western Cape at R342 019, the North West at R310 579, Mpumalanga at R308 620, the Northern Cape at R308 192 and Limpopo at R304 019. KwaZulu-Natal and the Free State had the next lowest average taxable income at R293 730 and R289 932 respectively. The Eastern Cape had the lowest average taxable income at R287 298.

Sheet Top personal inc tax SC
A2: Top personal income tax ratesa, selected countries, 1980-2022
A4: Country | B4: 1980 | C4: 1990 | D4: 2000 | E4: 2010 | F4: 2015 | G4: 2020 | H4: 2022
A5: Australia | B5: 62 | C5: 49 | D5: 47 | E5: 45 | F5: 47 | G5: 45 | H5: 45
A6: Botswana | B6: 75 | C6: 50 | D6: 25 | E6: 25 | F6: 25 | G6: 25 | H6: 25
A7: Brazil | B7: 55 | C7: 25 | D7: 28 | E7: 28 | F7: 28 | G7: 28 | H7: 28
A8: Chile | B8: 58 | C8: 50 | D8: 45 | E8: 40 | F8: 40 | G8: 36 | H8: 36
A9: China | B9: — | C9: 45 | D9: 45 | E9: 45 | F9: 45 | G9: 45 | H9: 45
A10: Denmark | B10: 66 | C10: 68 | D10: 59 | E10: 52 | F10: 52 | G10: 52 | H10: 52
A11: Egypt | B11: 80 | C11: 65 | D11: 34 | E11: 20 | F11: 23 | G11: 25 | H11: 25
A12: France | B12: 60 | C12: 53 | D12: 54 | E12: 43 | F12: 50 | G12: 51 | H12: 51
A13: Germany | B13: 65 | C13: 53 | D13: 56 | E13: 47 | F13: 47 | G13: 47 | H13: 47
A14: Ghana | B14: 60 | C14: 55 | D14: 30 | E14: 25 | F14: 25 | G14: 30 | H14: 30
A15: Greece | B15: 60 | C15: 50 | D15: 42 | E15: 40 | F15: 50 | G15: 54 | H15: 54
A16: Hong Kong | B16: 15 | C16: 25 | D16: 17 | E16: 17 | F16: 17 | G16: 17 | H16: 17
A17: India | B17: 60 | C17: 53 | D17: 30 | E17: 31 | F17: 35 | G17: 43 | H17: 43
A18: Indonesia | B18: 50 | C18: 35 | D18: 35 | E18: 30 | F18: 30 | G18: 30 | H18: 35
A19: Ireland | B19: 60 | C19: 56 | D19: 42 | E19: 41 | F19: 40 | G19: 40 | H19: 40
A20: Israel | B20: 66 | C20: 48 | D20: 50 | E20: 46 | F20: 50 | G20: 50 | H20: 50
A21: Italy | B21: 72 | C21: 66 | D21: 51 | E21: 43-45 | F21: 47-49 | G21: 44-47 | H21: 44-47
A22: Japan | B22: 75 | C22: 65 | D22: 50 | E22: 50 | F22: 56 | G22: 56 | H22: 56
A23: Kazakhstan | B23: N/A | C23: N/A | D23: N/A | E23: 10 | F23: 10 | G23: 10 | H23: 10
A24: Lithuania | B24: N/A | C24: N/A | D24: 33 | E24: 15 | F24: 15 | G24: 32 | H24: 32
A25: Mexico | B25: 55 | C25: 40 | D25: 40 | E25: 30 | F25: 35 | G25: 35 | H25: 35
A26: Mozambique | B26: N/A | C26: N/A | D26: N/A | E26: 32 | F26: 32 | G26: 32 | H26: 32
A27: Netherlands | B27: 72 | C27: 60 | D27: 52 | E27: 52 | F27: 52 | G27: 50 | H27: 50
A28: Nigeria | B28: 70 | C28: 55 | D28: 25 | E28: 25 | F28: 24 | G28: 24 | H28: 24
A29: Pakistan | B29: 55 | C29: 50 | D29: 35 | E29: 20 | F29: 30 | G29: 35 | H29: 35
A30: Philippines | B30: 70 | C30: 35 | D30: 32 | E30: 32 | F30: 32 | G30: 35 | H30: 35
A31: Poland | B31: N/A | C31: N/A | D31: 40 | E31: 32 | F31: 32 | G31: 36 | H31: 36
A32: Russia | B32: 100 | C32: 80 | D32: 30 | E32: 13 | F32: 13 | G32: 13 | H32: 15
A33: Saudi Arabia | B33: N/A | C33: N/A | D33: N/A | E33: 0 | F33: 0 | G33: 0 | H33: 0
A34: South Africab | B34: 60 | C34: 45 | D34: 45 | E34: 40 | F34: 41 | G34: 45 | H34: 45
A35: Spain | B35: 66 | C35: 56 | D35: 48 | E35: 35 | F35: 46 | G35: 45 | H35: 47
A36: Switzerland | B36: 31-44 | C36: 33-43 | D36: 31-40 | E36: 26-42 | F36: 26-42 | G36: 26-43 | H36: 26-43
A37: Thailand | B37: 60 | C37: 55 | D37: 37 | E37: 37 | F37: 35 | G37: 35 | H37: 35
A38: Turkey | B38: 75 | C38: 50 | D38: 45 | E38: 35 | F38: 35 | G38: 40 | H38: 40
A39: Uganda | B39: — | C39: 50 | D39: 30 | E39: 30 | F39: 40 | G39: 40 | H39: 40
A40: United Kingdom | B40: 83 | C40: 40 | D40: 40 | E40: 50 | F40: 45 | G40: 45 | H40: 45
A41: United States | B41: 70-75 | C41: 33-42 | D41: 40-46 | E41: 35-41 | F41: 44-51 | G41: 40-53 | H41: 40-53
A42: Source: Fraser Institute, Economic Freedom of the World, 2024 Annual Report, Country Data Tables, accessed 11 December 2024
A43: a Marginal rate, percentages.
A44: b In South Africa in 2024/25, the top marginal rate of 41% applies to income above R857 901 and rate of 45% applies to income above R1 817 001. Other countries have different thresholds.
A45: N/A — Not available.

Sheet CORPORATE TAXPAYERS.

Sheet Number of companies 2020-23
A2: Corporate taxpayers
A4: Number of companies, 2019-23
A6: Date | B6: Registered companiesa | C6: Growth in register | D6: Tax year | E6: Expected to submit returnsb | F6: Assessed | G6: Proportion assessed
A7: 31 March 2020 | B7: 2548975 | C7: 0.261 | D7: 2019 | E7: 1185438 | F7: 1193288 | G7: 1.007
A8: 31 March 2021 | B8: 3112509 | C8: 0.221 | D8: 2020 | E8: 1218911 | F8: 1155201 | G8: 0.948
A9: 31 March 2022 | B9: 3532646 | C9: 0.135 | D9: 2021 | E9: 1206913 | F9: 1057040 | G9: 0.876
A10: 31 March 2023 | B10: 3926252 | C10: 0.111 | D10: 2022 | E10: 1057435 | F10: 781324 | G10: 0.739
A11: Source: SARS, Tax Statistics 2023, 3 January 2024, p176
A12: a All companies and close corporations are automatically provisional taxpayers. The tax year for companies is normally the financial year of the company for financial reporting purposes. Excludes cases where status is in suspense, estate, and address unknown.
A13: b These are companies that are active and not dormant.

Sheet LG Companies register
A1: LG
A2: Companies register growth, 2020-23
A4: 31 March 2020 | B4: 0.261
A5: 31 March 2021 | B5: 0.221
A6: 31 March 2022 | B6: 0.135
A7: 31 March 2023 | B7: 0.111

Sheet Companies income,tax assessed
A2: Number of companies, taxable income, and tax assessed, 2021
A4: Taxable incomea | B4: Number | C4: Taxable income | D4: Assessed tax | E4: Effective rate
C5: —Rbn—
A6: Loss | B6: 282123 | C6: -1588.5 | D6: 0.5 | E6: N/A
A7: Nil | B7: 556405 | C7: — | D7: 0.7 | E7: N/A
A8: R1–R1 million | B8: 182014 | C8: 33.4 | D8: 6.7 | E8: 0.2
A9: R1 million–R100 million | B9: 35656 | C9: 252.9 | D9: 70.7 | E9: 0.279
A10: R100 million+a | B10: 842 | C10: 751.1 | D10: 206.1 | E10: 0.274
A11: Total | B11: 1057040 | C11: 1037.3 | D11: 284.6 | E11: 0.274
A12: Source: SARS, Tax Statistics 2023, 3 January 2024, p177
A13: a Companies with taxable income greater than R100 million constituted 0.1% of the number of companies, but contributed 72.4% of taxable income and 72.4% of assessed tax.

Sheet Corp. tax by economic activity
A2: Corporate taxable income and tax assessed by sector and economic activity, 2019-21a
B4: —Taxpayersb— | E4: —Taxable incomec — | H4: —Tax assessed—
E5: —Rbn— | H5: —Rbn—
B6: 2019 | C6: 2020 | D6: 2021 | E6: 2019 | F6: 2020 | G6: 2021 | H6: 2019 | I6: 2020 | J6: 2021
A7: Primary sector | B7: 63039 | C7: 70032 | D7: 65483 | E7: -82.4 | F7: -74 | G7: 140.9 | H7: 32.1 | I7: 40.5 | J7: 92.4
A8: Agriculture, forestry and fishing | B8: 55445 | C8: 61760 | D8: 58138 | E8: -57.3 | F8: -64.9 | G8: -60.1 | H8: 4.9 | I8: 4.8 | J8: 5.3
A9: Mining and quarrying | B9: 7594 | C9: 8272 | D9: 7345 | E9: -25.1 | F9: -9 | G9: 201 | H9: 27.2 | I9: 35.7 | J9: 87
A10: Secondary sector | B10: 202435 | C10: 206334 | D10: 189804 | E10: -403.7 | F10: -506.4 | G10: -468.9 | H10: 38.6 | I10: 33.7 | J10: 46.1
A11: Manufacturing | B11: 92876 | C11: 93106 | D11: 85675 | E11: -84.2 | F11: -137.1 | G11: -66.3 | H11: 31.1 | I11: 25.9 | J11: 37.4
A12: Electricity, gas and water | B12: 5181 | C12: 5059 | D12: 4882 | E12: -228.5 | F12: -274.1 | G12: -306.8 | H12: 2.4 | I12: 2.8 | J12: 4.5
A13: Construction | B13: 104378 | C13: 108169 | D13: 99247 | E13: -91.1 | F13: -95.2 | G13: -95.8 | H13: 5.2 | I13: 5.1 | J13: 4.2
A14: Tertiary sector | B14: 506848 | C14: 507201 | D14: 480768 | E14: -132.7 | F14: -241.9 | G14: -223.3 | H14: 145.7 | I14: 131.9 | J14: 146.1
A15: Wholesale and retail trade, catering and accommodation | B15: 124642 | C15: 125677 | D15: 119752 | E15: -0.2 | F15: -31.8 | G15: 5.8 | H15: 33.2 | I15: 29.9 | J15: 37.9
A16: Transport, storage and communications | B16: 27151 | C16: 27425 | D16: 25933 | E16: -112.4 | F16: -137.1 | G16: -173.1 | H16: 15.2 | I16: 15.4 | J16: 14.3
A17: Financial intermediation, insurance, real estate and business services | B17: 268018 | C17: 267394 | D17: 253241 | E17: -2.5 | F17: -50.4 | G17: -26.5 | H17: 89.5 | I17: 80 | J17: 87.6
A18: Community, social and personal services | B18: 87037 | C18: 86705 | D18: 81842 | E18: -17.6 | F18: -22.6 | G18: -29.4 | H18: 7.8 | I18: 6.7 | J18: 6.3
A19: Otherd | B19: 420966 | C19: 371634 | D19: 320985 | E19: -0.2 | F19: 0 | G19: 0 | H19: 0 | I19: 0 | J19: 0
A20: Total | B20: 1193288 | C20: 1155201 | D20: 1057040 | E20: –e | F20: —e | G20: –e | H20: 216.5 | I20: 206.2 | J20: 284.6
A21: Source: SARS, Tax Statistics 2023, 3 January 2024, p195
A23: a 2019: 98.2%, 2020: 99.6% and 2021: 97.6% assessed tax as a proportion of provisional tax.
A24: b All companies and close corporations are automatically provisional taxpayers. On 30 September 2022, the financial intermediation, insurance, real estate and business services sector had the highest number of taxpayers (24% of the assessed total) in respect of the 2021 tax year. This sector accounted for 30.8% of the tax assessed for 2021. The sector with the lowest number of taxpayers (0.5% of the assessed total), in respect of the 2021 tax year was the electricity, gas and water sector, which accounted for 1.6% of the tax assessed.
A25: c Of the 1 057 040 companies assessed for tax year 2021, 20.7% had positive taxable income; a further 52.6% reported zero taxable income and the remaining 26.7% reported an assessed losses. Only 432 large companies (0.2% of the companies with positive taxable income) each had taxable income of more than R200 million and were liable for the 67.1% of the CTI assessed.
A26: d Source of income was indicated as 'Other' or was left blank on tax return.
A27: e The total was not provided in the source.

Sheet Corp tax asses.by econ.act. %
A2: Corporate tax assessed by sector and economic activitya, 2019-21
B4: —Proportion— of taxpayers | E4: —Proportion— of tax assessed | H4: —Sectoral proportion of GVAb—
B5: 2019 | C5: 2020 | D5: 2021 | E5: 2019 | F5: 2020 | G5: 2021 | H5: 2019 | I5: 2020 | J5: 2021
A6: Primary sector | B6: 0.053 | C6: 0.061 | D6: 0.062 | E6: 0.148 | F6: 0.196 | G6: 0.325 | H6: 0.084 | I6: 0.098 | J6: 0.113
A7: Agriculture, forestry and fishing | B7: 0.046 | C7: 0.053 | D7: 0.055 | E7: 0.023 | F7: 0.023 | G7: 0.019 | H7: 0.022 | I7: 0.028 | J7: 0.028
A8: Mining and quarrying | B8: 0.006 | C8: 0.007 | D8: 0.007 | E8: 0.125 | F8: 0.173 | G8: 0.306 | H8: 0.062 | I8: 0.07 | J8: 0.085
A9: Secondary sector | B9: 0.17 | C9: 0.179 | D9: 0.18 | E9: 0.179 | F9: 0.164 | G9: 0.162 | H9: 0.201 | I9: 0.188 | J9: 0.19
A10: Manufacturing | B10: 0.078 | C10: 0.081 | D10: 0.081 | E10: 0.144 | F10: 0.125 | G10: 0.131 | H10: 0.138 | I10: 0.13 | J10: 0.134
A11: Electricity, gas and water | B11: 0.004 | C11: 0.004 | D11: 0.005 | E11: 0.011 | F11: 0.014 | G11: 0.016 | H11: 0.03 | I11: 0.031 | J11: 0.031
A12: Construction | B12: 0.087 | C12: 0.094 | D12: 0.094 | E12: 0.024 | F12: 0.025 | G12: 0.015 | H12: 0.033 | I12: 0.027 | J12: 0.025
A13: Tertiary sector | B13: 0.426 | C13: 0.439 | D13: 0.455 | E13: 0.673 | F13: 0.64 | G13: 0.513 | H13: 0.716 | I13: 0.713 | J13: 0.697
A14: Wholesale and retail trade, catering and accommodation | B14: 0.104 | C14: 0.109 | D14: 0.113 | E14: 0.153 | F14: 0.145 | G14: 0.133 | H14: 0.139 | I14: 0.131 | J14: 0.135
A15: Transport, storage and communications | B15: 0.023 | C15: 0.024 | D15: 0.025 | E15: 0.07 | F15: 0.075 | G15: 0.05 | H15: 0.083 | I15: 0.074 | J15: 0.073
A16: Financial intermediation, insurance, real estate and business services | B16: 0.225 | C16: 0.231 | D16: 0.24 | E16: 0.413 | F16: 0.388 | G16: 0.308 | H16: 0.238 | I16: 0.243 | J16: 0.235
A17: Community, social and personal services | B17: 0.073 | C17: 0.075 | D17: 0.077 | E17: 0.036 | F17: 0.033 | G17: 0.022 | H17: 0.256 | I17: 0.265 | J17: 0.254
A18: Otherc | B18: 0.353 | C18: 0.322 | D18: 0.304 | E18: 0 | F18: 0 | G18: 0 | H18: — | I18: — | J18: —
A19: Total | B19: 1 | C19: 1 | D19: 1 | E19: 1 | F19: 1 | G19: 1 | H19: 1 | I19: 1 | J19: 1
A20: Source: SARS, Tax Statistics 2023, 3 January 2024, p195; Stats SA, www.statssa.gov.za, Gross Domestic Product annual tables, accessed 10 December 2024
A21: a SARS’ source of income code is used to classify according to the Standard Industrial Classification (SIC) system. SARS’ source of income code is not fully aligned with the SIC system that Stats SA uses.
A22: b Gross value added (GVA) by industry, 2019-21 at current prices.
A23: c Source of income was indicated as "Other" or was left blank on tax return.

Sheet HG Corp.taxpayers & tax 2021
A1: Corporate taxpayers and tax assessed by economic activity, 2020
B3: Number of taxpayers | C3: Tax assessed
A4: Agriculture | B4: 0.055 | C4: 0.019
A5: Mining | B5: 0.007 | C5: 0.306
A6: Manufacturing | B6: 0.081 | C6: 0.131
A7: Electricity | B7: 0.005 | C7: 0.016
A8: Construction | B8: 0.094 | C8: 0.015
A9: Trade | B9: 0.113 | C9: 0.133
A10: Transport | B10: 0.025 | C10: 0.05
A11: Finance | B11: 0.24 | C11: 0.308
A12: Government and personal services | B12: 0.077 | C12: 0.022

Sheet Small Business Corporations

Sheet SBC tax rates 2019 & 2022
A2: Small business corporations (SBCs)
A4: Small business corporationa tax rates, 2019 and 2022
A6: Taxable income bracket | B6: Tax rate | C6: Taxable income bracket | D6: Tax rate
B7: 2019 | D7: 2022
A8: R0-R78 150 | B8: 0 | C8: R0-R87 300 | D8: 0
A9: R78 151-R365 000 | B9: 0.07 | C9: R87 300-R365 000 | D9: 0.07
A10: R365 001-R550 000 | B10: 0.21 | C10: R365 001-R550 000 | D10: 0.21
A11: R550 001 and over | B11: 0.28 | C11: R550 001 and over | D11: 0.28
A12: Source: SARS, Tax Statistics 2023, 3 January 2024, p185
A14: a Companies are taxed as SBCs if their gross income is not more than R20 million and they have limited shareholding. The taxpayer must indicate on the annual tax return that it qualifies to be taxed as an SBC. SBCs benefit from graduated income tax rates (progressive taxation) rather than the fixed tax rate of 28%.

Sheet SBCs tax income,tax assessed
A2: Number of SBCs, taxable income and tax assessed, 2019 and 2021
B4: —Number— | D4: Taxable income —Rm— | F4: Assessed tax —Rm—
A5: Taxable income group | B5: 2019 | C5: 2021 | D5: 2019 | E5: 2021 | F5: 2019 | G5: 2021
A6: Total < 0 taxable income (R) | B6: 68698 | C6: 70198 | D6: -34376 | E6: -40911 | F6: — | G6: —
A7: <-25 000 000 | B7: 24 | C7: 43 | D7: -1147 | E7: -2362 | F7: — | G7: —
A8: -10 000 001 to -25 000 000 | B8: 171 | C8: 224 | D8: -2448 | E8: -3192 | F8: — | G8: —
A9: -5 000 001 to -10 000 000 | B9: 524 | C9: 623 | D9: -3574 | E9: -4214 | F9: — | G9: —
A10: -1 000 001 to -5 000 000 | B10: 7412 | C10: 8973 | D10: -14347 | E10: -17656 | F10: — | G10: —
A11: -100 001 to -1 000 000 | B11: 32470 | C11: 33568 | D11: -11864 | E11: -12516 | F11: 0 | G11: 0
A12: -1 to -100 000 | B12: 28097 | C12: 26767 | D12: -997 | E12: -972 | F12: 0 | G12: 0
A13: Total = 0 taxable income (R) | B13: 9960 | C13: 1301 | D13: — | E13: — | F13: 0 | G13: 0
A14: Total > 0 taxable income (R) | B14: 95883 | C14: 87808 | D14: 22010 | E14: 20136 | F14: 2864 | G14: 2608
A15: 1 - 100 000 | B15: 55519 | C15: 50938 | D15: 2310 | E15: 2143 | F15: 4 | G15: 2
A16: 100 001 to 250 000 | B16: 17392 | C16: 15987 | D16: 2806 | E16: 2572 | F16: 101 | G16: 87
A17: 250 001 to 500 000 | B17: 12247 | C17: 11027 | D17: 4362 | E17: 3942 | F17: 280 | G17: 250
A18: 500 001 to 750 000 | B18: 4890 | C18: 4472 | D18: 2943 | E18: 2684 | F18: 361 | G18: 326
A19: 750 001 to 1 000 000 | B19: 2063 | C19: 1992 | D19: 1789 | E19: 1731 | F19: 303 | G19: 293
A20: 1 000 001 to 2 500 000 | B20: 2993 | C20: 2653 | D20: 4518 | E20: 4005 | F20: 977 | G20: 865
A21: 2 500 001 to 5 000 000 | B21: 620 | C21: 580 | D21: 2080 | E21: 1933 | F21: 519 | G21: 484
A22: 5 000 001 + | B22: 159 | C22: 159 | D22: 1202 | E22: 1126 | F22: 318 | G22: 300
A23: Total | B23: 174541 | C23: 159307 | D23: — | E23: — | F23: 2864 | G23: 2608
A24: Source: SARS, Tax Statistics 2023, 3 January 2024, p218

Sheet BC SBCs by tax income group
A1: BC
A2: Small business corporations by taxable income group, 2019 and 2021
B4: 2019 | C4: 2021
A5: < 0 taxable income | B5: 0.394 | C5: 0.441
A6: = 0 taxable income | B6: 0.057 | C6: 0.008
A7: > 0 taxable income | B7: 0.549 | C7: 0.551

Sheet SBCs by economic activity numbe
A2: SBCs taxable income and tax assessed by sector and economic activity, (actual numbers) 2019 and 2021
B4: —Taxpayers— | D4: Taxable income —Rm— | F4: Tax assessed —Rm—
B5: 2019 | C5: 2021 | D5: 2019 | E5: 2021 | F5: 2019 | G5: 2021
A6: Primary sector | B6: 9001 | C6: 8994 | D6: -2545 | E6: -2851 | F6: 278 | G6: 288
A7: Agriculture, forestry and fishing | B7: 8053 | C7: 8088 | D7: -2442 | E7: -2588 | F7: 230 | G7: 268
A8: Mining and quarrying | B8: 948 | C8: 906 | D8: -103 | E8: -264 | F8: 48 | G8: 20
A9: Secondary sector | B9: 54139 | C9: 47341 | D9: -5916 | E9: -8497 | F9: 703 | G9: 596
A10: Manufacturing | B10: 27071 | C10: 24311 | D10: -2994 | E10: -4071 | F10: 424 | G10: 387
A11: Electricity, gas and water | B11: 1416 | C11: 1264 | D11: -262 | E11: -310 | F11: 17 | G11: 14
A12: Construction | B12: 25652 | C12: 21766 | D12: -2661 | E12: -4115 | F12: 262 | G12: 195
A13: Tertiary sector | B13: 111347 | C13: 102962 | D13: -3909 | E13: -9428 | F13: 1881 | G13: 1725
A14: Wholesale and retail trade, catering and accommodation | B14: 41990 | C14: 38393 | D14: -3369 | E14: -5236 | F14: 468 | G14: 394
A15: Transport, storage, and communications | B15: 9225 | C15: 8194 | D15: -1139 | E15: -1573 | F15: 118 | G15: 112
A16: Financial intermediation, insurance, real estate and business services | B16: 40463 | C16: 37835 | D16: -403 | E16: -2010 | F16: 753 | G16: 732
A17: Community, social and personal services | B17: 19669 | C17: 18540 | D17: 1002 | E17: -520 | F17: 543 | G17: 487
A18: Otherb | B18: 52 | C18: 10 | D18: 5 | E18: 1 | F18: 1 | G18: 0
A19: Total | B19: 174539 | C19: 159307 | D19: –b | E19: –b | F19: 2864 | G19: 2608
A20: Source: SARS, Tax Statistics 2023, 3 January 2024, p221
A21: a Source of income was indicated as "Other" or was left blank on tax return.
A22: b The total was not provided in the source.

Sheet SBCs by economic activity %
A2: SBCs and tax assessed by sector and economic activity (proportions), 2019 and 2021
B4: —Taxpayers— | D4: Tax assessed —Rm—
B5: 2019 | C5: 2021 | D5: 2019 | E5: 2021
A6: Primary sector | B6: 0.052 | C6: 0.056 | D6: 0.097 | E6: 0.11
A7: Agriculture, forestry and fishing | B7: 0.046 | C7: 0.051 | D7: 0.08 | E7: 0.103
A8: Mining and quarrying | B8: 0.005 | C8: 0.006 | D8: 0.017 | E8: 0.008
A9: Secondary sector | B9: 0.31 | C9: 0.297 | D9: 0.246 | E9: 0.228
A10: Manufacturing | B10: 0.155 | C10: 0.153 | D10: 0.148 | E10: 0.148
A11: Electricity, gas, and water | B11: 0.08 | C11: 0.008 | D11: 0.006 | E11: 0.005
A12: Construction | B12: 0.147 | C12: 0.137 | D12: 0.092 | E12: 0.075
A13: Tertiary sector | B13: 0.638 | C13: 0.646 | D13: 0.657 | E13: 0.661
A14: Wholesale and retail trade, catering and accommodation | B14: 0.241 | C14: 0.241 | D14: 0.163 | E14: 0.151
A15: Transport, storage, and communications | B15: 0.053 | C15: 0.051 | D15: 0.041 | E15: 0.043
A16: Financial intermediation, insurance, real estate and business services | B16: 0.232 | C16: 0.237 | D16: 0.263 | E16: 0.28
A17: Community, social and personal services | B17: 0.113 | C17: 0.116 | D17: 0.19 | E17: 0.187
A18: Other | B18: 0 | C18: 0 | D18: 0 | E18: 0
A19: Total | B19: 1 | C19: 1 | D19: 1 | E19: 1
A20: Source: SARS, Tax Statistics 2023, 3 January 2024, p221

Sheet Intern. Corporate tax SC 08-20
A2: Corporate tax ratesa, selected countries, 2008-20
A4: Country | B4: 2008 | C4: 2010 | D4: 2012 | E4: 2014 | F4: 2016 | G4: 2018 | H4: 2020
A5: Australia | B5: 30 | C5: 30 | D5: 30 | E5: 30 | F5: 30 | G5: 30 | H5: 30
A6: Botswana | B6: 25 | C6: 25 | D6: 22 | E6: 22 | F6: 22 | G6: 22 | H6: 22
A7: Brazil | B7: 34 | C7: 34 | D7: 34 | E7: 34 | F7: 34 | G7: 34 | H7: 34
A8: Chile | B8: 17 | C8: 17 | D8: 18.5 | E8: 20 | F8: 24 | G8: 26 | H8: 27
A9: China | B9: 25 | C9: 25 | D9: 25 | E9: 25 | F9: 25 | G9: 25 | H9: 25
A10: Denmark | B10: 25 | C10: 25 | D10: 25 | E10: 24.5 | F10: 22 | G10: 22 | H10: 22
A11: Egypt | B11: 20 | C11: 20 | D11: 25 | E11: 25 | F11: 22.5 | G11: 23 | H11: 22.5
A12: France | B12: 33.33 | C12: 33.33 | D12: 33.33 | E12: 33.33 | F12: 33 | G12: 33 | H12: 28
A13: Germany | B13: 29.51 | C13: 29.41 | D13: 29.48 | E13: 29.58 | F13: 29.72 | G13: 30 | H13: 30
A14: Ghana | B14: — | C14: — | D14: — | E14: 25 | F14: 25 | G14: 25 | H14: 25
A15: Greece | B15: 25 | C15: 24 | D15: 20 | E15: 26 | F15: 29 | G15: 29 | H15: 24
A16: Hong Kong | B16: 16.5 | C16: 16.5 | D16: 16.5 | E16: 16.5 | F16: 16.5 | G16: 16.5 | H16: 16.5
A17: India | B17: 33.99 | C17: 33.99 | D17: 32.45 | E17: 33.99 | F17: 34.61 | G17: 35 | H17: 30
A18: Indonesia | B18: 30 | C18: 25 | D18: 25 | E18: 25 | F18: 25 | G18: 25 | H18: 25
A19: Ireland | B19: 12.5 | C19: 12.5 | D19: 12.5 | E19: 12.5 | F19: 12.5 | G19: 12.5 | H19: 12.5
A20: Israel | B20: 27 | C20: 25 | D20: 25 | E20: 26.5 | F20: 25 | G20: 23 | H20: 23
A21: Italy | B21: 31.4 | C21: 31.4 | D21: 31.4 | E21: 31.4 | F21: 31.4 | G21: 24 | H21: 24
A22: Japan | B22: 40.69 | C22: 40.69 | D22: 38.01 | E22: 35.64 | F22: 30.86 | G22: 30.86 | H22: 30.62
A23: Kazakhstan | B23: 30 | C23: 20 | D23: 20 | E23: 20 | F23: 20 | G23: 20 | H23: 20
A24: Lithuania | B24: 15 | C24: 15 | D24: 15 | E24: 15 | F24: 15 | G24: 15 | H24: 15
A25: Mexico | B25: 28 | C25: 30 | D25: 30 | E25: 30 | F25: 30 | G25: 30 | H25: 30
A26: Mozambique | B26: 32 | C26: 32 | D26: 32 | E26: 32 | F26: 32 | G26: 32 | H26: 32
A27: Netherlands | B27: 25.5 | C27: 25.5 | D27: 25 | E27: 25 | F27: 25 | G27: 25 | H27: 25
A28: Nigeria | B28: 30 | C28: 30 | D28: 30 | E28: 30 | F28: 30 | G28: 30 | H28: 30
A29: Pakistan | B29: 35 | C29: 35 | D29: 35 | E29: 34 | F29: 32 | G29: 30 | H29: 35
A30: Philippines | B30: 35 | C30: 30 | D30: 30 | E30: 30 | F30: 30 | G30: 30 | H30: 30
A31: Poland | B31: 19 | C31: 19 | D31: 19 | E31: 19 | F31: 19 | G31: 19 | H31: 19
A32: Russia | B32: 24 | C32: 20 | D32: 20 | E32: 20 | F32: 20 | G32: 20 | H32: 20
A33: Saudi Arabia | B33: 20 | C33: 20 | D33: 20 | E33: 20 | F33: 20 | G33: 20 | H33: 20
A34: South Africa | B34: 34.55 | C34: 34.55 | D34: 34.55 | E34: 28 | F34: 28 | G34: 28 | H34: 28
A35: Spain | B35: 30 | C35: 30 | D35: 30 | E35: 30 | F35: 25 | G35: 25 | H35: 25
A36: Switzerland | B36: 19.2 | C36: 18.75 | D36: 18.06 | E36: 17.92 | F36: 17.92 | G36: 18 | H36: 14.84
A37: Thailand | B37: 30 | C37: 30 | D37: 23 | E37: 20 | F37: 20 | G37: 20 | H37: 20
A38: Turkey | B38: 20 | C38: 20 | D38: 20 | E38: 20 | F38: 20 | G38: 22 | H38: 22
A39: Uganda | B39: 30 | C39: 30 | D39: 30 | E39: 30 | F39: 30 | G39: 30 | H39: 30
A40: United Kingdom | B40: 30 | C40: 28 | D40: 24 | E40: 21 | F40: 20 | G40: 19 | H40: 19
A41: United States | B41: 40 | C41: 40 | D41: 40 | E41: 40 | F41: 40 | G41: 27 | H41: 27
A42: Source: KPMG, www.kpmg.com, accessed, 9 June 2024
A43: a Corporate tax rates, percentages.

Sheet VAT
A1: VAT

Sheet VAT registered vendors
A2: Value added taxa (VAT)
A4: Number of registered VAT vendors, 2019/20-2022/23
A6: Fiscal year | B6: Registeredb | C6: Change | D6: Active vendors | E6: Change | F6: Active proportion of register
A7: 2019/20 | B7: 831821 | C7: 0.036 | D7: 451738 | E7: 0.002 | F7: 0.54
A8: 2020/21 | B8: 880553 | C8: 0.059 | D8: 450423 | E8: -0.003 | F8: 0.512
A9: 2021/22 | B9: 941406 | C9: 0.069 | D9: 470238 | E9: 0.044 | F9: 0.5
A10: 2022/23 | B10: 953665 | C10: 0.013 | D10: 477782 | E10: 0.016 | F10: 0.501
A11: Source: SARS, Tax Statistics 2023, 3 January 2024, p233; Socio-Economic Survey of South Africa 2024, p188
A12: a VAT is levied at a standard rate of 15%, 14% in 2016/17, on most goods and services subject to certain exemptions, exceptions and zero-ratings, provided for in the VAT Act (1991). VAT is levied on the supply of all goods and services rendered by registered vendors. VAT is also levied on the importation of goods and services into South Africa.
A13: b At 31 March each year.

Sheet VAT 2018-23
A2: Value added tax, 2018/19-2022/23
A4: Fiscal year | B4: Domestic VAT | C4: Import VAT | D4: Gross | E4: VAT refunds | F4: Total net VAT
B5: —Rbn—
A6: 2018/19 | B6: 378.7 | C6: 175.2 | D6: 553.9 | E6: -229.2 | F6: 324.8
A7: 2019/20 | B7: 399.3 | C7: 180 | D7: 579.3 | E7: -232.5 | F7: 346.8
A8: 2020/21 | B8: 392.9 | C8: 166.5 | D8: 559.4 | E8: -228.2 | F8: 331.2
A9: 2021/22 | B9: 448.8 | C9: 204.6 | D9: 653.3 | E9: -262.4 | F9: 390.9
A10: 2022/23 | B10: 486.4 | C10: 255 | D10: 741.4 | E10: -319 | F10: 422.4
A11: —Proportion of total VAT—
A12: 2018/19 | B12: 0.684 | C12: 0.316 | D12: 1 | E12: -0.414 | F12: 0.586
A13: 2019/20 | B13: 0.689 | C13: 0.311 | D13: 1 | E13: -0.401 | F13: 0.599
A14: 2020/21 | B14: 0.702 | C14: 0.298 | D14: 1 | E14: -0.408 | F14: 0.592
A15: 2021/22 | B15: 0.687 | C15: 0.313 | D15: 1 | E15: -0.402 | F15: 0.598
A16: 2022/23 | B16: 0.656 | C16: 0.344 | D16: 1 | E16: -0.43 | F16: 0.57
A17: —Change—
A18: 2019/20 | B18: 0.054 | C18: 0.027 | D18: 0.046 | E18: 0.015 | F18: 0.068
A19: 2020/21 | B19: -0.016 | C19: -0.075 | D19: -0.034 | E19: -0.019 | F19: -0.045
A20: 2021/22 | B20: 0.142 | C20: 0.229 | D20: 0.168 | E20: 0.15 | F20: 0.18
A21: 2022/23 | B21: 0.084 | C21: 0.247 | D21: 0.135 | E21: 0.216 | F21: 0.081
A22: Source: SARS, Tax Statistics 2023, 3 January 2024, p37

Sheet Import VAT, Customs duties
A2: Import VAT and customs duties
A4: Customs value, import VAT, customs duties and total import tax by world region/ selected trade blocs, 2021/22 and 2022/23
A6: World region/ trade bloc | B6: —Customs value— | D6: —Import VAT— | F6: —Customs dutiesa— | H6: —Total import taxb—
B7: 2021/22 | C7: 2022/23 | D7: 2021/22 | E7: 2022/23 | F7: 2021/22 | G7: 2022/23 | H7: 2021/22 | I7: 2022/23
B8: —Rbn—
A9: Africa | B9: 642.9 | C9: 674 | D9: 12.3 | E9: 16.3 | F9: 0.7 | G9: 0.9 | H9: 13 | I9: 17.2
A10: Americas | B10: 203 | C10: 238.2 | D10: 23.1 | E10: 29 | F10: 5.9 | G10: 6.7 | H10: 29 | I10: 35.7
A11: Asia | B11: 841.7 | C11: 1204.8 | D11: 100.3 | E11: 123.7 | F11: 38.2 | G11: 48.5 | H11: 138.6 | I11: 172.2
A12: Europe | B12: 468.7 | C12: 544.7 | D12: 63.6 | E12: 78.3 | F12: 16 | G12: 19.6 | H12: 79.5 | I12: 97.9
A13: Oceania | B13: 22 | C13: 26.6 | D13: 3.2 | E13: 3.9 | F13: 0.2 | G13: 0.2 | H13: 3.4 | I13: 4.1
A14: Other | B14: 53.1 | C14: 59.2 | D14: 1.2 | E14: 1.3 | F14: 0 | G14: 0 | H14: 1.2 | I14: 1.3
A15: Total | B15: 2231.3 | C15: 2747.6 | D15: 203.8 | E15: 252.5 | F15: 61 | G15: 76 | H15: 264.8 | I15: 328.4
A16: —Proportion of total—
A17: Africa | B17: 0.288 | C17: 0.245 | D17: 0.061 | E17: 0.064 | F17: 0.012 | G17: 0.012 | H17: 0.049 | I17: 0.052
A18: Americas | B18: 0.091 | C18: 0.087 | D18: 0.114 | E18: 0.115 | F18: 0.096 | G18: 0.089 | H18: 0.11 | I18: 0.109
A19: Asia | B19: 0.077 | C19: 0.438 | D19: 0.492 | E19: 0.49 | F19: 0.627 | G19: 0.639 | H19: 0.523 | I19: 0.524
A20: Europe | B20: 0.21 | C20: 0.198 | D20: 0.312 | E20: 0.31 | F20: 0.262 | G20: 0.258 | H20: 0.3 | I20: 0.296
A21: Oceania | B21: 0.01 | C21: 0.01 | D21: 0.016 | E21: 0.015 | F21: 0.003 | G21: 0.003 | H21: 0.013 | I21: 0.012
A22: Other | B22: 0.024 | C22: 0.022 | D22: 0.006 | E22: 0.005 | F22: 0 | G22: 0 | H22: 0.004 | I22: 0.004
A23: Total | B23: 1 | C23: 1 | D23: 1 | E23: 1 | F23: 1 | G23: 1 | H23: 1 | I23: 1
A24: —Selected trade blocs—
A25: African Union | B25: 0.266 | C25: 0.228 | D25: 0.057 | E25: 0.06 | F25: 0.009 | G25: 0.009 | H25: 0.046 | I25: 0.048
A26: BRICSc | B26: 0.234 | C26: 0.252 | D26: 0.342 | E26: 0.337 | F26: 0.485 | G26: 0.486 | H26: 0.375 | I26: 0.371
A27: European Union | B27: 0.177 | C27: 0.173 | D27: 0.27 | E27: 0.272 | F27: 0.156 | G27: 0.17 | H27: 0.243 | I27: 0.249
A28: SADCd | B28: 0.214 | C28: 0.177 | D28: 0.051 | E28: 0.05 | F28: 0.003 | G28: 0.004 | H28: 0.04 | I28: 0.04
A29: Source: SARS, Tax Statistics 2023, 3 January 2024, p291
A30: a Customs duties is inclusive of specific excise on imports and ad valorem excise on imports.
A31: b Total import tax is import VAT plus customs duties.
A32: c Brazil, Russia, India, China, South Africa.
A33: d Southern African Development Community.

Sheet Capital gains tax
A2: Other taxes and collections
A4: Capital gains tax (CGT)a raised, 2016/17-2022/23
A6: Year | B6: Individuals | C6: Companies | D6: Total
B7: —Rbn—
A8: Prior to 2016/17 | B8: 36.9 | C8: 53.1 | D8: 90.1
A9: 2016/17 | B9: 9.6 | C9: 7.4 | D9: 17.1
A10: 2017/18 | B10: 10 | C10: 7.6 | D10: 17.6
A11: 2018/19 | B11: 9.5 | C11: 8.3 | D11: 17.9
A12: 2019/20 | B12: 6.4 | C12: 7.7 | D12: 14.1
A13: 2020/21 | B13: 8.4 | C13: 7.9 | D13: 16.4
A14: 2021/22 | B14: 7.7 | C14: 8.5 | D14: 16.2
A15: 2022/23 | B15: 9.8 | C15: 12.5 | D15: 22.2
A16: Source: SARS, Tax Statistics 2023, 3 January 2024, p298
A17: a CGT is based on capital gains made upon the disposal of assets. This tax was introduced in October 2001.

Sheet Intern. VAT rates SC 2024
A2: VAT, GSTa, and sales tax rates, selected countries, 2024
A4: Country | B4: Standard rate | C4: Tax system
A5: Australia | B5: 0.1 | C5: GST
A6: Botswana | B6: 0.14 | C6: VAT
A7: Brazil | B7: 17%-25% | C7: ICMSb
A8: Chile | B8: 0.19 | C8: VAT
A9: China | B9: 13%, 9%, 6% | C9: VAT/Business taxc
A10: Denmark | B10: 0.25 | C10: VAT
A11: Egypt | B11: 0.14 | C11: VAT
A12: France | B12: 0.2 | C12: VAT
A13: Germany | B13: 0.19 | C13: VAT
A14: Greece | B14: 0.24 | C14: VAT
A15: Hong Kong | B15: — | C15: —
A16: India | B16: 0.25%, 1%, 3%, 5%, 12%,18%, 25%, 28% | C16: GST
A17: Indonesia | B17: 0.11 | C17: VAT
A18: Ireland | B18: 0.23 | C18: VAT
A19: Israel | B19: 0.17 | C19: VAT
A20: Italy | B20: 0.22 | C20: VAT
A21: Japan | B21: 0.1 | C21: VAT
A22: Kazakhstan | B22: 0.12 | C22: VAT
A23: Lithuania | B23: 0.21 | C23: VAT
A24: Mexico | B24: 0.16 | C24: VAT
A25: Mozambique | B25: 0.17 | C25: VAT
A26: Netherlands | B26: 0.21 | C26: VAT
A27: Nigeria | B27: 0.075 | C27: VAT
A28: Pakistan | B28: 0.18 | C28: Sales tax
A29: Philippines | B29: 0.12 | C29: VAT
A30: Poland | B30: 0.23 | C30: VAT
A31: Russia | B31: 0.2 | C31: VAT
A32: Saudi Arabia | B32: 0.15 | C32: VAT
A33: South Africa | B33: 0.15 | C33: VAT
A34: Spain | B34: 0.21 | C34: VAT
A35: Switzerland | B35: 0.081 | C35: VAT
A36: Thailand | B36: 0.07 | C36: VAT
A37: Turkey | B37: 0.2 | C37: VAT
A38: Uganda | B38: 0.18 | C38: VAT
A39: United Kingdom | B39: 0.2 | C39: VAT
A40: United States | B40: Varies across the country | C40: Sales tax
A41: Source: Global Vat Compliance, World VAT/GST rates 2024, accessed 10 December 2024
A42: a Goods and Services Tax (GST).
A43: b ICMS is a state tax in Brazil and varies across the country.
A44: c VAT essentially applicable to supplies of goods together with a small number of services related to manufacturing processes. Business Tax applies to supplies of services.

Sheet Transfer duty on property
A2: Rate of transfer duty on propertya, 2020-23
A4: Fair market value or consideration | B4: Effective from 1 March 2020
A5: R0-R1 000 000 | B5: 0% of the amount
A6: R1 000 001-R1 375 000 | B6: 3% of the amount above R1 000 000
A7: R1 375 001-R1 925 000 | B7: R11 250 + 6% of the amount above R1.375 million
A8: R1 925 001-R2 475 000 | B8: R44 250 + 8% of the amount above R1.925 million
A9: R2 475 001-R11 000 000 | B9: R88 250 + 11% of the amount above R2.475 million
A10: R11 000 001 + | B10: R1 026 000 + 13% of the amount above R11.0 million
A11: Fair market value or consideration | B11: Effective from 1 March 2023
A12: R0-R1 100 000 | B12: 0% of the amount
A13: R1 100 001-R1 512 000 | B13: 3% of the amount above R750 000
A14: R1 512 001-R2 117 500 | B14: R15 000 + 6% of the amount above R1.25 million
A15: R2 117 501-R2 722 500 | B15: R45 000 + 8% of the amount above R1.75 million
A16: R2 722 500-R12 100 000 | B16: R85 000 + 11% of the amount above R2.25 million
A17: R12 100 001 + | B17: R937 500 + 13% of the amount above R10.0 million
A18: Source: SARS, Tax Statistics 2023, 3 January 2024, p298
A19: a All persons (including companies, close corporations and trusts). Transfer duty is levied on a wide range of assets that are defined as property. They include land and fixtures as well as real rights in land; rights to minerals, a share or interest in a residential property company; as well as shares in a share-block company.

Sheet Taxes on property
A2: Taxes on property, 2018/19-2022/23
A4: Year | B4: Donations tax | C4: Estate duty | D4: Securities transfer tax | E4: Transfer duties | F4: Total
B5: —Rm—
A6: 2018/19 | B6: 604 | C6: 2069 | D6: 5335 | E6: 7243 | F6: 15252
A7: 2019/20 | B7: 572 | C7: 2048 | D7: 6240 | E7: 7120 | F7: 15980
A8: 2020/21 | B8: 602 | C8: 2316 | D8: 5422 | E8: 7606 | F8: 15947
A9: 2021/22 | B9: 635 | C9: 3141 | D9: 7680 | E9: 10576 | F9: 22033
A10: 2022/23 | B10: 683 | C10: 3702 | D10: 5401 | E10: 11452 | F10: 21238
A11: —Proportion of total—
A12: 2018/19 | B12: 0.04 | C12: 0.136 | D12: 0.35 | E12: 0.475 | F12: 1
A13: 2019/20 | B13: 0.036 | C13: 0.128 | D13: 0.391 | E13: 0.446 | F13: 1
A14: 2020/21 | B14: 0.038 | C14: 0.145 | D14: 0.34 | E14: 0.477 | F14: 1
A15: 2021/22 | B15: 0.029 | C15: 0.143 | D15: 0.349 | E15: 0.48 | F15: 1
A16: 2022/23 | B16: 0.032 | C16: 0.174 | D16: 0.254 | E16: 0.539 | F16: 1
A17: —Change—
A18: 2019/20 | B18: -0.053 | C18: -0.01 | D18: 0.17 | E18: -0.017 | F18: 0.048
A19: 2020/21 | B19: 0.052 | C19: 0.131 | D19: -0.131 | E19: 0.068 | F19: -0.002
A20: 2021/22 | B20: 0.056 | C20: 0.356 | D20: 0.416 | E20: 0.39 | F20: 0.382
A21: 2022/23 | B21: 0.075 | C21: 0.179 | D21: -0.297 | E21: 0.083 | F21: -0.036
A22: Source: SARS, Tax Statistics 2023, 3 January 2024, p27

Sheet Mineral and petroleum royal
A2: Mineral and petroleum resources royalty (MPRR)a payments by commodity, 2020/21-2022/23
A4: Commodity | B4: —2020/21— | D4: —2021/22— | F4: —2022/23— | H4: 2020/21 vs 2022/23
B5: Rm | C5: Proportion | D5: Rm | E5: Proportion | F5: Rm | G5: Proportion
A6: Coal | B6: 1970 | C6: 0.138 | D6: 3258 | E6: 0.114 | F6: 8535 | G6: 0.337 | H6: 1.62
A7: Diamond | B7: 29 | C7: 0.002 | D7: 101 | E7: 0.004 | F7: 227 | G7: 0.009 | H7: 1.244
A8: Gold and uranium | B8: 608 | C8: 0.043 | D8: 511 | E8: 0.018 | F8: 415 | G8: 0.016 | H8: -0.188
A9: Industrial mineralsb | B9: 596 | C9: 0.042 | D9: 1355 | E9: 0.048 | F9: 490 | G9: 0.019 | H9: -0.638
A10: Iron ore | B10: 4190 | C10: 0.294 | D10: 6907 | E10: 0.243 | F10: 3607 | G10: 0.142 | H10: -0.478
A11: Manganese | B11: 158 | C11: 0.011 | D11: 642 | E11: 0.023 | F11: 770 | G11: 0.03 | H11: 0.199
A12: Platinum | B12: 5743 | C12: 0.404 | D12: 14902 | E12: 0.524 | F12: 8968 | G12: 0.354 | H12: -0.398
A13: Zinc | B13: 23 | C13: 0.002 | D13: 24 | E13: 0.001 | F13: 33 | G13: 0.001 | H13: 0.402
A14: Otherc | B14: 909 | C14: 0.064 | D14: 757 | E14: 0.027 | F14: 2293 | G14: 0.091 | H14: 2.028
A15: Total | B15: 14228 | C15: 1 | D15: 28456 | E15: 1 | F15: 25338 | G15: 1 | H15: -0.11
A16: Source: SARS, Tax Statistics 2023, 3 January 2024, p304
A17: a MPRR compensates the state for permanent loss of non-renewable resources. It is therefore not classified as a tax. The MPRR Act of 2008 became effective on 1 March 2010.
A18: b Industrial minerals are geological materials which are mined for their commercial value. They are used in their natural state or after beneficiation either as raw materials or as additives in a wide range of applications (i.e. industrial minerals are all those minerals other than gold, platinum group metals (PGMs), coal, iron ore, chrome, manganese, diamonds, etc.)
A19: c Includes chrome, fluorspar, nickel, oil and gas, phosphates, vanadium and those unspecified.

Sheet BUDGET 2024

Sheet Consol.expenditure by function
A2: THE BUDGET
A4: Consolidated government expenditurea by function, 2020/21-2026/27
B6: 2020/21 | C6: 2021/22 | D6: 2022/23 | E6: 2023/24 | F6: 2024/25 | G6: 2025/26 | H6: 2026/27
B7: —Outcome— | E7: Revised estimate | F7: —Budget estimate—
A9: General public services | B9: 333.3 | C9: 408.2 | D9: 421 | E9: 473.5 | F9: 496.1 | G9: 532.4 | H9: 562.2
A10: State debt costs | B10: 232.6 | C10: 268.1 | D10: 308.5 | E10: 356.1 | F10: 382.2 | G10: 414.7 | H10: 440.2
A11: Defence | B11: 53.7 | C11: 48.4 | D11: 54.5 | E11: 53.1 | F11: 53.1 | G11: 55 | H11: 57.4
A12: Public order and safetyb | B12: 153 | C12: 157.4 | D12: 165.9 | E12: 172.7 | F12: 183.2 | G12: 191.8 | H12: 200
A13: Police services | B13: 105.2 | C13: 106.9 | D13: 113.1 | E13: 119 | F13: 127.2 | G13: 133.6 | H13: 139.2
A14: Law courts | B14: 22.8 | C14: 24.8 | D14: 26.4 | E14: 27.1 | F14: 28.3 | G14: 29.2 | H14: 30.5
A15: Prisons | B15: 25 | C15: 25.7 | D15: 26.4 | E15: 26.6 | F15: 27.8 | G15: 29 | H15: 30.3
A16: Economic affairsb | B16: 233.4 | C16: 221.6 | D16: 243.8 | E16: 229.3 | F16: 235.6 | G16: 250.3 | H16: 257.2
A17: General economic, commercial and labour affairs | B17: 32.3 | C17: 41.6 | D17: 37.7 | E17: 38.4 | F17: 38.5 | G17: 39.5 | H17: 40.9
A18: Agriculture, forestry fishing, and hunting | B18: 20.8 | C18: 22.1 | D18: 23.7 | E18: 23.5 | F18: 23.2 | G18: 23.8 | H18: 24.8
A19: Fuel and energy | B19: 63.5 | C19: 40.9 | D19: 32.4 | E19: 11 | F19: 9.9 | G19: 9.8 | H19: 10
A20: Mining, manufacturing and construction | B20: 2.6 | C20: 3.2 | D20: 3.3 | E20: 3.5 | F20: 3.6 | G20: 3.8 | H20: 3.9
A21: Transport | B21: 97.7 | C21: 94.9 | D21: 122 | E21: 130.7 | F21: 139.2 | G21: 153.5 | H21: 157.5
A22: Communication | B22: 5.3 | C22: 5 | D22: 7.9 | E22: 6 | F22: 6.2 | G22: 4.8 | H22: 4.9
A23: Other industries | B23: 2.9 | C23: 3.2 | D23: 6 | E23: 3.8 | F23: 3.7 | G23: 3.9 | H23: 3.8
A24: Economic affairs not classified elsewhere | B24: 8.4 | C24: 10.6 | D24: 10.8 | E24: 12.4 | F24: 11.3 | G24: 11.1 | H24: 11.4
A25: Environmental protection | B25: 12.3 | C25: 11.9 | D25: 13 | E25: 15 | F25: 15.2 | G25: 15.4 | H25: 16
A26: Housing and community amenitiesb | B26: 176.2 | C26: 174.5 | D26: 194.8 | E26: 207.1 | F26: 228.7 | G26: 240.8 | H26: 258
A27: Housing development | B27: 31.1 | C27: 37.3 | D27: 36.4 | E27: 38.5 | F27: 42.2 | G27: 43.9 | H27: 46.6
A28: Community development | B28: 108.5 | C28: 102 | D28: 111.1 | E28: 120 | F28: 129.2 | G28: 134.7 | H28: 140.5
A29: Water supply | B29: 36.6 | C29: 35.2 | D29: 47.4 | E29: 48.6 | F29: 57.3 | G29: 62.2 | H29: 70.8
A30: Health | B30: 242.3 | C30: 252.2 | D30: 250 | E30: 263.2 | F30: 267.2 | G30: 276.6 | H30: 290.5
A31: Recreation and culture | B31: 11.8 | C31: 14 | D31: 12.9 | E31: 15.6 | F31: 14.5 | G31: 14.2 | H31: 14.6
A32: Education | B32: 377.1 | C32: 407.3 | D32: 434.6 | E32: 462.4 | F32: 474.9 | G32: 494.2 | H32: 520.7
A33: Social protection | B33: 372 | C33: 348.5 | D33: 350.5 | E33: 376.9 | F33: 395.5 | G33: 393.1 | H33: 406.5
A34: Subtotal: functional classificationb | B34: 1965.1 | C34: 2043.9 | D34: 2141.1 | E34: 2268.9 | F34: 2364 | G34: 2463.8 | H34: 2583.3
A35: Contingency reserve | B35: — | C35: — | D35: — | E35: — | F35: 5 | G35: 7.6 | H35: 14.5
A36: Total consolidated expenditure | B36: 1965.1 | C36: 2043.9 | D36: 2141.1 | E36: 2268.9 | F36: 2369 | G36: 2471.4 | H36: 2597.8
A37: Source: National Treasury, Budget Review 2024, 21 February 2024, Table 8, pp265-266
A38: a National, provincial and social security funds expenditure.
A39: b Figures should add up vertically but may not, owing to rounding.

Sheet Consol.expenditure by function%
A2: Consolidated government expenditurea by function as a proportion of total spending, 2021/22-2026/27
B4: 2021/22 | C4: 2022/23 | D4: 2023/24 | E4: 2024/25 | F4: 2025/26 | G4: 2026/27
D5: Revised estimate | E5: —Budget estimate—
A6: General public services | B6: 0.2 | C6: 0.197 | D6: 0.209 | E6: 0.21 | F6: 0.216 | G6: 0.218
A7: State debt costs | B7: 0.131 | C7: 0.144 | D7: 0.157 | E7: 0.162 | F7: 0.168 | G7: 0.17
A8: Defence | B8: 0.024 | C8: 0.025 | D8: 0.023 | E8: 0.022 | F8: 0.022 | G8: 0.022
A9: Public order and safetyb | B9: 0.077 | C9: 0.077 | D9: 0.076 | E9: 0.078 | F9: 0.078 | G9: 0.077
A10: Police services | B10: 0.052 | C10: 0.053 | D10: 0.052 | E10: 0.054 | F10: 0.054 | G10: 0.054
A11: Law courts | B11: 0.012 | C11: 0.012 | D11: 0.012 | E11: 0.012 | F11: 0.012 | G11: 0.012
A12: Prisons | B12: 0.013 | C12: 0.012 | D12: 0.012 | E12: 0.012 | F12: 0.012 | G12: 0.012
A13: Economic affairsb | B13: 0.108 | C13: 0.114 | D13: 0.101 | E13: 0.1 | F13: 0.102 | G13: 0.1
A14: General economic, commercial, and labour affairs | B14: 0.02 | C14: 0.018 | D14: 0.017 | E14: 0.016 | F14: 0.016 | G14: 0.016
A15: Agriculture, forestry, fishing, and hunting | B15: 0.011 | C15: 0.011 | D15: 0.01 | E15: 0.01 | F15: 0.01 | G15: 0.01
A16: Fuel and energy | B16: 0.02 | C16: 0.015 | D16: 0.005 | E16: 0.004 | F16: 0.004 | G16: 0.004
A17: Mining, manufacturing, and construction | B17: 0.002 | C17: 0.002 | D17: 0.002 | E17: 0.002 | F17: 0.002 | G17: 0.001
A18: Transport | B18: 0.046 | C18: 0.057 | D18: 0.058 | E18: 0.059 | F18: 0.062 | G18: 0.061
A19: Communication | B19: 0.002 | C19: 0.004 | D19: 0.003 | E19: 0.003 | F19: 0.002 | G19: 0.002
A20: Other Industries | B20: 0.002 | C20: 0.003 | D20: 0.002 | E20: 0.002 | F20: 0.002 | G20: 0.001
A21: Economic affairs not classified elsewhere | B21: 0.005 | C21: 0.005 | D21: 0.005 | E21: 0.005 | F21: 0.005 | G21: 0.004
A22: Environmental protection | B22: 0.006 | C22: 0.006 | D22: 0.007 | E22: 0.006 | F22: 0.006 | G22: 0.006
A23: Housing and community amenitiesb | B23: 0.085 | C23: 0.091 | D23: 0.091 | E23: 0.097 | F23: 0.098 | G23: 0.1
A24: Housing development | B24: 0.018 | C24: 0.017 | D24: 0.017 | E24: 0.018 | F24: 0.018 | G24: 0.018
A25: Community development | B25: 0.05 | C25: 0.052 | D25: 0.053 | E25: 0.055 | F25: 0.055 | G25: 0.054
A26: Water supply | B26: 0.017 | C26: 0.022 | D26: 0.021 | E26: 0.024 | F26: 0.025 | G26: 0.027
A27: Health | B27: 0.123 | C27: 0.117 | D27: 0.116 | E27: 0.113 | F27: 0.112 | G27: 0.112
A28: Recreation and culture | B28: 0.007 | C28: 0.006 | D28: 0.007 | E28: 0.006 | F28: 0.006 | G28: 0.006
A29: Education | B29: 0.199 | C29: 0.203 | D29: 0.204 | E29: 0.201 | F29: 0.201 | G29: 0.202
A30: Social protection | B30: 0.171 | C30: 0.164 | D30: 0.166 | E30: 0.167 | F30: 0.16 | G30: 0.157
A31: Subtotal: functional classificationb | B31: 1 | C31: 1 | D31: 1 | E31: 1 | F31: 1 | G31: 1
A32: Source: National Treasury, Budget Review 2024, 21 February 2024, Table 8, pp265-266
A33: a National, provincial and social security funds expenditure.
A34: b Figures should add up vertically but may not, owing to rounding.

Sheet Consol.expenditure % GDP.
A2: Consolidated government expenditurea as a proportion of GDPb, 2021/22-2026/27
B4: 2021/22 | C4: 2022/23 | D4: 2023/24 | E4: 2024/25 | F4: 2025/26 | G4: 2026/27
D5: Revised estimate | E5: —Budget estimate—
A6: General public services | B6: 0.065 | C6: 0.063 | D6: 0.067 | E6: 0.067 | F6: 0.067 | G6: 0.067
A7: State debt costs | B7: 0.042 | C7: 0.046 | D7: 0.051 | E7: 0.051 | F7: 0.052 | G7: 0.052
A8: Defence | B8: 0.008 | C8: 0.008 | D8: 0.008 | E8: 0.007 | F8: 0.007 | G8: 0.007
A9: Public order and safetyc | B9: 0.025 | C9: 0.025 | D9: 0.024 | E9: 0.025 | F9: 0.024 | G9: 0.024
A10: Police services | B10: 0.017 | C10: 0.017 | D10: 0.017 | E10: 0.017 | F10: 0.017 | G10: 0.017
A11: Law courts | B11: 0.004 | C11: 0.004 | D11: 0.004 | E11: 0.004 | F11: 0.004 | G11: 0.004
A12: Prisons | B12: 0.004 | C12: 0.004 | D12: 0.004 | E12: 0.004 | F12: 0.004 | G12: 0.004
A13: Economic affairsc | B13: 0.035 | C13: 0.036 | D13: 0.033 | E13: 0.032 | F13: 0.032 | G13: 0.031
A14: General economic, commercial and labour affairs | B14: 0.007 | C14: 0.006 | D14: 0.005 | E14: 0.005 | F14: 0.005 | G14: 0.005
A15: Agriculture, forestry, fishing, and hunting | B15: 0.003 | C15: 0.004 | D15: 0.003 | E15: 0.003 | F15: 0.003 | G15: 0.003
A16: Fuel and energy | B16: 0.006 | C16: 0.005 | D16: 0.002 | E16: 0.001 | F16: 0.001 | G16: 0.001
A17: Mining, manufacturing, and construction | B17: 0.001 | C17: 0 | D17: 0 | E17: 0 | F17: 0 | G17: 0
A18: Transport | B18: 0.015 | C18: 0.018 | D18: 0.019 | E18: 0.019 | F18: 0.019 | G18: 0.019
A19: Communication | B19: 0.001 | C19: 0.001 | D19: 0.001 | E19: 0.001 | F19: 0.001 | G19: 0.001
A20: Other industries | B20: 0 | C20: 0.001 | D20: 0.001 | E20: 0 | F20: 0 | G20: 0
A21: Economic affairs not classified elsewhere | B21: 0.002 | C21: 0.002 | D21: 0.002 | E21: 0.002 | F21: 0.001 | G21: 0.001
A22: Environmental protectionc | B22: 0.002 | C22: 0.002 | D22: 0.002 | E22: 0.002 | F22: 0.002 | G22: 0.002
A23: Housing and community amenitiesc | B23: 0.028 | C23: 0.029 | D23: 0.029 | E23: 0.031 | F23: 0.03 | G23: 0.031
A24: Housing development | B24: 0.006 | C24: 0.005 | D24: 0.005 | E24: 0.006 | F24: 0.006 | G24: 0.006
A25: Community development | B25: 0.016 | C25: 0.017 | D25: 0.017 | E25: 0.017 | F25: 0.017 | G25: 0.017
A26: Water supply | B26: 0.006 | C26: 0.007 | D26: 0.007 | E26: 0.008 | F26: 0.008 | G26: 0.008
A27: Health | B27: 0.04 | C27: 0.037 | D27: 0.037 | E27: 0.036 | F27: 0.035 | G27: 0.034
A28: Recreation and culture | B28: 0.002 | C28: 0.002 | D28: 0.002 | E28: 0.002 | F28: 0.002 | G28: 0.002
A29: Education | B29: 0.065 | C29: 0.065 | D29: 0.066 | E29: 0.064 | F29: 0.062 | G29: 0.062
A30: Social protection | B30: 0.055 | C30: 0.052 | D30: 0.053 | E30: 0.053 | F30: 0.05 | G30: 0.048
A31: Subtotal: functional classificationc | B31: 0.324 | C31: 0.319 | D31: 0.322 | E31: 0.317 | F31: 0.311 | G31: 0.307
A32: Contingency reserve | B32: — | C32: — | D32: — | E32: 0.001 | F32: 0.001 | G32: 0.002
A33: TOTAL CONSOLIDATED EXPENDITURE | B33: 0.324 | C33: 0.319 | D33: 0.322 | E33: 0.318 | F33: 0.312 | G33: 0.308
A34: Source: National Treasury, Budget Review 2024, 21 February 2024, Table1, pp245-246, Table 8, pp265-266
A35: a National, provincial and social security funds expenditure.
A36: b The GDP fiscal years estimates are from the 2024 Budget. Proportions are calculated by the CRA.
A37: c Figures should add up vertically but may not, owing to rounding.

Sheet Major spending components
A2: Major spending components by typea, 2022/23-2026/27
B4: —2022/23— | D4: 2023/24 | F4: 2024/25 | G4: 2025/26 | H4: 2026/27 | I4: Average annual growth 2024/25- 2026/27
B5: —Outcome— | D5: —Estimate— | F5: —As a proportion of total spending—
B6: Rbn | C6: % | D6: Rbn | E6: %
A7: Current payments | B7: 1297.4 | C7: 0.606 | D7: 1401 | E7: 0.618 | F7: 0.62 | G7: 0.63 | H7: 0.628 | I7: 0.05
A8: Compensation of employees | B8: 689.2 | C8: 0.322 | D8: 721.1 | E8: 0.318 | F8: 0.319 | G8: 0.32 | H8: 0.318 | I8: 0.045
A9: Goods and services | B9: 292.4 | C9: 0.137 | D9: 315.9 | E9: 0.139 | F9: 0.136 | G9: 0.138 | H9: 0.136 | I9: 0.037
A10: Interest and rent on land | B10: 315.8 | C10: 0.148 | D10: 364 | E10: 0.16 | F10: 0.165 | G10: 0.172 | H10: 0.174 | I10: 0.072
A11: of which: debt service costs | B11: 308.5 | C11: 0.144 | D11: 356.1 | E11: 0.157 | F11: 0.162 | G11: 0.168 | H11: 0.17 | I11: 0.073
A12: Transfers and subsidies to: | B12: 711.2 | C12: 0.332 | D12: 757.2 | E12: 0.334 | F12: 0.329 | G12: 0.318 | H12: 0.316 | I12: 0.025
A13: —Municipalities | B13: 165.3 | C13: 0.077 | D13: 173.1 | E13: 0.076 | F13: 0.078 | G13: 0.078 | H13: 0.078 | I13: 0.051
A14: —Departmental agencies and accounts | B14: 24 | C14: 0.011 | D14: 25.9 | E14: 0.011 | F14: 0.01 | G14: 0.009 | H14: 0.009 | I14: -0.049
A15: —Higher education institutions | B15: 53.3 | C15: 0.025 | D15: 51.6 | E15: 0.023 | F15: 0.023 | G15: 0.023 | H15: 0.023 | I15: 0.041
A16: —Foreign governments and organisations | B16: 3.4 | C16: 0.002 | D16: 3.4 | E16: 0.001 | F16: 0.001 | G16: 0.001 | H16: 0.001 | I16: 0.011
A17: —Public corporations and private enterprises | B17: 37.9 | C17: 0.018 | D17: 41 | E17: 0.018 | F17: 0.017 | G17: 0.016 | H17: 0.016 | I17: -0.002
A18: —Non-profit institutions | B18: 40.5 | C18: 0.019 | D18: 42.7 | E18: 0.019 | F18: 0.017 | G18: 0.017 | H18: 0.017 | I18: 0
A19: — Households | B19: 386.8 | C19: 0.181 | D19: 419.5 | E19: 0.185 | F19: 0.183 | G19: 0.175 | H19: 0.173 | I19: 0.022
A20: Payments for capital assets | B20: 86 | C20: 0.04 | D20: 107.1 | E20: 0.047 | F20: 0.05 | G20: 0.051 | H20: 0.055 | I20: 0.1
A21: Payments for financial assets | B21: 46.5 | C21: 0.022 | D21: 3.5 | E21: 0.002 | F21: 0.001 | G21: 0.001 | H21: 0.001 | I21: —
A22: Subtotal | B22: 2141.1 | C22: 1 | D22: 2268.9 | E22: 1 | F22: 1 | G22: 1 | H22: 1 | I22: 0.044
A23: TOTAL CONSOLIDATED EXPENDITURE | B23: 2141.1 | C23: — | D23: 2268.9 | E23: — | F23: — | G23: — | H23: — | I23: 0.046
A24: Source: National Treasury, Budget Review 2024, 21 February 2024, Table 5.4, p75, Table 7, pp263-264
A26: a Main budget and spending by provinces, public entities and social security funds financed from own revenue.

Sheet Consolidated budget vs GDP
A2: Consolidated budget vs GDP, 2020/21-2026/27
B4: 2020/21 | C4: 2021/22 | D4: 2022/23 | E4: 2023/24 | F4: 2024/25 | G4: 2025/26 | H4: 2026/27
B5: —Outcome— | E5: —Estimate— | F5: —Medium term expenditure—
C6: —Rbn—
A7: Budget revenue | B7: 1409.9 | C7: 1751.7 | D7: 1896.4 | E7: 1921.4 | F7: 2036.6 | G7: 2176.4 | H7: 2323.6
A8: Proportion of GDP | B8: 0.251 | C8: 0.278 | D8: 0.282 | E8: 0.273 | F8: 0.273 | G8: 0.275 | H8: 0.276
A9: Expenditure | B9: 1965.1 | C9: 2043.9 | D9: 2141.1 | E9: 2268.9 | F9: 2369 | G9: 2471.4 | H9: 2597.8
A10: Current payments | B10: 1120.3 | C10: 1210.5 | D10: 1297.4 | E10: 1401 | F10: 1465.6 | G10: 1551.6 | H10: 1623
A11: — debt service costs | B11: 232.6 | C11: 268.1 | D11: 308.5 | E11: 356.1 | F11: 382.2 | G11: 414.7 | H11: 440.2
A12: Transfers and subsidies | B12: 691.4 | C12: 683.5 | D12: 711.2 | E12: 757.2 | F12: 777.9 | G12: 784.6 | H12: 815.8
A13: Payments for capital assets | B13: 62.3 | C13: 73.3 | D13: 86 | E13: 107.1 | F13: 117.8 | G13: 125.6 | H13: 142.7
A14: Payments for financial assets | B14: 91 | C14: 76.6 | D14: 46.5 | E14: 3.5 | F14: 2.6 | G14: 2 | H14: 1.8
A15: Contingency reserve | B15: — | C15: — | D15: — | E15: — | F15: 5 | G15: 7.6 | H15: 14.5
A16: Proportion of GDP | B16: 0.35 | C16: 0.324 | D16: 0.319 | E16: 0.322 | F16: 0.318 | G16: 0.312 | H16: 0.308
A17: Budget balance | B17: -555.2 | C17: -292.2 | D17: -244.7 | E17: -347.4 | F17: -332.4 | G17: -295 | H17: 274.2
A18: Proportion of GDP | B18: -0.099 | C18: -0.046 | D18: -0.036 | E18: -0.049 | F18: -0.045 | G18: -0.037 | H18: -0.033
A19: Gross domestic product | B19: 5615.9 | C19: 6312 | D19: 6721.8 | E19: 7049 | F19: 7452.2 | G19: 7913.8 | H19: 8422.3
A20: Source: National Treasury, Budget Review 2024, 21 February 2024, Table 3.7, p50; Table 7, pp263-264

Sheet Revenue allocations by sphere
A2: Revenue allocations by sphere of government, 2020/21-2026/27
B4: 2020/21 | C4: 2021/22 | D4: 2022/23 | E4: 2023/24 | F4: 2024/25 | G4: 2025/26 | H4: 2026/27
B5: —Outcome— | E5: Estimate | F5: —Medium term estimate—
A6: Sphere of government | B6: —Rbn—
A7: National | B7: 790.5 | C7: 822.8 | D7: 855.9 | E7: 823.9 | F7: 848.5 | G7: 853.7 | H7: 890.5
A8: Provincial | B8: 628.8 | C8: 660.8 | D8: 694.1 | E8: 706.4 | F8: 729.5 | G8: 760.9 | H8: 790.8
A9: Local | B9: 137.1 | C9: 135.6 | D9: 150.7 | E9: 157.8 | F9: 170.3 | G9: 177.7 | H9: 183.8
A10: Provisional allocations not assigned to votes | B10: — | C10: — | D10: — | E10: — | F10: 0.6 | G10: 41.1 | H10: 53.5
A11: Non-interest expenditure | B11: 1556.4 | C11: 1619.2 | D11: 1700.7 | E11: 1688.1 | F11: 1748.8 | G11: 1833.3 | H11: 1918.5
A12: Sphere of government | B12: —%—
A13: National | B13: 0.508 | C13: 0.508 | D13: 0.503 | E13: 0.488 | F13: 0.485 | G13: 0.476 | H13: 0.477
A14: Provincial | B14: 0.404 | C14: 0.408 | D14: 0.408 | E14: 0.418 | F14: 0.417 | G14: 0.425 | H14: 0.424
A15: Local | B15: 0.088 | C15: 0.084 | D15: 0.089 | E15: 0.093 | F15: 0.097 | G15: 0.099 | H15: 0.099
A16: Totala | B16: 1 | C16: 1 | D16: 1 | E16: 1 | F16: 1 | G16: 1 | H16: 1
A17: Source: National Treasury, Budget Review 2024, 21 February 2024, Table 1.2, p24; Table W1.2, p9
A19: a Figures should add up vertically but may not, owing to rounding.

Sheet Interest & non-interest exp
A3: Interest and non-interest expenditure, 2021/22-2026/27
B5: 2021/22 | C5: 2022/23 | D5: 2023/24 | E5: 2024/25 | F5: 2025/26 | G5: 2026/27
D6: Revised estimate | E6: —Medium term estimate—
A7: Revenue (Rbn) | B7: 1751.7 | C7: 1896.4 | D7: 1921.4 | E7: 2036.6 | F7: 2176.4 | G7: 2323.6
A8: Proportion of GDP | B8: 0.278 | C8: 0.282 | D8: 0.273 | E8: 0.273 | F8: 0.275 | G8: 0.276
A9: Expenditure (Rbn) | B9: 2043.9 | C9: 2141.1 | D9: 2268.9 | E9: 2369 | F9: 2471.4 | G9: 2597.8
A10: Proportion of GDP | B10: 0.324 | C10: 0.319 | D10: 0.322 | E10: 0.318 | F10: 0.312 | G10: 0.308
A11: Non-interest expenditure (Rbn) | B11: 1767.9 | C11: 1825.3 | D11: 1904.9 | E11: 1978.1 | F11: 2048.1 | G11: 2149.3
A12: Proportion of GDP | B12: 0.28 | C12: 0.272 | D12: 0.27 | E12: 0.265 | F12: 0.259 | G12: 0.255
A13: Interest payments (Rbn) | B13: 268.1 | C13: 308.5 | D13: 356.1 | E13: 382.2 | F13: 414.7 | G13: 440.2
A14: Proportion of GDPa | B14: 0.042 | C14: 0.046 | D14: 0.051 | E14: 0.051 | F14: 0.052 | G14: 0.052
A15: Budget balance (Rbn) | B15: -292.2 | C15: -244.7 | D15: -347.4 | E15: -332.4 | F15: -295 | G15: -274.2
A16: Proportion of GDP | B16: -0.046 | C16: -0.036 | D16: -0.049 | E16: -0.045 | F16: -0.037 | G16: -0.033
A17: Proportion of total expenditure
A18: Interest | B18: 0.131 | C18: 0.144 | D18: 0.157 | E18: 0.162 | F18: 0.168 | G18: 0.17
A19: Non-interesta | B19: =B20-B18 -> 0.869 | C19: 0.856 | D19: 0.843 | E19: 0.838 | F19: 0.832 | G19: =F20-G18 -> 0.83
A20: Total | B20: 1 | C20: 1 | D20: 1 | E20: 1 | F20: 1 | G20: 1
A21: Source: National Treasury, Budget Review 2024, 21 February 2024, Table 3.7-3.8, p50,
A23: a CRA calculations.

Sheet Macroeconomic performance
A2: Macro-economic performance and projections, 2021-27
A5: Indicator | B5: 2021 | C5: 2022 | D5: 2023 | E5: 2024 | F5: 2025 | G5: 2026 | H5: 2027
B6: — Actual— | E6: Estimate | F6: —Forecast—
A7: Final household consumption | B7: 0.062 | C7: 0.025 | D7: 0.007 | E7: 0.012 | F7: 0.018 | G7: 0.017 | H7: 0.019
A8: Final government consumption | B8: 0.006 | C8: 0.006 | D8: 0.019 | E8: 0.014 | F8: 0.009 | G8: -0.004 | H8: -0.001
A9: Gross fixed capital formation | B9: -0.004 | C9: 0.048 | D9: 0.039 | E9: -0.025 | F9: 0.047 | G9: 0.042 | H9: 0.038
A10: Gross domestic expenditure | B10: 0.049 | C10: 0.04 | D10: 0.008 | E10: 0.005 | F10: 0.02 | G10: 0.017 | H10: 0.019
A11: Exports of goods and services | B11: 0.097 | C11: 0.068 | D11: 0.037 | E11: -0.016 | F11: 0.031 | G11: 0.031 | H11: 0.031
A12: Imports of goods and services | B12: 0.096 | C12: 0.15 | D12: 0.039 | E12: -0.032 | F12: 0.041 | G12: 0.028 | H12: 0.03
A13: Real GDP growth | B13: 0.05 | C13: 0.019 | D13: 0.007 | E13: 0.011 | F13: 0.017 | G13: 0.017 | H13: 0.019
A14: GDP at current prices (Rbn) | B14: 6220.2 | C14: 6655.5 | D14: 7024 | E14: 7396.7 | F14: 7897.6 | G14: 8404.1 | H14: 8593.6
A15: Headline inflation (CPI) | B15: 0.046 | C15: 0.069 | D15: 0.059 | E15: 0.046 | F15: 0.044 | G15: 0.045 | H15: 0.045
A16: Current account balance (as a proportion of GDP) | B16: 0.037 | C16: -0.005 | D16: -0.016 | E16: -0.018 | F16: -0.021 | G16: -0.022 | H16: -0.025
A17: Source: National Treasury, Medium Term Budget Policy Statement (MTBPS) 2024, 30 October 2024, p12

Sheet Public sector infrastructure
A2: Public sector infrastructure expenditure, 2021/22-2026/27
A4: Allocation | B4: 2021/22 | C4: 2022/23 | D4: 2023/24 | E4: 2024/25 | F4: 2025/26 | G4: 2026/27 | H4: Total 2024/25- 2026/27 | I4: % of totalf
A5: Type | B5: —Outcome— | D5: Revised estimate | E5: —Medium term estimate—
A7: Energy | B7: 35.5 | C7: 38.7 | D7: 54.8 | E7: 58.5 | F7: 70.5 | G7: 74.8 | H7: 203.8 | I7: 0.2159355796
A8: Water and sanitation | B8: 30.6 | C8: 35.4 | D8: 43.8 | E8: 53.2 | F8: 57.6 | G8: 50.1 | H8: 160.9 | I8: 0.1704810341
A9: Transport and logistics | B9: 65.9 | C9: 86.4 | D9: 97.4 | E9: 106.4 | F9: 115.1 | G9: 118.4 | H9: 340 | I9: 0.3602458148
A10: Other economic services | B10: 21.8 | C10: 18.9 | D10: 23.5 | E10: 20.3 | F10: 21.4 | G10: 21.7 | H10: 63.4 | I10: 0.06717524899
A11: Health | B11: 16.4 | C11: 11.9 | D11: 14.5 | E11: 13.4 | F11: 13.6 | G11: 13.9 | H11: 40.8 | I11: 0.04322949777
A12: Education | B12: 14.5 | C12: 21.1 | D12: 20.8 | E12: 20.1 | F12: 17.8 | G12: 18.4 | H12: 56.4 | I12: 0.05975842339
A13: Human settlementsa | B13: 13.4 | C13: 14.3 | D13: 13.8 | E13: 14.2 | F13: 14.7 | G13: 14.9 | H13: 43.7 | I13: 0.04630218267
A14: Other social services | B14: 2.2 | C14: 3.3 | D14: 3.2 | E14: 2.6 | F14: 2.2 | G14: 2.3 | H14: 7 | I14: 0.007416825599
A15: Administration servicesb | B15: 12 | C15: 9 | D15: 9 | E15: 8.9 | F15: 9.4 | G15: 9.5 | H15: 27.8 | I15: 0.02945539309
A16: Total | B16: 212.3 | C16: 238.8 | D16: 280.7 | E16: 297.5 | F16: 322.2 | G16: 324.1 | H16: 943.8 | I16: 1
A17: Entity
A18: National departments | B18: 12.5 | C18: 13.2 | D18: 16.5 | E18: 14.3 | F18: 13 | G18: 13.8 | H18: 41.1 | I18: 0.04354736173
A19: Provincial departments | B19: 57.7 | C19: 60.1 | D19: 63.9 | E19: 63.4 | F19: 60 | G19: 60.4 | H19: 183.7 | I19: 0.1946386946
A20: Local government | B20: 62.1 | C20: 64.7 | D20: 68.4 | E20: 67.9 | F20: 71.3 | G20: 74.5 | H20: 213.8 | I20: 0.2265310447
A21: Public entitiesc | B21: 20.2 | C21: 26.8 | D21: 29.8 | E21: 32.7 | F21: 37.4 | G21: 41.3 | H21: 111.4 | I21: 0.1180334817
A22: Public-private partnershipsd | B22: 6.5 | C22: 6 | D22: 6.3 | E22: 6.3 | F22: 6.4 | G22: 6.4 | H22: 19.1 | I22: 0.02023733842
A23: State-owned companiese | B23: 53.4 | C23: 68 | D23: 95.7 | E23: 112.9 | F23: 134.2 | G23: 127.7 | H23: 374.7 | I23: 0.3970120788
A24: Total | B24: 212.3 | C24: 238.8 | D24: 280.7 | E24: 297.5 | F24: 322.2 | G24: 324.1 | H24: 943.8 | I24: 1
A25: Proportion of GDPf | B25: =B24/B26 -> 0.03363434728 | C25: 0.03552619834 | D25: 0.03982125124 | E25: 0.03992109713 | F25: 0.04071369001 | G25: 0.03848117498 | H25: 0.03967496626 | I25: —
A26: GDP (Rbn) | B26: 6312 | C26: 6721.8 | D26: 7049 | E26: 7452.2 | F26: 7913.8 | G26: 8422.3 | H26: 23788.3 | I26: —
A27: Source: National Treasury, Budget Review 2024, 21 February 2024. Table D1, p188
A29: a Human settlements includes public housing and bulk infrastructure amounting to R43.7 billion for 2024/25-2026/27.
A30: b Administration services include infrastructure spending by the Department of International Relations, the Department of Home Affairs, the Department of Public Works, Statistics South Africa and their entities.
A31: c Public entities are financed by capital transfers from the fiscus.
A32: d Public-private partnerships include project development funds, capital contributions and unitary payments.
A33: e State-owned companies are financed from a combination of own revenue, borrowings, and private funding.
A34: f CRA calculations.

Sheet BUDGETS 1994-2025

Sheet Four-way budget 1994-2026
A2: BUDGETS, 1994/95-2026/27
A4: Four-way budget breakdown, 1994/95-2026/27
A6: Budget breakdown | B6: 1994/95 | C6: 2021/22 | D6: 2022/23 | E6: 2023/24 | F6: 2024/25 | G6: 2025/26 | H6: 2026/27
A7: General public services and state debt cost | B7: 0.256 | C7: 0.2 | D7: 0.197 | E7: 0.209 | F7: 0.21 | G7: 0.216 | H7: 0.218
A8: Defence and safety | B8: 0.184 | C8: 0.101 | D8: 0.102 | E8: 0.099 | F8: 0.1 | G8: 0.1 | H8: 0.099
A9: Economic and environment | B9: 0.112 | C9: 0.114 | D9: 0.12 | E9: 0.108 | F9: 0.106 | G9: 0.108 | H9: 0.106
A10: Social | B10: 0.448 | C10: 0.585 | D10: 0.581 | E10: 0.584 | F10: 0.584 | G10: 0.576 | H10: 0.577
A11: Total | B11: 1 | C11: 1 | D11: 1 | E11: 1 | F11: 1 | G11: 1 | H11: 1
A12: Source: South Africa Survey 1995/96, p557; National Treasury, Budget Review 2024, 21 February 2024, Table 8, pp216-217; CRA calculations

Sheet BG Four-way budget 1994-2026
A1: BC
A2: Four-way budget breakdown, 1994/95 - 2024/25
B3: 1994/95 | C3: 2024/25 | D3: 2025/26
A4: General public services and state debt cost: | B4: 0.256 | C4: 0.21 | D4: 0.216
A5: Defence and safety | B5: 0.184 | C5: 0.1 | D5: 0.1
A6: Economic and environment | B6: 0.112 | C6: 0.106 | D6: 0.108
A7: Social | B7: 0.448 | C7: 0.584 | D7: 0.576

Sheet Change in proportions 94-26
A2: Change in proportions, 1994/95-2025/26
A4: Budget breakdown | B4: —Change—
B5: 1994/95 vs 2024/25 | C5: 2024/25 vs 2025/26
A6: General public services and state debt cost | B6: -0.047 | C6: 0.006
A7: Defence and safety | B7: -0.085 | C7: 0
A8: Economic and environment | B8: -0.004 | C8: 0.002
A9: Social | B9: 0.136 | C9: -0.008
A10: Source: South Africa Survey 1995/96, p557; National Treasury, Budget Review 2024, 21 February 2024, Table 8, pp216-217; CRA calculations

Sheet Expend. under new constitution
A2: Expenditure under the new Constitution, 1994/95 and 2024/25
A4: Allocation | B4: 1994/95 | C4: 2024/25 | D4: 1994/95 | E4: 2024/25 | F4: 1994/95 | G4: 2024/25a
B5: —Rbn — | D5: —Proportion of total— | F5: —Proportion of GDP—
A6: General public services | B6: 38 | C6: 496.1 | D6: 0.256 | E6: 0.21 | F6: 0.076 | G6: 0.067
A7: State debt costs | B7: 24.9 | C7: 382.2 | D7: 0.168 | E7: 0.162 | F7: 0.05 | G7: 0.051
A8: Defence | B8: 12.9 | C8: 53.1 | D8: 0.087 | E8: 0.022 | F8: 0.026 | G8: 0.007
A9: Public order and safetyb | B9: 14.4 | C9: 183.2 | D9: 0.097 | E9: 0.078 | F9: 0.029 | G9: 0.025
A10: Police services | B10: 10.2 | C10: 127.2 | D10: 0.069 | E10: 0.054 | F10: 0.021 | G10: 0.017
A11: Law courts | B11: 1.6 | C11: 28.3 | D11: 0.011 | E11: 0.012 | F11: 0.003 | G11: 0.004
A12: Prisons | B12: 2.6 | C12: 27.8 | D12: 0.018 | E12: 0.012 | F12: 0.005 | G12: 0.004
A13: Economic affairs | B13: 16.6 | C13: 235.6 | D13: 0.112 | E13: 0.1 | F13: 0.033 | G13: 0.032
A14: Health | B14: 15.6 | C14: 267.2 | D14: 0.105 | E14: 0.113 | F14: 0.031 | G14: 0.036
A15: Education | B15: 31.4 | C15: 474.9 | D15: 0.212 | E15: 0.201 | F15: 0.063 | G15: 0.064
A16: Social protection | B16: 13.7 | C16: 395.5 | D16: 0.092 | E16: 0.167 | F16: 0.028 | G16: 0.053
A17: Housing and community amenitiesb | B17: 5 | C17: 228.7 | D17: 0.034 | E17: 0.097 | F17: 0.01 | G17: 0.031
A18: Housing development | B18: 1.6 | C18: 42.2 | D18: 0.011 | E18: 0.018 | F18: 0.003 | G18: 0.006
A19: Community development | B19: 2.2 | C19: 129.2 | D19: 0.015 | E19: 0.055 | F19: 0.004 | G19: 0.017
A20: Water supply | B20: 1.2 | C20: 57.3 | D20: 0.008 | E20: 0.024 | F20: 0.002 | G20: 0.008
A21: Environmental protection | B21: — | C21: 15.2 | D21: — | E21: 0.006 | F21: — | G21: 0.002
A22: Recreation and culture | B22: 0.7 | C22: 14.5 | D22: 0.005 | E22: 0.006 | F22: 0.001 | G22: 0.002
A23: Subtotalb | B23: 148.2 | C23: 2364 | D23: 1 | E23: 1 | F23: 0.298 | G23: 0.317
A24: Contingency reserves | B24: — | C24: 5 | D24: — | E24: — | F24: — | G24: 0.001
A25: TOTAL CONSOLIDATED EXPENDITUREb | B25: 148.2 | C25: 2369 | D25: — | E25: 1 | F25: 0.298 | G25: 0.318
A26: Source: National Treasury, Budget Review 2024, 21 February 2024
A28: a CRA calculations. The 2024/25 GDP estimates are from the 2024 Budget.
A29: b Figures should add up vertically but may not, owing to rounding.

Sheet DEFICIT AND DEBT

Sheet Nat. govern.finance % of GDP
B2: DEFICIT AND DEBT
B6: National government finance as a proportion of GDP, 1977/78-2027/28
B8: Yeara | C8: Revenue | D8: Expenditure | E8: Deficit/surplus
B9: 1977/78 | C9: 0.178 | D9: 0.226 | E9: -0.048
B10: 1978/79 | C10: 0.18 | D10: 0.219 | E10: -0.039
B11: 1979/80 | C11: 0.181 | D11: 0.208 | E11: -0.027
B12: 1980/81 | C12: 0.19 | D12: 0.192 | E12: -0.001
B13: 1981/82 | C13: 0.179 | D13: 0.198 | E13: -0.019
B14: 1982/83 | C14: 0.188 | D14: 0.207 | E14: -0.02
B15: 1983/84 | C15: 0.18 | D15: 0.209 | E15: -0.029
B16: 1984/85 | C16: 0.19 | D16: 0.219 | E16: -0.029
B17: 1985/86 | C17: 0.211 | D17: 0.232 | E17: -0.021
B18: 1986/87 | C18: 0.2 | D18: 0.239 | E18: -0.039
B19: 1987/88 | C19: 0.197 | D19: 0.241 | E19: -0.045
B20: 1988/89 | C20: 0.208 | D20: 0.24 | E20: -0.031
B21: 1989/90 | C21: 0.222 | D21: 0.235 | E21: -0.012
B22: 1990/91 | C22: 0.214 | D22: 0.23 | E22: -0.017
B23: 1991/92 | C23: 0.201 | D23: 0.234 | E23: -0.033
B24: 1992/93 | C24: 0.192 | D24: 0.257 | E24: -0.064
B25: 1993/94 | C25: 0.194 | D25: 0.244 | E25: -0.049
B26: 1994/95 | C26: 0.199 | D26: 0.24 | E26: -0.041
B27: 1995/96 | C27: 0.198 | D27: 0.243 | E27: -0.045
B28: 1996/97 | C28: 0.203 | D28: 0.246 | E28: -0.044
B29: 1997/98 | C29: 0.206 | D29: 0.238 | E29: -0.032
B30: 1998/99 | C30: 0.212 | D30: 0.237 | E30: -0.024
B31: 1999/2000 | C31: 0.208 | D31: 0.227 | E31: -0.019
B32: 2000/01 | C32: 0.198 | D32: 0.215 | E32: -0.017
B33: 2001/02 | C33: 0.206 | D33: 0.218 | E33: -0.012
B34: 2002/03 | C34: 0.199 | D34: 0.208 | E34: -0.009
B35: 2003/04 | C35: 0.196 | D35: 0.216 | E35: -0.02
B36: 2004/05 | C36: 0.205 | D36: 0.218 | E36: -0.013
B37: 2005/06 | C37: 0.218 | D37: 0.221 | E37: -0.003
B38: 2006/07 | C38: 0.226 | D38: 0.22 | E38: 0.006
B39: 2007/08 | C39: 0.233 | D39: 0.225 | E39: 0.008
B40: 2008/09 | C40: 0.23 | D40: 0.237 | E40: -0.007
B41: 2009/10 | C41: 0.206 | D41: 0.251 | E41: -0.045
B42: 2010/11 | C42: 0.215 | D42: 0.251 | E42: -0.036
B43: 2011/12 | C43: 0.219 | D43: 0.262 | E43: -0.044
B44: 2012/13 | C44: 0.217 | D44: 0.266 | E44: -0.049
B45: 2013/14 | C45: 0.223 | D45: 0.266 | E45: -0.042
B46: 2014/15 | C46: 0.228 | D46: 0.269 | E46: -0.042
B47: 2015/16 | C47: 0.238 | D47: 0.277 | E47: -0.039
B48: 2016/17 | C48: 0.235 | D48: 0.27 | E48: -0.035
B49: 2017/18 | C49: 0.233 | D49: 0.273 | E49: -0.041
B50: 2018/19 | C50: 0.235 | D50: 0.277 | E50: -0.042
B51: 2019/20 | C51: 0.235 | D51: 0.296 | E51: -0.061
B52: 2020/21 | C52: 0.22 | D52: 0.318 | E52: -0.098
B53: 2021/22 | C53: 0.247 | D53: 0.298 | E53: -0.051
B54: 2022/23 | C54: 0.251 | D54: 0.297 | E54: -0.046
B55: 2023/24 | C55: 0.243 | D55: 0.289 | E55: -0.046
B56: 2024/25b | C56: 0.269 | D56: 0.318 | E56: -0.05
B57: 2025/26b | C57: 0.27 | D57: 0.313 | E57: -0.043
B58: 2026/27b | C58: 0.271 | D58: 0.308 | E58: -0.036
B59: 2027/28b | C59: 0.272 | D59: 0.304 | E59: -0.032
B60: Source: South African Reserve Bank (SARB), time series data, accessed 15 December 2024; National Treasury, MTBPS 2024, 30 October 2024
B62: a Fiscal year ending 31 March. 1976/77-2023/24 data: SARB, 2024/25-2027/28: National Treasury, MTBPS 2024 data and forecasts.
B63: b Estimates.
B65: Worst Year | D65: Best year

Sheet LG Govern. finance % of GDP
A1: LG
A2: National government finance as a proportion of GDP, 1975/76–2025/26
B3: Revenue | C3: Expenditure
A6: 1977/78 | B6: 0.178 | C6: 0.226
B7: 0.18 | C7: 0.219
B8: 0.181 | C8: 0.208
B9: 0.19 | C9: 0.192
B10: 0.179 | C10: 0.198
B11: 0.188 | C11: 0.207
B12: 0.18 | C12: 0.209
B13: 0.19 | C13: 0.219
B14: 0.211 | C14: 0.232
B15: 0.2 | C15: 0.239
B16: 0.197 | C16: 0.241
B17: 0.208 | C17: 0.24
B18: 0.222 | C18: 0.235
A19: 1990/91 | B19: 0.214 | C19: 0.23
B20: 0.201 | C20: 0.234
B21: 0.192 | C21: 0.257
B22: 0.194 | C22: 0.244
B23: 0.199 | C23: 0.24
B24: 0.198 | C24: 0.243
B25: 0.203 | C25: 0.246
B26: 0.206 | C26: 0.238
B27: 0.212 | C27: 0.237
A28: 1999/2000 | B28: 0.208 | C28: 0.227
B29: 0.198 | C29: 0.215
B30: 0.206 | C30: 0.218
B31: 0.199 | C31: 0.208
B32: 0.196 | C32: 0.216
B33: 0.205 | C33: 0.218
B34: 0.218 | C34: 0.221
B35: 0.226 | C35: 0.22
B36: 0.233 | C36: 0.225
B37: 0.23 | C37: 0.237
A38: 2009/10 | B38: 0.206 | C38: 0.251
B39: 0.215 | C39: 0.251
B40: 0.219 | C40: 0.262
B41: 0.217 | C41: 0.266
B42: 0.223 | C42: 0.266
B43: 0.228 | C43: 0.269
B44: 0.238 | C44: 0.277
B45: 0.235 | C45: 0.27
B46: 0.233 | C46: 0.273
B47: 0.235 | C47: 0.277
A48: 2019/20 | B48: 0.235 | C48: 0.296
B49: 0.22 | C49: 0.318
B50: 0.247 | C50: 0.298
B51: 0.251 | C51: 0.297
B52: 0.243 | C52: 0.289
B53: 0.269 | C53: 0.318
B54: 0.27 | C54: 0.313
B55: 0.271 | C55: 0.308
A56: 2027/28 | B56: 0.272 | C56: 0.304

Sheet Deficit

Sheet Budget deficit-surplus
B2: Deficit
B4: Budget deficit/surplus (actual and projected), 1977/78-2027/28
C6: Yeara | D6: Deficit/surplus
C7: 1977/78 | D7: -0.048
C8: 1978/79 | D8: -0.039
C9: 1979/80 | D9: -0.027
C10: 1980/81 | D10: -0.001
C11: 1981/82 | D11: -0.019
C12: 1982/83 | D12: -0.02
C13: 1983/84 | D13: -0.029
C14: 1984/85 | D14: -0.029
C15: 1985/86 | D15: -0.021
C16: 1986/87 | D16: -0.039
C17: 1987/88 | D17: -0.045
C18: 1988/89 | D18: -0.031
C19: 1989/90 | D19: -0.012
C20: 1990/91 | D20: -0.017
C21: 1991/92 | D21: -0.033
C22: 1992/93 | D22: -0.064
C23: 1993/94 | D23: -0.049
C24: 1994/95 | D24: -0.041
C25: 1995/96 | D25: -0.045
C26: 1996/97 | D26: -0.044
C27: 1997/98 | D27: -0.032
C28: 1998/99 | D28: -0.024
C29: 1999/2000 | D29: -0.019
C30: 2000/01 | D30: -0.017
C31: 2001/02 | D31: -0.012
C32: 2002/03 | D32: -0.009
C33: 2003/04 | D33: -0.02
C34: 2004/05 | D34: -0.013
C35: 2005/06 | D35: -0.003
C36: 2006/07 | D36: 0.006
C37: 2007/08 | D37: 0.008 | G37: Best year
C38: 2008/09 | D38: -0.007
C39: 2009/10 | D39: -0.045
C40: 2010/11 | D40: -0.036
C41: 2011/12 | D41: -0.044
C42: 2012/13 | D42: -0.049
C43: 2013/14 | D43: -0.042
C44: 2014/15 | D44: -0.042
C45: 2015/16 | D45: -0.039
C46: 2016/17 | D46: -0.035
C47: 2017/18 | D47: -0.041
C48: 2018/19 | D48: -0.042
C49: 2019/20 | D49: -0.061
C50: 2020/21 | D50: -0.098 | G50: Worst year
C51: 2021/22 | D51: -0.051
C52: 2022/23 | D52: -0.046
C53: 2023/24 | D53: -0.046
C54: 2024/25 | D54: -0.05
C55: 2025/26 | D55: -0.043
C56: 2026/27 | D56: -0.036
C57: 2027/28 | D57: -0.032
C58: Source: SARB, time series data, accessed 15 December 2024; National Treasury, MTBPS 2024, 30 October 2024
C60: a Fiscal year ending 31 March. 1975/76-2021/22: SARB data, 2021/22-2025/26: MTBPS 2022 data and forecasts.

Sheet LG. Budget deficit-surplus
B1: LG
B2: Budget deficit/surplus (actual and projected), 1977/78–2027/28
C4: Deficit/surplus
A5: 1977/78 | C5: -0.048
A6: 1978/79 | C6: -0.039
A7: 1979/80 | C7: -0.027
A8: 1980/81 | B8: 1980/81 | C8: -0.001
A9: 1981/82 | C9: -0.019
A10: 1982/83 | C10: -0.02
A11: 1983/84 | C11: -0.029
A12: 1984/85 | C12: -0.029
A13: 1985/86 | C13: -0.021
A14: 1986/87 | C14: -0.039
A15: 1987/88 | C15: -0.045
A16: 1988/89 | C16: -0.031
A17: 1989/90 | C17: -0.012
A18: 1990/91 | B18: 1990/91 | C18: -0.017
A19: 1991/92 | C19: -0.033
A20: 1992/93 | C20: -0.064
A21: 1993/94 | C21: -0.049
A22: 1994/95 | C22: -0.041
A23: 1995/96 | C23: -0.045
A24: 1996/97 | C24: -0.044
A25: 1997/98 | C25: -0.032
A26: 1998/99 | C26: -0.024
A27: 1999/2000 | B27: 1999/2000 | C27: -0.019
A28: 2000/01 | C28: -0.017
A29: 2001/02 | C29: -0.012
A30: 2002/03 | C30: -0.009
A31: 2003/04 | C31: -0.02
A32: 2004/05 | C32: -0.013
A33: 2005/06 | C33: -0.003
A34: 2006/07 | C34: 0.006
A35: 2007/08 | C35: 0.008
A36: 2008/09 | C36: -0.007
A37: 2009/10 | B37: 2009/10 | C37: -0.045
A38: 2010/11 | C38: -0.036
A39: 2011/12 | C39: -0.044
A40: 2012/13 | C40: -0.049
A41: 2013/14 | C41: -0.042
A42: 2014/15 | C42: -0.042
A43: 2015/16 | C43: -0.039
A44: 2016/17 | C44: -0.035
A45: 2017/18 | C45: -0.041
A46: 2018/19 | C46: -0.042
A47: 2019/20 | B47: 2019/20 | C47: -0.061
A48: 2020/21 | C48: -0.098
A49: 2021/22 | C49: -0.051
A50: 2022/23 | C50: -0.046
A51: 2023/24 | C51: -0.046
A52: 2024/25 | C52: -0.05
A53: 2025/26 | C53: -0.043
A54: 2026/27 | C54: -0.036
A55: 2027/28 | B55: 2027/28 | C55: -0.032

Sheet Public debt

Sheet Total debt of government
A2: Public debt
A4: Total debt of government, 1984/85-2026/27
A6: Year ending 31 March | B6: Total debta | C6: Domestic debt | D6: Foreign debt | E6: Domestic debt | F6: Foreign debt | G6: Total debt
B7: Rbn | C7: —As a proportion of total debt— | E7: —As a proportion of GDP—
A8: 1984/85 | B8: 35 | C8: 0.937 | D8: 0.063 | E8: 0.253 | F8: 0.017 | G8: 0.27
A9: 1985/86 | B9: 39.5 | C9: 0.942 | D9: 0.058 | E9: 0.252 | F9: 0.016 | G9: 0.267
A10: 1986/87 | B10: 46.8 | C10: 0.948 | D10: 0.052 | E10: 0.254 | F10: 0.014 | G10: 0.268
A11: 1987/88 | B11: 57.5 | C11: 0.958 | D11: 0.042 | E11: 0.269 | F11: 0.012 | G11: 0.281
A12: 1988/89 | B12: 68.7 | C12: 0.968 | D12: 0.032 | E12: 0.269 | F12: 0.009 | G12: 0.278
A13: 1989/90 | B13: 81.9 | C13: 0.974 | D13: 0.026 | E13: 0.272 | F13: 0.007 | G13: 0.279
A14: 1990/91 | B14: 95.3 | C14: 0.981 | D14: 0.019 | E14: 0.278 | F14: 0.005 | G14: 0.283
A15: 1991/92 | B15: 114.1 | C15: 0.974 | D15: 0.026 | E15: 0.288 | F15: 0.008 | G15: 0.295
A16: 1992/93 | B16: 145.7 | C16: 0.984 | D16: 0.016 | E16: 0.332 | F16: 0.005 | G16: 0.338
A17: 1993/94 | B17: 190 | C17: 0.973 | D17: 0.027 | E17: 0.37 | F17: 0.01 | G17: 0.381
A18: 1994/95 | B18: 240.2 | C18: 0.963 | D18: 0.037 | E18: 0.412 | F18: 0.016 | G18: 0.427
A19: 1995/96 | B19: 279.5 | C19: 0.961 | D19: 0.039 | E19: 0.419 | F19: 0.017 | G19: 0.436
A20: 1996/97 | B20: 308.2 | C20: 0.963 | D20: 0.037 | E20: 0.412 | F20: 0.016 | G20: 0.428
A21: 1997/98 | B21: 336.1 | C21: 0.957 | D21: 0.043 | E21: 0.404 | F21: 0.018 | G21: 0.422
A22: 1998/99 | B22: 363.2 | C22: 0.955 | D22: 0.045 | E22: 0.402 | F22: 0.019 | G22: 0.421
A23: 1999/2000 | B23: 381.5 | C23: 0.932 | D23: 0.068 | E23: 0.373 | F23: 0.027 | G23: 0.4
A24: 2000/01 | B24: 399.6 | C24: 0.92 | D24: 0.08 | E24: 0.338 | F24: 0.029 | G24: 0.367
A25: 2001/02 | B25: 433.5 | C25: 0.811 | D25: 0.189 | E25: 0.292 | F25: 0.068 | G25: 0.36
A26: 2002/03 | B26: 427.1 | C26: 0.826 | D26: 0.174 | E26: 0.252 | F26: 0.053 | G26: 0.305
A27: 2003/04 | B27: 454.969 | C27: 0.858 | D27: 0.142 | E27: 0.256 | F27: 0.042 | G27: 0.298
A28: 2004/05 | B28: 501.496 | C28: 0.862 | D28: 0.138 | E28: 0.255 | F28: 0.041 | G28: 0.297
A29: 2005/06 | B29: 528.3 | C29: 0.873 | D29: 0.127 | E29: 0.245 | F29: 0.035 | G29: 0.28
A30: 2006/07 | B30: 553.7 | C30: 0.851 | D30: 0.149 | E30: 0.221 | F30: 0.039 | G30: 0.259
A31: 2007/08 | B31: 577 | C31: 0.833 | D31: 0.167 | E31: 0.2 | F31: 0.04 | G31: 0.24
A32: 2008/09 | B32: 627 | C32: 0.845 | D32: 0.155 | E32: 0.199 | F32: 0.037 | G32: 0.236
A33: 2009/10 | B33: 804.9 | C33: 0.876 | D33: 0.124 | E33: 0.248 | F33: 0.035 | G33: 0.283
A34: 2010/11 | B34: 990.6 | C34: 0.901 | D34: 0.099 | E34: 0.286 | F34: 0.031 | G34: 0.317
A35: 2011/12 | B35: 1187.8 | C35: 0.902 | D35: 0.098 | E35: 0.316 | F35: 0.034 | G35: 0.35
A36: 2012/13 | B36: 1365.7 | C36: 0.909 | D36: 0.091 | E36: 0.342 | F36: 0.034 | G36: 0.376
A37: 2013/14 | B37: 1584.8 | C37: 0.909 | D37: 0.091 | E37: 0.365 | F37: 0.036 | G37: 0.402
A38: 2014/15 | B38: 1798.9 | C38: 0.907 | D38: 0.093 | E38: 0.389 | F38: 0.04 | G38: 0.428
A39: 2015/16 | B39: 2019 | C39: 0.901 | D39: 0.099 | E39: 0.404 | F39: 0.044 | G39: 0.449
A40: 2016/17 | B40: 2232.9 | C40: 0.905 | D40: 0.095 | E40: 0.418 | F40: 0.044 | G40: 0.462
A41: 2017/18 | B41: 2489.7 | C41: 0.913 | D41: 0.087 | E41: 0.442 | F41: 0.042 | G41: 0.485
A42: 2018/19 | B42: 2788.3 | C42: 0.896 | D42: 0.104 | E42: 0.461 | F42: 0.054 | G42: 0.515
A43: 2019/20 | B43: 3261.3 | C43: 0.881 | D43: 0.119 | E43: 0.503 | F43: 0.068 | G43: 0.571
A44: 2020/21 | B44: 3935.7 | C44: 0.9 | D44: 0.1 | E44: 0.631 | F44: 0.07 | G44: 0.701
A45: 2021/22 | B45: 4277.5 | C45: 0.904 | D45: 0.096 | E45: 0.612 | F45: 0.065 | G45: 0.678
A46: 2022/23 | B46: 4765.4 | C46: 0.883 | D46: 0.117 | E46: 0.626 | F46: 0.083 | G46: 0.709
A47: 2023/24 | B47: 5259.4 | C47: 0.888 | D47: 0.112 | E47: 0.658 | F47: 0.083 | G47: 0.741
A48: 2024/25 | B48: 5622.5 | C48: 0.897 | D48: 0.103 | E48: 0.671 | F48: 0.077 | G48: 0.747
A49: 2025/26 | B49: 6054.7 | C49: 0.899 | D49: 0.101 | E49: 0.679 | F49: 0.077 | G49: 0.755
A50: 2026/27 | B50: 6424.4 | C50: 0.894 | D50: 0.106 | E50: 0.673 | F50: 0.08 | G50: 0.753
A51: 2027/28 | B51: 6817.5 | C51: 0.889 | D51: 0.111 | E51: 0.667 | F51: 0.083 | G51: 0.75
A52: Source: National Treasury, MTBS 2024, 30 October 2024, p26
A53: a Refers to gross total loan debt; net total loan debt excludes cash balances, while total net debt includes the Gold and Foreign Exchange Contingency Reserve Account. Figures refer to central government debt excluding extra-budgetary institutions (such as libraries, museums, parks boards, research councils, technikons, universities, the National Road Fund, and Legal Aid Board) and social security funds (such as the Unemployment Insurance Fund). Figures prior to 1994 exclude the converted debt of the former homelands and are, therefore, not comparable with the ones thereafter.
A55: Worst year | C55: Best year
A58: For Tamara only!
A59: Total debt | B59: 4114F
A60: Foreign debt | B60: 4108Z | C60: % of total
A61: Foreign debt | B61: 4108X | C61: % of GDP
A62: Domestic debt | B62: 4105Z | C62: % of total
A63: Domestic debt | B63: 4105X | C63: % of GDP
A64: Total gross loan debt | B64: 4116F | C64: %

Sheet LG Govt foreign debt % GDP
A1: LG
B3: Government foreign debt as a proportion of GDP, 1987/88–2027/28
A4: 1987/88 | B4: 0.012
B5: 0.009
B6: 0.007
A7: 1990/91 | B7: 0.005
B8: 0.008
B9: 0.005
B10: 0.01
B11: 0.016
B12: 0.017
B13: 0.016
B14: 0.018
B15: 0.019
A16: 1999/2000 | B16: 0.027
B17: 0.029
B18: 0.068
B19: 0.053
B20: 0.042
B21: 0.041
B22: 0.035
B23: 0.039
B24: 0.04
B25: 0.037
B26: 0.035
A27: 2010/11 | B27: 0.031
B28: 0.034
B29: 0.034
B30: 0.036
B31: 0.04
B32: 0.044
B33: 0.044
B34: 0.042
B35: 0.054
B36: 0.068
A37: 2020/21 | B37: 0.07
B38: 0.065
B39: 0.083
B40: 0.083
B41: 0.077
B42: 0.077
B43: 0.08
A44: 2027/28 | B44: 0.083

Sheet BG Total govern. debt % of GDP
A1: BC
A3: Total government debt as a proportion of GDP, 1987/88–2027/28
A4: 1987/88 | B4: 0.281
A5: 1988/89 | B5: 0.278
A6: 1989/90 | B6: 0.279
A7: 1990/91 | B7: 0.283
A8: 1991/92 | B8: 0.295
A9: 1992/93 | B9: 0.338
A10: 1993/94 | B10: 0.381
A11: 1994/95 | B11: 0.427
A12: 1995/96 | B12: 0.436
A13: 1996/97 | B13: 0.428
A14: 1997/98 | B14: 0.422
A15: 1998/99 | B15: 0.421
A16: 1999/2000 | B16: 0.4
A17: 2000/01 | B17: 0.367
A18: 2001/02 | B18: 0.36
A19: 2002/03 | B19: 0.305
A20: 2003/04 | B20: 0.298
A21: 2004/05 | B21: 0.297
A22: 2005/06 | B22: 0.28
A23: 2006/07 | B23: 0.259
A24: 2007/08 | B24: 0.24
A25: 2008/09 | B25: 0.236
A26: 2009/10 | B26: 0.283
A27: 2010/11 | B27: 0.317
A28: 2011/12 | B28: 0.35
A29: 2012/13 | B29: 0.376
A30: 2013/14 | B30: 0.402
A31: 2014/15 | B31: 0.428
A32: 2015/16 | B32: 0.449
A33: 2016/17 | B33: 0.462
A34: 2017/18 | B34: 0.485
A35: 2018/19 | B35: 0.514
A36: 2019/20 | B36: 0.571
A37: 2020/21 | B37: 0.701
A38: 2021/22 | B38: 0.678
A39: 2022/23 | B39: 0.709
A40: 2023/24 | B40: 0.741
A41: 2024/25 | B41: 0.747
A42: 2025/26 | B42: 0.755
A43: 2026/27 | B43: 0.753
A44: 2027/28 | B44: 0.75

Sheet State debt cost 1987-2027
A2: State debt costa, 1987/88-2027/28
B4: —Interest payments— | E4: Yields on 10-year government bondsc | F4: Budget deficit/ surplus as a proportion of GDP
A5: Fiscal year | B5: Rbnb | C5: Proportion of total expenditure | D5: Proportion of GDP
A6: 1987/88 | B6: 7.5 | C6: 0.126 | D6: 0.043 | E6: 0.155 | F6: -0.045
A7: 1988/89 | B7: 8.4 | C7: 0.116 | D7: 0.04 | E7: 0.167 | F7: -0.031
A8: 1989/90 | B8: 10.8 | C8: 0.124 | D8: 0.043 | E8: 0.159 | F8: -0.012
A9: 1990/91 | B9: 12.3 | C9: 0.148 | D9: 0.043 | E9: 0.16 | F9: -0.017
A10: 1991/92 | B10: 14.5 | C10: 0.149 | D10: 0.045 | E10: 0.167 | F10: -0.033
A11: 1992/93 | B11: 17.5 | C11: 0.148 | D11: 0.05 | E11: 0.149 | F11: -0.064
A12: 1993/94 | B12: 22.2 | C12: 0.169 | D12: 0.056 | E12: 0.123 | F12: -0.049
A13: 1994/95 | B13: 24.6 | C13: 0.175 | D13: 0.055 | E13: 0.168 | F13: -0.041
A14: 1995/96 | B14: 29.5 | C14: 0.188 | D14: 0.059 | E14: 0.146 | F14: -0.045
A15: 1996/97 | B15: 33.2 | C15: 0.177 | D15: 0.04605354418 | E15: 0.162 | F15: -0.044
A16: 1997/98 | B16: 38.8 | C16: 0.19 | D16: 0.04876209627 | E16: 0.141 | F16: -0.032
A17: 1998/99 | B17: 42.7 | C17: 0.202 | D17: 0.04951872898 | E17: 0.164 | F17: -0.024
A18: 1999/2000 | B18: 44.3 | C18: 0.199 | D18: 0.04650430401 | E18: 0.14 | F18: -0.019
A19: 2000/01 | B19: 46.3 | C19: 0.19 | D19: 0.04257079809 | E19: 0.129 | F19: -0.017
A20: 2001/02 | B20: 47.6 | C20: 0.174 | D20: 0.0395184724 | E20: 0.116 | F20: -0.012
A21: 2002/03 | B21: 46.8 | C21: 0.15 | D21: 0.03340709544 | E21: 0.104 | F21: -0.009
A22: 2003/04 | B22: 43.3 | C22: 0.133 | D22: 0.02839716684 | E22: 0.092 | F22: -0.02
A23: 2004/05 | B23: 48.9 | C23: 0.128 | D23: 0.02891267073 | E23: 0.084 | F23: -0.013
A24: 2005/06 | B24: 50.9 | C24: 0.107 | D24: 0.02699866258 | E24: 0.076 | F24: -0.003
A25: 2006/07 | B25: 52.2 | C25: 0.101 | D25: 0.02443968018 | E25: 0.078 | F25: 0.006
A26: 2007/08 | B26: 52.9 | C26: 0.089 | D26: 0.02194741915 | E26: 0.083 | F26: 0.008
A27: 2008/09 | B27: 54.4 | C27: 0.077 | D27: 0.02046293127 | E27: 0.078 | F27: -0.007
A28: 2009/10 | B28: 57.1 | C28: 0.069 | D28: 0.02009448936 | E28: 0.09 | F28: -0.045
A29: 2010/11 | B29: 66.2 | C29: 0.075 | D29: 0.02120388072 | E29: 0.084 | F29: -0.036
A30: 2011/12 | B30: 76.5 | C30: 0.08 | D30: 0.02254684176 | E30: 0.085 | F30: -0.044
A31: 2012/13 | B31: 88.1 | C31: 0.084 | D31: 0.02425142254 | E31: 0.074 | F31: -0.049
A32: 2013/14 | B32: 101.2 | C32: 0.088 | D32: 0.02564643874 | E32: 0.083 | F32: -0.042
A33: 2014/15 | B33: 114.8 | C33: 0.094 | D33: 0.02732813449 | E33: 0.078 | F33: -0.042
A34: 2015/16 | B34: 128.8 | C34: 0.094 | D34: 0.02862815196 | E34: 0.093 | F34: -0.039
A35: 2016/17 | B35: 146.5 | C35: 0.102 | D35: 0.03032303914 | E35: 0.09 | F35: -0.035
A36: 2017/18 | B36: 162.6 | C36: 0.106 | D36: 0.03166244895 | E36: 0.095 | F36: -0.041
A37: 2018/19 | B37: 181.8 | C37: 0.111 | D37: 0.03356191268 | E37: 0.096 | F37: -0.042
A38: 2019/20 | B38: 204.8 | C38: 0.113 | D38: 0.036 | E38: 0.092 | F38: -0.061
A39: 2020/21 | B39: 232.6 | C39: 0.118 | D39: 0.041 | E39: 0.098 | F39: -0.098
A40: 2021/22 | B40: 268.1 | C40: 0.131 | D40: 0.043 | E40: 0.1 | F40: -0.051
A41: 2022/23d | B41: 307.2 | C41: 0.142 | D41: 0.046 | E41: 0.114 | F41: -0.046
A42: 2023/24d | B42: 356.1 | C42: 0.1576500797 | D42: 0.05 | E42: 0.115 | F42: -0.046
A43: 2024/25d | B43: 388.9 | C43: 0.1623799582 | D43: 0.052 | E43: 0.1085 | F43: -0.05
A44: 2025/26d | B44: 419.1 | C44: 0.1669521571 | D44: 0.052 | E44: 0.096 | F44: -0.043
A45: 2026/27 | B45: 445.7 | C45: 0.1698292943 | D45: 0.052 | E45: 0.094 | F45: -0.036
A46: 2027/28 | B46: 475.7 | C46: 0.1719128329 | D46: 0.052 | E46: 0.092 | F46: -0.032
A47: Source: SARB, time series data, accessed 16 December 2024; National Treasury, MTBPS 2024, Table 4.1, p31; Budget data and time series, accessed 16 December 2024, Socio-Economic Survey of South Africa 2024, p205
A48: a Interest payments on government debt. Consolidated government expenditure by function.
A49: b National Treasury budget time series data.
A50: c Calendar years 1987-2022. BER forecasts for 10-year government bond yield 2022-27, October 2024.
A51: d Forecasts.
A53: ONLY FOR TAMARA
A54: Yields data: SARB timeseries (series 2003) data

Sheet LG State debt cost & yields
A1: LG
A2: Interest payments as a proportion of total government spending and yields on 10-year government bonds, 1987/88–2027/28
C4: Interest payments | D4: Yields on 10-year government bonds
B5: 1987/88 | C5: 0.126 | D5: 0.155
C6: 0.116 | D6: 0.167
C7: 0.124 | D7: 0.159
C8: 0.148 | D8: 0.16
C9: 0.149 | D9: 0.167
C10: 0.148 | D10: 0.149
C11: 0.169 | D11: 0.123
C12: 0.175 | D12: 0.168
C13: 0.188 | D13: 0.146
C14: 0.177 | D14: 0.162
C15: 0.19 | D15: 0.141
C16: 0.202 | D16: 0.164
C17: 0.199 | D17: 0.14
B18: 2000/01 | C18: 0.19 | D18: 0.129
C19: 0.174 | D19: 0.116
C20: 0.15 | D20: 0.104
C21: 0.133 | D21: 0.092
C22: 0.128 | D22: 0.084
C23: 0.107 | D23: 0.076
C24: 0.101 | D24: 0.078
C25: 0.089 | D25: 0.083
C26: 0.077 | D26: 0.078
C27: 0.069 | D27: 0.09
B28: 2010/11 | C28: 0.075 | D28: 0.084
C29: 0.08 | D29: 0.085
C30: 0.084 | D30: 0.074
C31: 0.088 | D31: 0.083
C32: 0.094 | D32: 0.078
C33: 0.094 | D33: 0.093
C34: 0.102 | D34: 0.09
C35: 0.106 | D35: 0.095
C36: 0.111 | D36: 0.096
C37: 0.113 | D37: 0.092
B38: 2020/21 | C38: 0.118 | D38: 0.098
C39: 0.131 | D39: 0.1
C40: 0.142 | D40: 0.114
C41: 0.1576500797 | D41: 0.115
C42: 0.1623799582 | D42: 0.1085
C43: 0.1669521571 | D43: 0.096
C44: 0.1698292943 | D44: 0.094
B45: 2027/28 | C45: 0.1719128329 | D45: 0.092

Sheet Ownership of gov.bonds
A2: Ownership of domestic government bonds, 2011-23
A4: Year | B4: Foreign investors | C4: Pension funds | D4: Monetary institutionsa | E4: Insurers | F4: Other financial institutionsb | G4: Otherc
A5: 2011 | B5: 0.286 | C5: 0.333 | D5: 0.169 | E5: 0.116 | F5: 0.075 | G5: 0.021
A6: 2012 | B6: 0.359 | C6: 0.298 | D6: 0.17 | E6: 0.094 | F6: 0.058 | G6: 0.021
A7: 2013 | B7: 0.364 | C7: 0.292 | D7: 0.146 | E7: 0.086 | F7: 0.082 | G7: 0.03
A8: 2014 | B8: 0.361 | C8: 0.317 | D8: 0.147 | E8: 0.082 | F8: 0.087 | G8: 0.006
A9: 2015 | B9: 0.324 | C9: 0.306 | D9: 0.176 | E9: 0.083 | F9: 0.103 | G9: 0.008
A10: 2016 | B10: 0.36 | C10: 0.283 | D10: 0.178 | E10: 0.072 | F10: 0.103 | G10: 0.004
A11: 2017 | B11: 0.414 | C11: 0.266 | D11: 0.15 | E11: 0.067 | F11: 0.099 | G11: 0.004
A12: 2018 | B12: 0.377 | C12: 0.258 | D12: 0.161 | E12: 0.064 | F12: 0.136 | G12: 0.004
A13: 2019 | B13: 0.371 | C13: 0.249 | D13: 0.167 | E13: 0.061 | F13: 0.147 | G13: 0.005
A14: 2020 | B14: 0.299 | C14: 0.224 | D14: 0.22 | E14: 0.07 | F14: 0.176 | G14: 0.011
A15: 2021 | B15: 0.282 | C15: 0.235 | D15: 0.201 | E15: 0.066 | F15: 0.201 | G15: 0.015
A16: 2022 | B16: 0.256 | C16: 0.231 | D16: 0.215 | E16: 0.062 | F16: 0.214 | G16: 0.022
A17: 2023 | B17: 0.253 | C17: 0.228 | D17: 0.199 | E17: 0.072 | F17: 0.226 | G17: 0.022
A18: Source: National Treasury, Budget Review 2024, 21 February 2024, Figure 7.5, p105
A19: a South African registered banks, mutual banks and South African branches of foreign banks.
A20: b Unit trusts, financial companies and holding companies.
A21: c Public sector, private non‐financial corporates, households and nominee companies.

Sheet Credit ratings

Sheet SA credit rating
B3: South Africa's credit ratinga
B5: Standard and Poor's | C5: Moody's | D5: Fitch
B6: —Investment grade—
B7: AAA | C7: Aaa | D7: AAA
B8: AA+ | C8: Aa1 | D8: AA+
B9: AA | C9: Aa2 | D9: AA
B10: AA- | C10: Aa3 | D10: AA-
B11: A+ | C11: A1 | D11: A+
B12: A | C12: A2 | D12: A
B13: A- | C13: A3 | D13: A-
B14: BBB+ | C14: Baa1 | D14: BBB+
B15: BBB | C15: Baa2 | D15: BBB
B16: BBB- | C16: Baa3 | D16: BBB-
B17: —Speculative grade—
B18: BB+ | C18: Ba1 | D18: BB+
B19: BB | C19: Ba2 | D19: BB
B20: BB- | C20: Ba3 | D20: BB-
B21: B+ | C21: B1 | D21: B+
B22: B | C22: B2 | D22: B
B23: B- | C23: B3 | D23: B-
B24: CCC+ | C24: Caa1 | D24: CCC
B25: CCC | C25: Caa2 | D25: CC
B26: CCC- | C26: Ca3 | D26: C
B27: CC | C27: Ca | D27: RD
B28: C | C28: C | D28: D
B29: D | C29: WR | D29: WD
B30: NR | D30: PIF
B31: a South Africa's rating, 15 December 2024

Sheet Intern Budget balance, CPI
B2: International comparisons
B4: Budget balance and other key indicatorsa, selected countries, 2024
B6: Country | C6: Budget balance | D6: CPI | E6: Current interest rate
B7: Argentina | C7: -0.029 | D7: 1.66 | E7: 0.32
B8: Australia | C8: 0.009 | D8: 0.028 | E8: 0.0435
B9: Belgium | C9: -0.042 | D9: 0.032 | E9: 0.0315
B10: Brazil | C10: -0.089 | D10: 0.0487 | E10: 0.1225
B11: Canada | C11: -0.014 | D11: 0.02 | E11: 0.0325
B12: Chile | C12: -0.025 | D12: 0.042 | E12: 0.0525
B13: China | C13: -0.058 | D13: 0.002 | E13: 0.031
B14: Colombia | C14: -0.042 | D14: 0.052 | E14: 0.0975
B15: Czech Republic | C15: -0.037 | D15: 0.028 | E15: 0.04
B16: Denmark | C16: 0.031 | D16: 0.016 | E16: 0.026
B17: Egypt | C17: -0.071 | D17: 0.255 | E17: 0.2725
B18: Euro area | C18: -0.036 | D18: 0.023 | E18: 0.0315
B19: France | C19: -0.055 | D19: 0.013 | E19: 0.0315
B20: Germany | C20: -0.025 | D20: 0.022 | E20: 0.0315
B21: Greece | C21: -0.016 | D21: 0.024 | E21: 0.0315
B22: Hong Kong | C22: -0.05 | D22: 0.014 | E22: 0.05
B23: India | C23: -0.0563 | D23: 0.0548 | E23: 0.065
B24: Indonesia | C24: -0.0165 | D24: 0.0155 | E24: 0.06
B25: Israel | C25: -0.069 | D25: 0.035 | E25: 0.045
B26: Italy | C26: -0.072 | D26: 0.014 | E26: 0.0315
B27: Japan | C27: -0.055 | D27: 0.023 | E27: 0.0025
B28: Malaysia | C28: -0.05 | D28: 0.019 | E28: 0.03
B29: Mexico | C29: -0.05 | D29: 0.0455 | E29: 0.1025
B30: Netherlands | C30: -0.009 | D30: 0.04 | E30: 0.0315
B31: Norway | C31: 0.163 | D31: 0.024 | E31: 0.045
B32: Pakistan | C32: -0.077 | D32: 0.049 | E32: 0.15
B33: Philippines | C33: -0.062 | D33: 0.025 | E33: 0.06
B34: Poland | C34: -0.051 | D34: 0.047 | E34: 0.0575
B35: Russia | C35: -0.019 | D35: 0.089 | E35: 0.21
B36: Saudi Arabia | C36: -0.02 | D36: 0.02 | E36: 0.0525
B37: Singapore | C37: -0.016 | D37: 0.014 | E37: 0.0318
B38: South Africa | C38: -0.049 | D38: 0.029 | E38: 0.0775
B39: South Korea | C39: -0.026 | D39: 0.015 | E39: 0.03
B40: Spain | C40: -0.036 | D40: 0.024 | E40: 0.0315
B41: Sweden | C41: -0.006 | D41: 0.016 | E41: 0.0275
B42: Switzerland | C42: 0.005 | D42: 0.007 | E42: 0.005
B43: Taiwan | C43: -0.005 | D43: 0.0208 | E43: 0.02
B44: Thailand | C44: -0.028 | D44: 0.0095 | E44: 0.0225
B45: Turkey | C45: -0.054 | D45: 0.4709 | E45: 0.5
B46: United Kingdom | C46: -0.044 | D46: 0.023 | E46: 0.0475
B47: United States | C47: -0.062 | D47: 0.027 | E47: 0.0475
B48: Source: Trading Economics, tradingeconomics.com, accessed 15 December 2024
B49: a The latest as at 15 December 2024.
B50: N/A ꟷ Not available.

Sheet Intern Govern. debt % of GDP
A2: General government net debta and gross debtb as a proportion of GDP, selected countries, 2022-25
B4: 2022 | C4: 2023c | D4: 2024c | E4: 2025c | F4: 2022 | G4: 2023c | H4: 2024c | I4: 2025c
A5: Country | B5: —Net debt as a proportion of GDP— | F5: —Gross debt as a proportion of GDP—
A6: Australia | B6: 0.315 | C6: 0.295 | D6: 0.295 | E6: 0.305 | F6: 0.503 | G6: 0.49 | H6: 0.493 | I6: 0.496
A7: Botswana | B7: 0.115 | C7: 0.162 | D7: 0.214 | E7: 0.215 | F7: 0.181 | G7: 0.201 | H7: 0.226 | I7: 0.221
A8: Brazil | B8: 0.561 | C8: 0.609 | D8: 0.61 | E8: 0.664 | F8: 0.839 | G8: 0.847 | H8: 0.876 | I8: 0.92
A9: Chile | B9: 0.204 | C9: 0.232 | D9: 0.242 | E9: 0.25 | F9: 0.378 | G9: 0.394 | H9: 0.41 | I9: 0.416
A10: China | B10: — | C10: — | D10: — | F10: 0.774 | G10: 0.844 | H10: 0.901 | I10: 0.938
A11: Denmark | B11: 0.05 | C11: 0.017 | D11: -0.001 | E11: -0.009 | F11: 0.297 | G11: 0.297 | H11: 0.282 | I11: 0.273
A12: Egypt | B12: 0.839 | C12: 0.912 | D12: 0.862 | E12: 0.799 | F12: 0.885 | G12: 0.959 | H12: 0.909 | I12: 0.845
A13: France | B13: 1.01 | C13: 1.017 | D13: 1.041 | E13: 1.071 | F13: 1.111 | G13: 1.099 | H13: 1.123 | I13: 1.153
A14: Germany | B14: 0.462 | C14: 0.451 | D14: 0.456 | E14: 0.457 | F14: 0.648 | G14: 0.627 | H14: 0.627 | I14: 0.621
A15: Ghana | B15: — | C15: — | D15: — | E15: — | F15: 0.927 | G15: 0.829 | H15: 0.825 | I15: 0.795
A16: Greece | B16: — | C16: — | D16: — | E16: — | F16: 1.796 | G16: 1.689 | H16: 1.59 | I16: 1.529
A17: Hong Kong | B17: — | C17: — | D17: — | E17: — | F17: 0.043 | G17: 0.063 | H17: 0.09 | I17: 0.113
A18: India | B18: — | C18: — | D18: — | E18: — | F18: 0.817 | G18: 0.83 | H18: 0.831 | I18: 0.826
A19: Indonesia | B19: 0.373 | C19: 0.369 | D19: 0.38 | E19: 0.384 | F19: 0.401 | G19: 0.396 | H19: 0.405 | I19: 0.407
A20: Ireland | B20: 0.361 | C20: 0.355 | D20: 0.346 | E20: 0.333 | F20: 0.431 | G20: 0.433 | H20: 0.424 | I20: 0.407
A21: Israel | B21: 0.586 | C21: 0.597 | D21: 0.652 | E21: 0.666 | F21: 0.602 | G21: 0.614 | H21: 0.68 | I21: 0.693
A22: Italy | B22: 1.269 | C22: 1.241 | D22: 1.266 | E22: 1.287 | F22: 1.381 | G22: 1.346 | H22: 1.369 | I22: 1.387
A23: Japan | B23: 1.498 | C23: 1.542 | D23: 1.558 | E23: 1.539 | F23: 2.563 | G23: 2.497 | H23: 2.512 | I23: 2.487
A24: Kazakhstan | B24: -0.012 | C24: 0.002 | D24: 0.02 | E24: 0.034 | F24: 0.235 | G24: 0.228 | H24: 0.248 | I24: 0.276
A25: Lithuania | B25: 0.34 | C25: 0.345 | D25: 0.346 | E25: 0.345 | F25: 0.38 | G25: 0.383 | H25: 0.381 | I25: 0.379
A26: Mexico | B26: 0.484 | C26: 0.479 | D26: 0.525 | E26: 0.527 | F26: 0.542 | G26: 0.531 | H26: 0.577 | I26: 0.579
A27: Mozambique | B27: — | C27: — | D27: — | E27: — | F27: 1.003 | G27: 0.939 | H27: 0.96 | I27: 0.965
A28: Netherlands | B28: 0.396 | C28: 0.369 | D28: 0.363 | E28: 0.369 | F28: 0.484 | G28: 0.45 | H28: 0.443 | I28: 0.451
A29: Nigeria | B29: 0.394 | C29: 0.461 | D29: 0.507 | E29: 0.497 | F29: 0.397 | G29: 0.464 | H29: 0.513 | I29: 0.5
A30: Pakistan | B30: 0.688 | C30: 0.712 | D30: 0.635 | E30: 0.656 | F30: 0.762 | G30: 0.773 | H30: 0.692 | I30: 0.714
A31: Philippines | B31: — | C31: — | D31: — | E31: — | F31: 0.574 | G31: 0.565 | H31: 0.576 | I31: 0.582
A32: Poland | B32: 0.372 | C32: 0.386 | D32: 0.437 | E32: 0.474 | F32: 0.492 | G32: 0.496 | H32: 0.555 | I32: 0.6
A33: Russia | B33: — | C33: — | D33: — | E33: — | F33: 0.185 | G33: 0.195 | H33: 0.199 | I33: 0.204
A34: Saudi Arabia | B34: 0.128 | C34: 0.153 | D34: 0.177 | E34: 0.203 | F34: 0.239 | G34: 0.262 | H34: 0.283 | I34: 0.306
A35: South Africa | B35: 0.662 | C35: 0.69 | D35: 0.722 | E35: 0.752 | F35: 0.708 | G35: 0.734 | H35: 0.75 | I35: 0.774
A36: Spain | B36: 0.904 | C36: 0.874 | D36: 0.853 | E36: 0.842 | F36: 1.094 | G36: 1.05 | H36: 1.023 | I36: 1.007
A37: Switzerland | B37: 0.167 | C37: 0.129 | D37: 0.114 | E37: 0.104 | F37: 0.372 | G37: 0.333 | H37: 0.319 | I37: 0.308
A38: Thailand | B38: — | C38: — | D38: — | E38: — | F38: 0.605 | G38: 0.624 | H38: 0.65 | I38: 0.661
A39: Turkey | B39: 0.235 | C39: 0.222 | D39: 0.203 | E39: 0.218 | F39: 0.308 | G39: 0.293 | H39: 0.252 | I39: 0.26
A40: Uganda | B40: — | C40: — | D40: — | E40: — | F40: 0.5 | G40: 0.51 | H40: 0.514 | I40: 0.503
A41: United Kingdom | B41: 0.898 | C41: 0.915 | D41: 0.916 | E41: 0.924 | F41: 0.996 | G41: 1 | H41: 1.018 | I41: 1.038
A42: United States | B42: 0.932 | C42: 0.957 | D42: 0.988 | E42: 1.017 | F42: 1.186 | G42: 1.187 | H42: 1.21 | I42: 1.241
A43: Source: International Monetary Fund, www.imf.com, World Economic Outlook database, October 2024, accessed 14 December 2024
A44: a Net debt is calculated as gross debt minus financial assets corresponding to debt instruments. These financial assets are: monetary gold and SDRs (Special Drawing Rights — reserve assets in the International Monetary Fund designed to supplement reserves of gold and convertible currencies used to maintain stability in the foreign exchange market), currency and deposits, debt securities, loans, insurance, pension and standardised guarantee schemes, and other accounts receivable.
A45: b Gross debt consists of all liabilities that require payment or payments of interest and/or principal by the debtor to the creditor at a date or dates in the future. This includes debt liabilities in the form of SDRs, currency and deposits, debt securities, loans, insurance, pensions and standardised guarantee schemes, and other accounts payable. Thus, all liabilities in the IMF's Government Finance Statistics Manual 2001 system are debt, except for equity and investment fund shares and financial derivatives and employee stock options. Debt can be valued at current market, nominal, or face values.
A46: c Estimates.

Sheet PROVINCIAL FINANCE

Sheet Revenue sources

Sheet PC Total provin. revenue 23-24
A4: PC
A5: Total provincial revenue, 2023/24
A6: Transfers from national government | B6: 0.96
A7: Provincial own revenue collected | B7: 0.04
A8: Source: National Treasury, Provincial budgets: 2023/24 Financial year

Sheet Total transfer to provinces
A2: Total transfers to provinces, 2024/25
B4: —Equitable share— | D4: —Conditional grants— | F4: —Total transfers—
A5: Province | B5: Rbn | C5: Proportion | D5: Rbn | E5: Proportion | F5: Rbn | G5: Proportion
A6: Eastern Cape | B6: 78.1 | C6: =B6/total1 -> 0.1300582848 | D6: 14.8 | E6: =D6/total2 -> 0.1147286822 | F6: 92.9 | G6: =F6/total3 -> 0.1273474983
A7: Free State | B7: 33.1 | C7: 0.05512073272 | D7: 9.5 | E7: 0.07364341085 | F7: 42.6 | G7: 0.05839616175
A8: Gauteng | B8: 128 | C8: 0.2131557036 | D8: 27.9 | E8: 0.2162790698 | F8: 155.9 | G8: 0.2137080192
A9: KwaZulu-Natal | B9: 121.1 | C9: 0.2016652789 | D9: 25.4 | E9: 0.1968992248 | F9: 146.5 | G9: 0.2008224812
A10: Limpopo | B10: 69.6 | C10: 0.1159034138 | D10: 11.8 | E10: 0.09147286822 | F10: 81.4 | G10: 0.1115832762
A11: Mpumalanga | B11: 49.5 | C11: 0.08243130724 | D11: 10 | E11: 0.07751937984 | F11: 59.6 | G11: 0.08169979438
A12: North West | B12: 42.8 | C12: 0.07127393838 | D12: 9.3 | E12: 0.07209302326 | F12: 52.1 | G12: 0.07141877999
A13: Northern Cape | B13: 16.1 | C13: 0.02681099084 | D13: 5.2 | E13: 0.04031007752 | F13: 21.4 | G13: 0.02933516107
A14: Western Cape | B14: 62.1 | C14: 0.1034138218 | D14: 14.9 | E14: 0.115503876 | F14: 76.9 | G14: 0.1054146676
A15: Unallocated | B15: — | C15: — | D15: 0.1 | E15: 0.0007751937984 | F15: 0.1 | G15: 0.0001370801919
A16: Total | B16: 600.5 | C16: 1 | D16: 129 | E16: 1 | F16: 729.5 | G16: 1
A17: Source: National Treasury, Website annexure to the Budget Review 2024, Table W1.5

Sheet Own revenue

Sheet Provincial own revenue 23-24
A2: Own revenue collection
A4: Provincial own revenuea, 2023/24
A6: Province | B6: 2023/24 Rbn | C6: Total provincial revenue 2023/24 Rbn | D6: Proportion of provincial revenue 2023/24 | E6: Own revenue per head of provincial population 2023/24b R
A8: Eastern Cape | B8: 1.93 | C8: 91.41 | D8: =B8/C8 -> 0.02111366371 | E8: 268.7438949
A9: Free State | B9: 1.3 | C9: 42.4 | D9: =B9/C9 -> 0.03066037736 | E9: 426.6467371
A10: Gauteng | B10: 8.59 | C10: 159.15 | D10: 0.05397423814 | E10: 539.0079629
A11: KwaZulu-Natal | B11: 4.49 | C11: 149.27 | D11: 0.03007972131 | E11: 364.3765078
A12: Limpopo | B12: 2.2 | C12: 80.69 | D12: 0.02726484075 | E12: 343.0876611
A13: Mpumalanga | B13: 3.04 | C13: 60.45 | D13: 0.05028949545 | E13: 601.460319
A14: North West | B14: 1.44 | C14: 51.24 | D14: 0.0281030445 | E14: 347.0832333
A15: Northern Cape | B15: 0.54 | C15: 21 | D15: 0.02571428571 | E15: 391.5676034
A16: Western Cape | B16: 3.06 | C16: 77.23 | D16: 0.03962190858 | E16: 404.4625993
A17: Total | B17: 26.59 | C17: =SUM(C8:C16) -> 732.84 | D17: 0.03628349981 | E17: 421.772875
A18: Source: National Treasury, Provincial budgets: 2023/24 Financial year, accessed 18 November 2024; Stats SA, Mid-year population estimates 2024, Statistical release P0302, 30 July 2024, pvii
A19: a Main sources of provincial own revenue are: casino taxes, horse racing taxes, liquor licences, and motor vehicle licences. Most provincial revenue — almost 97% — comes from central government.
A20: b CRA calculations.

Sheet Provincial expenditure

Sheet Summary by province 23-24
B2: Breakdown of provincial expenditure
B4: Summary of expenditure outcomes by province, 2023/24
C6: Total expenditure— | D6: —Capital expenditure—
C7: Rbn | D7: Rbn | E7: Proportion of total expenditure
B8: Province
B9: Eastern Cape | C9: 92.1 | D9: 3.5 | E9: =D9/C9 -> 0.03800217155
B10: Free State | C10: 42.8 | D10: 2.3 | E10: =D10/C10 -> 0.05373831776
B11: Gauteng | C11: 160.1 | D11: 5.8 | E11: 0.0362273579
B12: KwaZulu-Natal | C12: 151.4 | D12: 7.1 | E12: 0.04689564069
B13: Limpopo | C13: 80.8 | D13: 3.3 | E13: 0.04084158416
B14: Mpumalanga | C14: 59.5 | D14: 4.9 | E14: 0.08235294118
B15: North West | C15: 52.1 | D15: 2.7 | E15: 0.05182341651
B16: Northern Cape | C16: 21.7 | D16: 1.4 | E16: 0.06451612903
B17: Western Cape | C17: 81.1 | D17: 5.9 | E17: 0.07274969174
B18: Total | C18: 741.6 | D18: 36.9 | E18: 0.04975728155
B19: Source: National Treasury, Provincial budgets: 2023/24 Financial year, accessed 18 November 2024

Sheet Prov.expenditure by type 23-24
A2: Provincial expenditure by type, 2023/24
A4: Province | B4: Compensation of employeesa | C4: Goods and servicesb | D4: Transfers and subsidies | E4: Payments for capital assets
B5: —Rbn—
A6: Eastern Cape | B6: 59.8 | C6: 18.1 | D6: 10.7 | E6: 3.5
A7: Free State | B7: 27.4 | C7: 8 | D7: 5.2 | E7: 2.3
A8: Gauteng | B8: 92.4 | C8: 36.3 | D8: 25.6 | E8: 5.8
A9: KwaZulu-Natal | B9: 95.2 | C9: 35.2 | D9: 13.9 | E9: 7.1
A10: Limpopo | B10: 52.1 | C10: 14.6 | D10: 10.9 | E10: 3.3
A11: Mpumalanga | B11: 35.6 | C11: 12.7 | D11: 6.3 | E11: 4.9
A12: North West | B12: 32 | C12: 10.9 | D12: 6.4 | E12: 2.7
A13: Northern Cape | B13: 12.1 | C13: 6 | D13: 2.1 | E13: 1.4
A14: Western Cape | B14: 43.8 | C14: 18.9 | D14: 12.4 | E14: 5.9
A15: Total | B15: =SUM(B6:B14) -> 450.4 | C15: =SUM(C6:C14) -> 160.7 | D15: =SUM(D6:D14) -> 93.5 | E15: 36.9
A16: Source: National Treasury, Provincial budgets: 2023/24 Financial year, accessed 18 November 2024
A17: a All payments to government employees, both salaries and wages, and social contributions.
A18: b All government payments in exchange for goods and services, but excluding capital assets and goods used by government for construction of and improvements to capital assets.

Sheet Personnel expenditure 23-24
A2: Provincial personnel expenditure, 2023/24
A4: Province | B4: Personnel expenditure 2023/24 Rbn | C4: Total expenditure Rbn | D4: Personnel expenditure as a proportion of total provincial expenditurea | E4: Personnel expenditure per head of provincial populationa R
A5: Eastern Cape | B5: 59.8 | C5: 92.1 | D5: =B5/C5 -> 0.6492942454 | E5: 8329.101771
A6: Free State | B6: 27.4 | C6: 42.8 | D6: =B6/C6 -> 0.6401869159 | E6: 9005.842545
A7: Gauteng | B7: 92.4 | C7: 160.1 | D7: 0.5771392879 | E7: 5802.615131
A8: KwaZulu-Natal | B8: 95.2 | C8: 151.4 | D8: 0.6287978864 | E8: 7733.450519
A9: Limpopo | B9: 52.1 | C9: 80.8 | D9: 0.6448019802 | E9: 8135.118516
A10: Mpumalanga | B10: 35.6 | C10: 59.5 | D10: 0.5983193277 | E10: 7043.343149
A11: North West | B11: 32 | C11: 52.1 | D11: 0.6142034549 | E11: 7689.168034
A12: Northern Cape | B12: 12.1 | C12: 21.7 | D12: 0.5576036866 | E12: 8826.977522
A13: Western Cape | B13: 43.8 | C13: 81.1 | D13: 0.5400739827 | E13: 5791.513831
A14: Total | B14: =SUM(B5:B13) -> 450.4 | C14: 741.6 | D14: 0.6073354908 | E14: 7147.863498
A15: Source: National Treasury, Provincial budgets: 2023/24 Financial year, accessed 18 November 2024; Stats SA, Mid-year population estimates 2024, Statistical release P0302, 30 July 2024, pvii
A16: a CRA calculations.

Sheet Social services expenditure
A2: Provincial social services expenditure, 2023/24
A4: Province | B4: Education | C4: Health | D4: Social development | E4: Total | F4: Proportion of total provincial expenditure
B5: —Rbn—
A6: Eastern Cape | B6: 41 | C6: 29.1 | D6: 2.8 | E6: =SUM(B6:D6) -> 72.9 | F6: 0.7915309446
A7: Free State | B7: 18.4 | C7: 13 | D7: 1.2 | E7: =SUM(B7:D7) -> 32.6 | F7: 0.761682243
A8: Gauteng | B8: 63.1 | C8: 61.3 | D8: 5.1 | E8: 129.5 | F8: 0.8088694566
A9: KwaZulu-Natal | B9: 62.9 | C9: 53.4 | D9: 3.3 | E9: 119.6 | F9: 0.7899603699
A10: Limpopo | B10: 38.6 | C10: 24.6 | D10: 2 | E10: 65.2 | F10: 0.8069306931
A11: Mpumalanga | B11: 25.1 | C11: 17.7 | D11: 1.7 | E11: 44.5 | F11: 0.7478991597
A12: North West | B12: 21.3 | C12: 15.9 | D12: 1.7 | E12: 38.9 | F12: 0.7466410749
A13: Northern Cape | B13: 8.6 | C13: 6.4 | D13: 0.9 | E13: 15.9 | F13: 0.732718894
A14: Western Cape | B14: 30.3 | C14: 29.6 | D14: 2.5 | E14: 62.4 | F14: 0.7694204686
A15: South Africa | B15: =SUM(B6:B14) -> 309.3 | C15: =SUM(C6:C14) -> 251 | D15: 21.2 | E15: 581.5 | F15: 0.7841154261
A16: Source: National Treasury, Provincial budgets: 2023/24 Financial year, accessed 18 November 2024

Sheet MUNICIPAL FINANCE

Sheet Transfers to local government
A2: MUNICIPAL FINANCE
A4: Sources of revenue
A6: Transfers to local governmenta, 2020/21-2026/27
B8: 2020/21 | C8: 2021/22 | D8: 2022/23 | E8: 2023/24 | F8: 2024/25 | G8: 2025/26 | H8: 2026/27
B9: —Outcome— | E9: Estimate | F9: —Medium term estimate—
A10: Direct transfers | B10: 137.1 | C10: 135.6 | D10: 150.7 | E10: 160.6 | F10: 170.3 | G10: 177.7 | H10: 183.8
A11: —Equitable share and related | B11: 83.1 | C11: 76.2 | D11: 83.9 | E11: 95.2 | F11: 101.2 | G11: 106.1 | H11: 110.7
A12: —General fuel levy sharing with metros | B12: 14 | C12: 14.6 | D12: 15.3 | E12: 15.4 | F12: 16.1 | G12: 16.8 | H12: 17.6
A13: —Conditional grants | B13: 40 | C13: 44.8 | D13: 51.4 | E13: 50 | F13: 53 | G13: 54.7 | H13: 55.5
A14: Indirect transfers | B14: 4.1 | C14: 7.6 | D14: 7.2 | E14: 8.3 | F14: 7.1 | G14: 7.5 | H14: 8
A15: Total | B15: 141.2 | C15: 143.3 | D15: 157.9 | E15: 168.9 | F15: 177.4 | G15: 185.2 | H15: 191.8
A16: Source: National Treasury, Website annexure to the Budget Review 2024, Table W1.23
A17: a Unlike provinces, nearly all of whose revenue comes from the national fiscus, municipalities are responsible for most of their own revenue from the income sources listed in the tables in this section.

Sheet Basic services allocations
B2: Amount per basic service allocated through the local government equitable share, 2024/25
C4: —Allocation per household below affordability thresholda— | F4: Total allocation per service Rbn
C5: Operations | D5: Maintenance | E5: Total
B6: Service | C6: —R per month—
B7: Energy | C7: 122.4 | D7: 13.6 | E7: 136 | F7: 18.3
B8: Water | C8: 176.6 | D8: 19.6 | E8: 196.2 | F8: 26.3
B9: Sanitation | C9: 115 | D9: 12.8 | E9: 127.8 | F9: 17.1
B10: Refuse removal | C10: 96.4 | D10: 10.7 | E10: 107.1 | F10: 14.4
B11: Total basic services | C11: 510.4 | D11: 56.7 | E11: 567.1 | F11: 76.1
B12: Source: National Treasury, Website annexure to the Budget Review 2024, Table W1.25
B13: a The basic services component provides a subsidy of R567.12 per month in 2024/25 for the cost of providing basic services to households that fall below an affordability threshold. The subsidy includes funding for the provision of free basic water (six kilolitres per poor household per month), energy (50 kilowatt-hours per month) and sanitation and refuse. When the 2011 Census was conducted, the state old-age pension was worth R1 140 per month, which means that two old-age pensions were worth R2 280 per month. A monthly household income of R2 300 per month (in 2011) has therefore been used to define the formula's affordability threshold. Stats SA has calculated that 59% of all households in South Africa fall below this income threshold. However, the proportion in each municipality varies widely. In 2024 terms, this monthly income is equivalent to about R4 418 per month. This threshold is not an official poverty line or a required level to be used by municipalities in their own indigence policies. The number of households per municipality used to calculate allocations is updated annually. The basic services subsidy will fund: . • 11.2 million households in 2024/25.

Sheet Consolidated performance 23-24
A2: Consolidated financial performance as at 30 June 2024
B4: —2023/24—
B5: Actual | C5: Proportion of total | D5: Budget | E5: Variance
A6: Revenue by source | B6: Rbn | D6: Rbn
A7: Property rates | B7: 93.7 | C7: =B7/B12 -> 0.182012432 | D7: 92.7 | E7: 0.011
A8: Service charges | B8: 243.9 | C8: =B8/B12 -> 0.4737762238 | D8: 265.5 | E8: -0.081
A9: Investment revenue | B9: 6.7 | C9: =B9/B12 -> 0.01301476301 | D9: 6 | E9: 0.115
A10: Transfers recognised — operational | B10: 104.6 | C10: =B10/B12 -> 0.2031857032 | D10: 109.8 | E10: -0.048
A11: Other own revenue | B11: 65.9 | C11: =B11/B12 -> 0.128010878 | D11: 64.5 | E11: 0.022
A12: Total revenue (excluding capital transfers and contributions) | B12: 514.8 | C12: 1 | D12: 538.5 | E12: -0.044
A13: Expenditure by type
A14: Employee costs | B14: 138.5 | C14: =B14/B21 -> 0.2762265656 | D14: 148.3 | E14: -0.066
A15: Remunerations of councillors | B15: 4.8 | C15: =B15/B21 -> 0.009573195054 | D15: 5.2 | E15: -0.074
A16: Depreciation and asset impairment | B16: 31.8 | C16: =B16/B21 -> 0.06342241723 | D16: 38.7 | E16: -0.179
A17: Finance charges | B17: 11.1 | C17: =B17/B21 -> 0.02213801356 | D17: 11.2 | E17: -0.011
A18: Materials and bulk purchases | B18: 165.4 | C18: =B18/B21 -> 0.3298763462 | D18: 175.5 | E18: -0.057
A19: Transfers and grants | B19: 10.8 | C19: =B19/B21 -> 0.02153968887 | D19: 4.9 | E19: 1.182
A20: Other expenditure | B20: 139.1 | C20: =B20/B21 -> 0.277423215 | D20: 158.9 | E20: -0.124
A21: Total expenditure | B21: 501.4 | C21: 1 | D21: 542.7 | E21: -0.076
A22: Surplus/deficit | B22: 13.4 | C22: — | D22: -4.1 | E22: -4.248
A23: Transfers recognised — capital | B23: 35.3 | C23: — | D23: 50.6 | E23: -0.302
A24: Contributions recognised — capital | B24: 0.2 | C24: — | D24: 0.2 | E24: -0.225
A25: Surplus/deficit after capital transfers and contributions | B25: 48.9 | C25: — | D25: 46.7 | E25: 0.046
A26: Surplus/deficit for the year | B26: 50.5 | C26: — | D26: 47.4 | E26: 0.066
A27: Capital expenditure and funds sources | B27: 60.7 | C27: — | D27: 78.6 | E27: -0.228
A28: Transfers recognised — capital | B28: 37.1 | C28: =B28/total7 -> 0.6193656093 | D28: 48.9 | E28: -0.243
A29: Borrowing | B29: 7.5 | C29: =B29/total7 -> 0.1252086811 | D29: 9.6 | E29: -0.222
A30: Internally generated funds | B30: 15.4 | C30: =B30/total7 -> 0.2570951586 | D30: 19.8 | E30: -0.224
A31: Total sources of capital funds | B31: 59.9 | C31: 1 | D31: 78.4 | E31: -0.235
A32: Source: National Treasury, Local government revenue and expenditure: Fourth quarter local government section 71 report For the period: 1 July 2023-30 June 2024, September 2024

Sheet Income and expenditure

Sheet Revenue&expenditure All mun
A2: Income and expenditure
A4: Aggregate revenue and expenditure for all municipalities, 2023/24
B6: —Adjusted budget— | E6: —Actuala— | H6: Total actual as a proportion of budget
B7: Operating | C7: Capital | D7: Total | E7: Operating | F7: Capital | G7: Total
A8: Revenue | B8: —Rbn—
A9: Metro | B9: 320.4 | C9: 34.7 | D9: 355.1 | E9: 322.3 | F9: 27.2 | G9: 349.5 | H9: 0.984
A10: Local | B10: 186.6 | C10: 33.6 | D10: 220.2 | E10: 163.7 | F10: 24.3 | G10: 188 | H10: 0.854
A11: District | B11: 31.5 | C11: 10.1 | D11: 41.6 | E11: 28.8 | F11: 8.4 | G11: 37.2 | H11: 0.894
A12: Total | B12: 538.5 | C12: 78.4 | D12: 616.9 | E12: 514.8 | F12: 59.9 | G12: 574.8 | H12: 0.932
A13: Expenditure
A14: Metro | B14: 319 | C14: 34.7 | D14: 353.7 | E14: 313 | F14: 27.2 | G14: 340.2 | H14: 0.962
A15: Local | B15: 192.6 | C15: 33.8 | D15: 226.4 | E15: 162 | F15: 25.1 | G15: 187.1 | H15: 0.826
A16: District | B16: 31.1 | C16: 10.1 | D16: 41.2 | E16: 26.5 | F16: 8.5 | G16: 35 | H16: 0.848
A17: Total | B17: 542.7 | C17: 78.6 | D17: 621.4 | E17: 501.5 | F17: 60.7 | G17: 562.2 | H17: 0.905
A18: Source: National Treasury, Local government revenue and expenditure: Fourth quarter local government section 71 report For the period: 1 July 2023-30 June 2024, September 2024
A19: a Municipal financial year is from 1 July 2023 to 30 June 2024.

Sheet Revenue&expenditure Metros
A2: Aggregate revenue and expenditure for metros, 2023/24
B4: —Adjusted budget— | E4: —Actuala— | H4: Total actual as a proportion of budget
B5: Operating | C5: Capital | D5: Total | E5: Operating | F5: Capital | G5: Total
A6: Revenue | B6: —Rbn—
A7: Buffalo City (EC) | B7: 9.4 | C7: 1.3 | D7: 10.7 | E7: 9 | F7: 1 | G7: 10 | H7: 0.935
A8: Cape Town (WC) | B8: 60.5 | C8: 11.4 | D8: 71.9 | E8: 60.8 | F8: 9 | G8: 69.9 | H8: 0.972
A9: Ekurhuleni (GAU) | B9: 55.5 | C9: 2.7 | D9: 58.3 | E9: 52.3 | F9: 2 | G9: 54.3 | H9: 0.932
A10: eThekwini (KZN) | B10: 53 | C10: 7.6 | D10: 60.6 | E10: 53.7 | F10: 5.8 | G10: 59.5 | H10: 0.981
A11: Johannesburg (GAU) | B11: 71.2 | C11: 6.9 | D11: 78.1 | E11: 81.1 | F11: 4.9 | G11: 86 | H11: 1.101
A12: Mangaung (FS) | B12: 9.2 | C12: 1 | D12: 10.2 | E12: 9.4 | F12: 0.6 | G12: 9.9 | H12: 0.971
A13: Nelson Mandela Bay (EC) | B13: 16.4 | C13: 1.8 | D13: 18.2 | E13: 15.3 | F13: 1.1 | G13: 16.4 | H13: 0.9
A14: Tshwane (GAU) | B14: 45.1 | C14: 2 | D14: 47.1 | E14: 40.6 | F14: 3 | G14: 43.6 | H14: 0.926
A15: Total | B15: 320.4 | C15: 34.7 | D15: 355.1 | E15: 322.3 | F15: 27.2 | G15: 349.5 | H15: 0.984
A16: Expenditure
A17: Buffalo City (EC) | B17: 9.4 | C17: 1.3 | D17: 10.7 | E17: 10.1 | F17: 1 | G17: 11.1 | H17: 1.038
A18: Cape Town (WC) | B18: 60.9 | C18: 11.4 | D18: 72.3 | E18: 56.3 | F18: 9 | G18: 65.4 | H18: 0.904
A19: Ekurhuleni (GAU) | B19: 55.1 | C19: 2.7 | D19: 57.8 | E19: 50.9 | F19: 2 | G19: 53 | H19: 0.915
A20: eThekwini (KZN) | B20: 52.9 | C20: 7.6 | D20: 60.6 | E20: 47.2 | F20: 5.8 | G20: 53 | H20: 0.875
A21: Johannesburg (GAU) | B21: 70.2 | C21: 6.9 | D21: 77.1 | E21: 83.3 | F21: 4.9 | G21: 88.2 | H21: 1.145
A22: Mangaung (FS) | B22: 8.7 | C22: 1 | D22: 9.6 | E22: 9.9 | F22: 0.6 | G22: 10.5 | H22: 1.087
A23: Nelson Mandela Bay (EC) | B23: 16.9 | C23: 1.8 | D23: 18.7 | E23: 15.8 | F23: 1.1 | G23: 16.9 | H23: 0.902
A24: Tshwane (GAU) | B24: 45.1 | C24: 2 | D24: 47 | E24: 39.4 | F24: 2.9 | G24: 42.3 | H24: 0.899
A25: Total | B25: 319 | C25: 34.7 | D25: 353.7 | E25: 313 | F25: 27.2 | G25: 340.2 | H25: 0.962
A26: Source: National Treasury, Local government revenue and expenditure: Fourth quarter local government section 71 report For the period: 1 July 2023-30 June 2024, September 2024
A27: a Municipal financial year is from 1 July 2023 to 30 June 2024.

Sheet Municipal debtors

Sheet All municipal debtors
A2: Municipal debtors
A4: Debtors age analysis for all municipalities as at 30 June 2024
B6: —0-30 days— | D6: —31-60 days— | F6: —61-90 days— | H6: —Over 90 days— | J6: —Total amount—
A7: Debtor by income source | B7: Rbn | C7: % | D7: Rbn | E7: % | F7: Rbn | G7: % | H7: Rbn | I7: % | J7: Rbn | K7: %
A8: Water | B8: 6.6 | C8: 0.06 | D8: 2.8 | E8: 0.026 | F8: 3.4 | G8: 0.031 | H8: 96 | I8: 0.883 | J8: 108.8 | K8: 0.32
A9: Electricity | B9: 8.6 | C9: 0.211 | D9: 1.9 | E9: 0.047 | F9: 1.4 | G9: 0.036 | H9: 28.6 | I9: 0.706 | J9: 40.5 | K9: 0.119
A10: Property rates | B10: 6.7 | C10: 0.101 | D10: 1.5 | E10: 0.023 | F10: 2.2 | G10: 0.033 | H10: 55.9 | I10: 0.843 | J10: 66.3 | K10: 0.195
A11: Sanitation | B11: 2.1 | C11: 0.062 | D11: 0.9 | E11: 0.027 | F11: 1.1 | G11: 0.033 | H11: 29 | I11: 0.878 | J11: 33 | K11: 0.097
A12: Refuse removal | B12: 1.4 | C12: 0.051 | D12: 0.6 | E12: 0.022 | F12: 0.8 | G12: 0.027 | H12: 25.4 | I12: 0.9 | J12: 28.3 | K12: 0.083
A13: Property rental debtors | B13: 0.2 | C13: 0.046 | D13: 0 | E13: 0.015 | F13: 0 | G13: 0.017 | H13: 3.5 | I13: 0.922 | J13: 3.8 | K13: 0.011
A14: Interest on arrear debtor accounts | B14: 1.9 | C14: 0.04 | D14: 1.1 | E14: 0.023 | F14: 1.5 | G14: 0.032 | H14: 42.3 | I14: 0.904 | J14: 46.7 | K14: 0.137
A15: Other | B15: -0.7 | C15: -0.056 | D15: 0 | E15: 0.005 | F15: -0.1 | G15: -0.012 | H15: 13.3 | I15: 1.064 | J15: 12.5 | K15: 0.037
A16: Total | B16: 26.7 | C16: 0.078 | D16: 8.9 | E16: 0.026 | F16: 10.2 | G16: 0.03 | H16: 294.1 | I16: 0.865 | J16: 339.9 | K16: 1
A17: Debtor by customer group
A18: Government | B18: 2 | C18: 0.109 | D18: 0.7 | E18: 0.038 | F18: 0.7 | G18: 0.037 | H18: 15.2 | I18: 0.816 | J18: 18.6 | K18: 0.055
A19: Business | B19: 10.1 | C19: 0.149 | D19: 2 | E19: 0.029 | F19: 2.4 | G19: 0.035 | H19: 53.3 | I19: 0.787 | J19: 67.8 | K19: 0.199
A20: Households | B20: 14 | C20: 0.056 | D20: 6.1 | E20: 0.025 | F20: 7.2 | G20: 0.029 | H20: 220.2 | I20: 0.89 | J20: 247.4 | K20: 0.728
A21: Other | B21: 0.6 | C21: 0.092 | D21: 0.1 | E21: 0.015 | F21: 0 | G21: 0.003 | H21: 5.4 | I21: 0.89 | J21: 6.1 | K21: 0.018
A22: Total | B22: 26.7 | C22: 0.078 | D22: 8.9 | E22: 0.026 | F22: 10.2 | G22: 0.03 | H22: 294.1 | I22: 0.865 | J22: 339.9 | K22: 1
A23: Source: National Treasury, Local government revenue and expenditure: Fourth quarter local government section 71 report For the period: 1 July 2023-30 June 2024, September 2024

Sheet BC Total debtors by custome
A1: BC
A2: Total municipal debtors by customer group, 2023/24
B4: Total municipal debtors by customer group, 2023/24
A5: Government | B5: 0.055
A6: Business | B6: 0.199
A7: Households | B7: 0.728
A8: Other | B8: 0.018

Sheet Metro debtors
A2: Metro debtors age analysis as at 30 June 2024
B4: —0–30 days— | D4: —31–60 days— | F4: —61–90 days— | H4: —Over 90 days— | J4: —Total amount—
A5: Metropolitan area | B5: Rbn | C5: % | D5: Rbn | E5: % | F5: Rbn | G5: % | H5: Rbn | I5: % | J5: Rbn | K5: %
A6: Buffalo City (EC) | B6: 0.6 | C6: 0.08 | D6: 0.3 | E6: 0.035 | F6: 0.2 | G6: 0.031 | H6: 6.4 | I6: 0.854 | J6: 7.5 | K6: 0.045
A7: Cape Town (WC) | B7: 2.8 | C7: 0.278 | D7: 0.3 | E7: 0.031 | F7: 0.2 | G7: 0.024 | H7: 6.6 | I7: 0.667 | J7: 9.9 | K7: 0.059
A8: Ekurhuleni (GAU) | B8: 3.3 | C8: 0.123 | D8: 1.2 | E8: 0.044 | F8: 0.9 | G8: 0.034 | H8: 21.5 | I8: 0.799 | J8: 26.9 | K8: 0.161
A9: eThekwini (GAU) | B9: 3.2 | C9: 0.099 | D9: 1.3 | E9: 0.039 | F9: 1.1 | G9: 0.034 | H9: 26.5 | I9: 0.828 | J9: 32 | K9: 0.191
A10: Johannesburg (GAU) | B10: 2.7 | C10: 0.046 | D10: 1.6 | E10: 0.028 | F10: 1.6 | G10: 0.028 | H10: 51.6 | I10: 0.898 | J10: 57.4 | K10: 0.343
A11: Mangaung (FS) | B11: 1 | C11: 0.092 | D11: 0.3 | E11: 0.025 | F11: 0.3 | G11: 0.029 | H11: 9.5 | I11: 0.854 | J11: 11.2 | K11: 0.067
A12: Nelson Mandela Bay (EC)a | B12: — | C12: — | D12: — | E12: — | F12: — | G12: — | H12: — | I12: — | J12: — | K12: —
A13: Tshwane (GAU) | B13: 2.7 | C13: 0.119 | D13: 0.1 | E13: 0.004 | F13: 0.5 | G13: 0.022 | H13: 19.4 | I13: 0.855 | J13: 22.7 | K13: 0.135
A14: Total | B14: 16.2 | C14: 0.097 | D14: 5 | E14: 0.03 | F14: 4.9 | G14: 0.029 | H14: 141.6 | I14: 0.845 | J14: 167.6 | K14: 1
A15: Debtor by customer group
A16: Government | B16: 1 | C16: 0.164 | D16: 0.3 | E16: 0.055 | F16: 0.2 | G16: 0.034 | H16: 4.6 | I16: 0.748 | J16: 6.1 | K16: 0.036
A17: Business | B17: 6.4 | C17: 0.192 | D17: 0.9 | E17: 0.028 | F17: 1.1 | G17: 0.033 | H17: 24.9 | I17: 0.747 | J17: 33.3 | K17: 0.199
A18: Households | B18: 8.6 | C18: 0.068 | D18: 3.7 | E18: 0.029 | F18: 3.6 | G18: 0.029 | H18: 110.9 | I18: 0.874 | J18: 126.8 | K18: 0.756
A19: Other | B19: 0.2 | C19: 0.149 | D19: 0 | E19: 0.014 | F19: 0 | G19: -0.039 | H19: 1.2 | I19: 0.876 | J19: 1.4 | K19: 0.008
A20: Total | B20: 16.2 | C20: 0.097 | D20: 5 | E20: 0.03 | F20: 4.9 | G20: 0.029 | H20: 141.6 | I20: 0.845 | J20: 167.6 | K20: 1
A21: Source: National Treasury, Local government revenue and expenditure: Fourth quarter local government section 71 report For the period: 1 July 2023-30 June 2024, September 2024
A23: a The Nelson Mandela Bay Metropolitan Municipality did not provide information on its debtors.

Sheet BC Metro debtors % of total
A1: HG
A2: Metro's debtors as a proportion of total municipal debtors, 2019/20
B4: Metro's debtors as a proportion of total municipal debtors, 2023/24
A5: Buffalo City (EC) | B5: 0.045
A6: Cape Town (WC) | B6: 0.059
A7: Ekurhuleni (GAU) | B7: 0.161
A8: eThekwini (KZN) | B8: 0.191
A9: Johannesburg (GAU) | B9: 0.343
A10: Mangaung (FS) | B10: 0.067
A11: Tshwane (GAU) | B11: 0.135

Sheet Macros
A2: A | B2: HEAD 1 | C2: HELVETICA NEUE 21 pt
A4: B | B4: HEAD 2 | C4: Helvetica Neue 18 pt
A6: C | B6: HEAD 3 | C6: Helvetica Neue 16 pt
A8: D | B8: HEAD 4 | C8: Helvetica Neue 14 pt
A10: E | B10: HEAD 5 | C10: Lucia 12 pt
A12: F | B12: HEAD 6 | C12: Helvetica Neue 13 pt
A14: G | B14: HEAD 7 | C14: Helvetica Neue 12 pt
A16: H | B16: HEAD 8 | C16: Helvetica Neue 11 pt | D16: Source, Footnote, Text
C20: ctr shift + letter
